{"text_format":"1","workbook":"xlsx","n_sheets":2,"sheets":["Variabelliste - informasjon","Variabelliste - Velg Variabler"],"not_rendered":{"charts":0,"images":1,"macros":1,"external_links":0,"defined_names":0,"comments":0,"pivot_tables":0},"unopened":[],"bounds":{"document_bytes":16777216,"sheet_cells":100000,"rows_first":2000,"rows_last":500,"rows_between":2000,"halvings":0,"cell_chars":16384,"cell_head_chars":4096},"cells_cut":0,"cells_raw":0,"read":"whole","date_system":"1900"}

{"sheet":"Variabelliste - informasjon","index":0,"n_rows":39,"n_cols":5,"rows_kept":39,"cut":false,"hidden":false,"merged":[[0,0,1,1],[35,1,35,2],[27,3,28,4],[31,2,32,2],[19,2,20,2],[21,2,22,2],[23,2,24,2],[25,2,26,2],[27,2,28,2],[29,2,30,2],[29,3,30,4]]}
[null,null,"VARIABELLISTE - INFORMASJON"]
[null,null,"FD-Trygd"]
[]
[]
[null,"Statistikkområde:","FD-Trygd - alle tabeller"]
[]
[null,"Dokumentasjon:","Bestillingsveiledning for uttak fra FD-Trygd (Notater 27/2012)"]
[null,null,"Dokumentasjon av FD-Trygd"]
[]
[null,"Omfang:","Bosatte personer, og brukere av ordininger/mottakere av ytelser selv om personen ikke er bosatt."]
[null,"Referanseperiode:","1992 -  Dataperioder varierer mellom temaområder, og det forekommer brudd i tidsserier."]
[null,"Enhet:","Person og person med hendelse"]
[null,"Dispensasjon:","SSB er dispensasjonsgiver for alle variablene i denne listen. Søknaden om data (eget skjema) gjelder også som dispensasjonssøknad."]
[null,"Annen informasjon fra SSB:","Denne variabellisten er tilpasset uttak av data som forløp. I bestillingsveildingen for FD-Trygd, kapitel 5 og 6, er ulike typer av uttak beskrevet. Bruk kommentarfeltet under hvis andre typer uttrekk enn forløp er aktuelt."]
[]
[null,null,"Enkelte variabler er også tilgjengelig på microdata.no.  Denne tjenesten er åpen for forskere, PhD- og masterstudenter tilknyttet godkjente forskningsinstitusjoner: https://microdata.no/ "]
[]
[]
[null,"OPPGI INFORMASJON:"]
[null,"Dato for innsending av bestilling:",null,"*"]
[]
[null,"Prosjektnavn:",null,"*"]
[]
[null,"Institusjon:",null,"*"]
[]
[null,"Utfylt av:",null,"*"]
[]
[null,"SSB saksnummer:",null,"Oppgis hvis du har mottatt det fra SSB."]
[]
[null,"Angi om databestillingen inkluderer",null,"Nyere data kan foreligge på avtaletidspunktet."]
[null,"siste tilgjengelige årganger (Ja/Nei):"]
[null,"Evt. kommentarer til SSB:"]
[]
[null,null,"* Obligatoriske felt"]
[]
[null,"Gå til variabelliste og velg tabeller ►"]
[]
[]
["Sist oppdatert 10. mai 2024",null,null,null,"Statistisk sentralbyrå"]

{"sheet":"Variabelliste - Velg Variabler","index":1,"n_rows":1095,"n_cols":12,"rows_kept":1095,"cut":false,"hidden":false,"merged":[[5,6,6,6],[5,7,6,7],[5,3,6,3],[0,0,1,0],[5,0,6,0],[5,1,5,2]]}
[null,"VELG VARIABLER"]
[null,"FD-Trygd",null,null,null,{"$f":"IF(OR(B14=\"x\",B16=\"x\",B18=\"x\",B26=\"x\",B28=\"x\",B50=\"x\",B59=\"x\",B61=\"x\",B63=\"x\",B117=\"x\",B120=\"x\",B121=\"x\",B122=\"x\",B124=\"x\",B126=\"x\",B138=\"x\",B147=\"x\",B189=\"x\",B194=\"x\",B463=\"x\",B465=\"x\",B466=\"x\",B492=\"x\",B495=\"x\",B496=\"x\",B527=\"x\",B530=\"x\",B531=\"x\",B556=\"x\",B559=\"x\",B560=\"x\",B585=\"x\",B588=\"x\",B589=\"x\",B612=\"x\",B615=\"x\",B616=\"x\",B641=\"x\",B644=\"x\",B645=\"x\",B669=\"x\",B670=\"x\",B671=\"x\",B672=\"x\",B673=\"x\",B674=\"x\",B675=\"x\",B683=\"x\",B695=\"x\",B696=\"x\",B1079=\"x\",B1080=\"x\",B1082=\"x\",B1083=\"x\",B206=\"x\",B209=\"x\",B210=\"x\",B219=\"x\",B222=\"x\",B223=\"x\",B232=\"x\",B235=\"x\",B236=\"x\",B256=\"x\",B259=\"x\",B260=\"x\",B261=\"x\",B366=\"x\",B369=\"x\",B370=\"x\",B401=\"x\",B404=\"x\",B405=\"x\",B439=\"x\",B442=\"x\",B443=\"x\",B453=\"x\",B456=\"x\",B457=\"x\",B668=\"x\",B694=\"x\",B701=\"x\",B704=\"x\",B705=\"x\",B720=\"x\",B743=\"x\",B746=\"x\",B747=\"x\",B748=\"x\",B757=\"x\",B760=\"x\",B761=\"x\",B764=\"x\",B771=\"x\",B774=\"x\",B775=\"x\",B778=\"x\",B785=\"x\",B788=\"x\",B789=\"x\",B795=\"x\",B798=\"x\",B799=\"x\",B800=\"x\",B807=\"x\",B810=\"x\",B811=\"x\",B817=\"x\",B820=\"x\",B821=\"x\",B822=\"x\",B846=\"x\",B850=\"x\",B851=\"x\",B854=\"x\",B858=\"x\",B923=\"x\",B926=\"x\",B927=\"x\",B1041=\"x\",B1042=\"x\",B1043=\"x\",B1050=\"x\",B1067=\"x\",B1070=\"x\",B1071=\"x\",B1077=\"x\",),5,\"0\")","v":"0"}]
[]
[null,null,null,"Intern informasjon"]
["Datovariabler som inneholder full fødsels- og dødsdato vil bli gitt som måned og år hvis ikke prosjektet har særskilt begrunnet i søknaden at det trenger full fødsels- eller dødsdato."]
["Variabelbeskrivelse","Oppgi perioden du ønsker data for",null,"Variabelnavn",null,null,"Definisjoner","Gjeldende\nkodeliste"]
[null,"Fra år:","Til år:",null,"Tilgjengelig fra år","Tilgjengelig til år",null,null,"Tabellnavn som leveres ","Finnes på microdata.no","Førstelinje","Kommentarer"]
[]
["MERK: Oppgi først årgangene øverst i tabellene. Obligatoriske variabler for tabelen blir automatisk lagt til. Oppgi deretter årgangene for variablene du trenger utover disse.",null,null,null,null,null,null,null,null,null,null,"Mange av de markerte variablene kan inneholde senstive og særlige kategorier personopplysninger."]
["*Skriv ønskede årganger i første ruten for å velge obligatoriske variabler"]
["ARBEIDSAVKLARINGSPENGER\nTabell: Arbeidsavklaringspenger  (F_AAP )",null,null,null,2010,2023,null,null,null,null,"Særlig kategori (hele tabellen)"]
["Løpenummer (avidentifisert fødselsnummer)",{"$f":"IF(B11<>\"\",B11,\"\")","v":""},{"$f":"IF(C11<>\"\",C11,\"\")","v":""},"wXX_XXXX_lnr ",2010,2023,null,null,"F_AAP ","microdata.no","Særlig kategori"]
["Registreringsdato ",{"$f":"IF(B11<>\"\",B11,\"\")","v":""},{"$f":"IF(C11<>\"\",C11,\"\")","v":""},"REGDATO ",2010,2023,null,null,"F_AAP ",null,"Særlig kategori"]
["Tilgangsdato ",{"$f":"IF(B11<>\"\",B11,\"\")","v":""},{"$f":"IF(C11<>\"\",C11,\"\")","v":""},"TILGDATO ",2010,2023,null,null,"F_AAP ","microdata.no","Særlig kategori"]
["Hendelseskode ",{"$f":"IF(B11<>\"\",B11,\"\")","v":""},{"$f":"IF(C11<>\"\",C11,\"\")","v":""},"KODE ",2010,2023,null,null,"F_AAP ",null,"Særlig kategori"]
["Avgangsdato ",{"$f":"IF(B11<>\"\",B11,\"\")","v":""},{"$f":"IF(C11<>\"\",C11,\"\")","v":""},"AVGDATO ",2010,2023,null,null,"F_AAP ","microdata.no","Særlig kategori"]
["Til og med dato ",{"$f":"IF(B11<>\"\",B11,\"\")","v":""},{"$f":"IF(C11<>\"\",C11,\"\")","v":""},"TOMDATO ",2010,2023,null,null,"F_AAP ",null,"Særlig kategori"]
["Merking av fødselsnummer ",null,null,"MRK_FNR ",2010,2023,null,null,"F_AAP ",null,"Særlig kategori"]
[]
["*Skriv ønskede årganger i første ruten for å velge obligatoriske variabler"]
["ARBEIDSSØKERE\nTabell: Arbeidssøkere fra og med 1.5.2001 (F_ARBSOK)",null,null,null,2001,2022,null,null,"F_ARBSOK "]
["Løpenummer (avidentifisert fødselsnummer)",{"$f":"IF(B21<>\"\",B21,\"\")","v":""},{"$f":"IF(C21<>\"\",C21,\"\")","v":""},"wXX_XXXX_lnr ",2001,2022,null,null,"F_ARBSOK ","microdata.no"]
["Hendelseskode for arbeidssøkere ",{"$f":"IF(B21<>\"\",B21,\"\")","v":""},{"$f":"IF(C21<>\"\",C21,\"\")","v":""},"KODE ",2001,2022,null,null,"F_ARBSOK "]
["Hovedgruppering av arbeidssøkere ",{"$f":"IF(B21<>\"\",B21,\"\")","v":""},{"$f":"IF(C21<>\"\",C21,\"\")","v":""},"HOVED ",2001,2022,null,null,"F_ARBSOK ","microdata.no","Særlig kategori og inngripende / sensitiv"]
["Registreringsdato for arbeidssøkeropplysninger ",{"$f":"IF(B21<>\"\",B21,\"\")","v":""},{"$f":"IF(C21<>\"\",C21,\"\")","v":""},"REGDATO ",2001,2022,null,null,"F_ARBSOK "]
["Tilgangsdato for arbeidssøkere ",{"$f":"IF(B21<>\"\",B21,\"\")","v":""},{"$f":"IF(C21<>\"\",C21,\"\")","v":""},"TILGDATO ",2001,2022,null,null,"F_ARBSOK "]
["Avgangsdato for arbeidssøkere ",{"$f":"IF(B21<>\"\",B21,\"\")","v":""},{"$f":"IF(C21<>\"\",C21,\"\")","v":""},"AVGDATO ",2001,2022,null,null,"F_ARBSOK "]
["Arbeidssøkergruppens tilgangsdato ",{"$f":"IF(B21<>\"\",B21,\"\")","v":""},{"$f":"IF(C21<>\"\",C21,\"\")","v":""},"ASOKTILG ",2001,2022,null,null,"F_ARBSOK "]
["Arbeidssøkergruppens avgangsdato ",{"$f":"IF(B21<>\"\",B21,\"\")","v":""},{"$f":"IF(C21<>\"\",C21,\"\")","v":""},"ASOKAVG ",2001,2022,null,null,"F_ARBSOK "]
["Hovedarbeidssøkerstatus ",{"$f":"IF(B21<>\"\",B21,\"\")","v":""},{"$f":"IF(C21<>\"\",C21,\"\")","v":""},"HOVEDARBSTAT ",2001,2022,null,null,"F_ARBSOK "]
["Endringsdato for hovedarbeidssøkerstatus",{"$f":"IF(B21<>\"\",B21,\"\")","v":""},{"$f":"IF(C21<>\"\",C21,\"\")","v":""},"HOVEDARBDATO",2001,2022,null,null,"F_ARBSOK "]
["Tiltakstype",null,null,"TILTAK ",2001,2022,null,null,"F_ARBSOK "]
["Endringsdato for tiltakstype",{"$f":"IF(INDIRECT(ADDRESS(ROW()-1,COLUMN()))<>\"\",INDIRECT(ADDRESS(ROW()-1,COLUMN())),\"\")","v":""},{"$f":"IF(INDIRECT(ADDRESS(ROW()-1,COLUMN()))<>\"\",INDIRECT(ADDRESS(ROW()-1,COLUMN())),\"\")","v":""},"TILTAKDATO",2001,2022,null,null,"F_ARBSOK "]
["Stønadstype/ytelse som mottas av arbeidssøker/yrkeshemmed ",null,null,"YTELSE ",2001,2022,null,null,"F_ARBSOK ",null,"Særlig kategori"]
["Endringsdato for ytelsesstatus",{"$f":"IF(INDIRECT(ADDRESS(ROW()-1,COLUMN()))<>\"\",INDIRECT(ADDRESS(ROW()-1,COLUMN())),\"\")","v":""},{"$f":"IF(INDIRECT(ADDRESS(ROW()-1,COLUMN()))<>\"\",INDIRECT(ADDRESS(ROW()-1,COLUMN())),\"\")","v":""},"YTELSEDATO",2001,2022,null,null,"F_ARBSOK "]
["Dagens dato (for uttaket fra NAV) ",null,null,"DAGDATO ",2001,2022,null,null,"F_ARBSOK "]
["Hendelsesdato ",null,null,"HENDDATO ",2001,2022,null,null,"F_ARBSOK "]
["Mineregisterkontroll fødselsnummer ",null,null,"MRK_FNR ",2001,2022,null,null,"F_ARBSOK "]
["Arbeidssøkerstatus fingruppe (fra NAV) ",null,null,"AS_F ",2001,2022,null,null,"F_ARBSOK ",null,"Særlig kategori og inngripende / sensitiv"]
["Arbeidssøkerstatus grovgruppe (fra NAV) ",null,null,"AS_GR ",2001,2022,null,null,"F_ARBSOK ",null,"Inngripende og sensitiv"]
["Teknisk hjelpevariabel - sluttdato for gruppetilfelle ",{"$f":"IF(B21<>\"\",B21,\"\")","v":""},{"$f":"IF(C21<>\"\",C21,\"\")","v":""},"ASOKTOM ",2001,2022,null,null,"F_ARBSOK "]
["Teknisk hjelpevariabel - sluttdato for hovedtilfelle ",{"$f":"IF(B21<>\"\",B21,\"\")","v":""},{"$f":"IF(C21<>\"\",C21,\"\")","v":""},"TOMDATO ",2001,2022,null,null,"F_ARBSOK "]
["Teknisk hjelpevariabel - sluttdato for endringsrekord",null,null,"REGTOM",2001,2022,null,null,"F_ARBSOK "]
[]
["*Skriv ønskede årganger i første ruten for å velge obligatoriske variabler"]
["Tabell: Arbeidssøkere til og med 30.4.2001 (F_ARBSOK_TOM20010430 )",null,null,null,1992,2001,null,null,"F_ARBSOK_TOM20010430 "]
["Løpenummer (avidentifisert fødselsnummer)",{"$f":"IF(B46<>\"\",B46,\"\")","v":""},{"$f":"IF(C46<>\"\",C46,\"\")","v":""},"wXX_XXXX_lnr ",1992,2001,null,null,"F_ARBSOK_TOM20010431","microdata.no"]
["Kode for arbeidssøkere ",{"$f":"IF(B46<>\"\",B46,\"\")","v":""},{"$f":"IF(C46<>\"\",C46,\"\")","v":""},"ASOKKODE ",1992,2001,null,null,"F_ARBSOK_TOM20010432",null,"Særlig kategori"]
["Registreringsdato for type arbeidssøkere ",{"$f":"IF(B46<>\"\",B46,\"\")","v":""},{"$f":"IF(C46<>\"\",C46,\"\")","v":""},"REGDATO ",1992,2001,null,null,"F_ARBSOK_TOM20010433"]
["Tilgangsdato for arbeidssøkere ",{"$f":"IF(B46<>\"\",B46,\"\")","v":""},{"$f":"IF(C46<>\"\",C46,\"\")","v":""},"TILGDATO ",1992,2001,null,null,"F_ARBSOK_TOM20010434"]
["Avgangsdato for arbeidssøkere ",{"$f":"IF(B46<>\"\",B46,\"\")","v":""},{"$f":"IF(C46<>\"\",C46,\"\")","v":""},"AVGDATO ",1992,2001,null,null,"F_ARBSOK_TOM20010435"]
["Arbeidssøkergruppens tilgangsdato ",{"$f":"IF(B46<>\"\",B46,\"\")","v":""},{"$f":"IF(C46<>\"\",C46,\"\")","v":""},"ASOKTILG ",1992,2001,null,null,"F_ARBSOK_TOM20010436"]
["Arbeidssøkergruppens avgangsdato ",{"$f":"IF(B46<>\"\",B46,\"\")","v":""},{"$f":"IF(C46<>\"\",C46,\"\")","v":""},"ASOKAVG ",1992,2001,null,null,"F_ARBSOK_TOM20010437"]
["Arbeidssøkerstatus ",null,null,"ARBSTAT ",1992,2001,null,null,"F_ARBSOK_TOM20010438"]
["Endringsdato for arbeidssøkerstatus",{"$f":"IF(INDIRECT(ADDRESS(ROW()-1,COLUMN()))<>\"\",INDIRECT(ADDRESS(ROW()-1,COLUMN())),\"\")","v":""},{"$f":"IF(INDIRECT(ADDRESS(ROW()-1,COLUMN()))<>\"\",INDIRECT(ADDRESS(ROW()-1,COLUMN())),\"\")","v":""},"ARBSDATO",1992,2001,null,null,"F_ARBSOK_TOM20010439"]
["Stønadstype som mottas av arbeidssøker/yrkeshemmed ",null,null,"STONAD ",1992,2001,null,null,"F_ARBSOK_TOM20010440","microdata.no","Særlig kategori og inngripende / sensitiv"]
["Endringsdato for stønadstype",{"$f":"IF(INDIRECT(ADDRESS(ROW()-1,COLUMN()))<>\"\",INDIRECT(ADDRESS(ROW()-1,COLUMN())),\"\")","v":""},{"$f":"IF(INDIRECT(ADDRESS(ROW()-1,COLUMN()))<>\"\",INDIRECT(ADDRESS(ROW()-1,COLUMN())),\"\")","v":""},"STONDATO",1992,2001,null,null,"F_ARBSOK_TOM20010441"]
["Tiltaksgrupper for personer på ordinære tiltak ",null,null,"TILTAK3 ",1992,2001,null,null,"F_ARBSOK_TOM20010442","microdata.no"]
["Endringsdato for ordinære tiltak",{"$f":"IF(INDIRECT(ADDRESS(ROW()-1,COLUMN()))<>\"\",INDIRECT(ADDRESS(ROW()-1,COLUMN())),\"\")","v":""},{"$f":"IF(INDIRECT(ADDRESS(ROW()-1,COLUMN()))<>\"\",INDIRECT(ADDRESS(ROW()-1,COLUMN())),\"\")","v":""},"TIL3DATO",1992,2001,null,null,"F_ARBSOK_TOM20010443"]
["Tiltaksgrupper for yrkeshemmede ",null,null,"TILTAK5 ",1992,2001,null,null,"F_ARBSOK_TOM20010444","microdata.no","Særlig kategori og inngripende / sensitiv"]
["Endringsdato for yrkeshemmede",{"$f":"IF(INDIRECT(ADDRESS(ROW()-1,COLUMN()))<>\"\",INDIRECT(ADDRESS(ROW()-1,COLUMN())),\"\")","v":""},{"$f":"IF(INDIRECT(ADDRESS(ROW()-1,COLUMN()))<>\"\",INDIRECT(ADDRESS(ROW()-1,COLUMN())),\"\")","v":""},"TIL5DATO",1992,2001,null,null,"F_ARBSOK_TOM20010445"]
["Merking av fødselsnummer ",null,null,"MRK_FNR ",1992,2001,null,null,"F_ARBSOK_TOM20010446"]
["Henvist fra ",null,null,"HENVIST ",1992,2001,null,null,"F_ARBSOK_TOM20010447",null,"Særlig kategori og inngripende / sensitiv"]
["Endringsdato for henvist fra",{"$f":"IF(INDIRECT(ADDRESS(ROW()-1,COLUMN()))<>\"\",INDIRECT(ADDRESS(ROW()-1,COLUMN())),\"\")","v":""},{"$f":"IF(INDIRECT(ADDRESS(ROW()-1,COLUMN()))<>\"\",INDIRECT(ADDRESS(ROW()-1,COLUMN())),\"\")","v":""},"HENVDATO",1992,2001,null,null,"F_ARBSOK_TOM20010448"]
["Teknisk hjelpevariabel - sluttdato for hovedtilfelle ",{"$f":"IF(B46<>\"\",B46,\"\")","v":""},{"$f":"IF(C46<>\"\",C46,\"\")","v":""},"TOMDATO ",1992,2001,null,null,"F_ARBSOK_TOM20010449"]
["Teknisk hjelpevariabel - sluttdato for gruppetilfelle ",{"$f":"IF(B46<>\"\",B46,\"\")","v":""},{"$f":"IF(C46<>\"\",C46,\"\")","v":""},"ASOKTOM ",1992,2001,null,null,"F_ARBSOK_TOM20010450"]
[]
["*Skriv ønskede årganger i første ruten for å velge obligatoriske variabler"]
["Tabell: Dagpenger (F_DAGP_TOM19991231 )",null,null,null,1992,1999]
["Løpenummer (avidentifisert fødselsnummer)",{"$f":"IF(B69<>\"\",B69,\"\")","v":""},{"$f":"IF(C69<>\"\",C69,\"\")","v":""},"wXX_XXXX_lnr ",1992,1999,null,null,"F_DAGP_TOM19991231 "]
["Kode for dagpenger ",{"$f":"IF(B69<>\"\",B69,\"\")","v":""},{"$f":"IF(C69<>\"\",C69,\"\")","v":""},"DAGPKODE ",1992,1999,null,null,"F_DAGP_TOM19991232"]
["Registreringsdato for dagpenger ",{"$f":"IF(B69<>\"\",B69,\"\")","v":""},{"$f":"IF(C69<>\"\",C69,\"\")","v":""},"REGDATO ",1992,1999,null,null,"F_DAGP_TOM19991233"]
["Tilgangsdato for dagpenger ",{"$f":"IF(B69<>\"\",B69,\"\")","v":""},{"$f":"IF(C69<>\"\",C69,\"\")","v":""},"TILGDATO ",1992,1999,null,null,"F_DAGP_TOM19991234"]
["Avgangsdato for dagpenger ",{"$f":"IF(B69<>\"\",B69,\"\")","v":""},{"$f":"IF(C69<>\"\",C69,\"\")","v":""},"AVGDATO ",1992,1999,null,null,"F_DAGP_TOM19991235"]
["Oppnådd prosent hittil i dagpenge-regnskapet ",null,null,"OPROSDP ",1992,1999,null,null,"F_DAGP_TOM19991236"]
["Endringsdato for OPROSDP ",{"$f":"IF(INDIRECT(ADDRESS(ROW()-1,COLUMN()))<>\"\",INDIRECT(ADDRESS(ROW()-1,COLUMN())),\"\")","v":""},{"$f":"IF(INDIRECT(ADDRESS(ROW()-1,COLUMN()))<>\"\",INDIRECT(ADDRESS(ROW()-1,COLUMN())),\"\")","v":""},"OPRODATO ",1992,1999,null,null,"F_DAGP_TOM19991237"]
["Anvist prosent i forrige periode (forrige anvisning) ",null,null,"APROSFOR ",1992,1999,null,null,"F_DAGP_TOM19991238"]
["Endringsdato for APROSFOR ",{"$f":"IF(INDIRECT(ADDRESS(ROW()-1,COLUMN()))<>\"\",INDIRECT(ADDRESS(ROW()-1,COLUMN())),\"\")","v":""},{"$f":"IF(INDIRECT(ADDRESS(ROW()-1,COLUMN()))<>\"\",INDIRECT(ADDRESS(ROW()-1,COLUMN())),\"\")","v":""},"AFORDATO ",1992,1999,null,null,"F_DAGP_TOM19991239"]
["Anvist prosent i siste periode (siste anvisning) ",null,null,"APROSSIS ",1992,1999,null,null,"F_DAGP_TOM19991240"]
["Endringsdato for APROSSIS ",{"$f":"IF(INDIRECT(ADDRESS(ROW()-1,COLUMN()))<>\"\",INDIRECT(ADDRESS(ROW()-1,COLUMN())),\"\")","v":""},{"$f":"IF(INDIRECT(ADDRESS(ROW()-1,COLUMN()))<>\"\",INDIRECT(ADDRESS(ROW()-1,COLUMN())),\"\")","v":""},"ASISDATO ",1992,1999,null,null,"F_DAGP_TOM19991241"]
["Ukesats dagpenger ",null,null,"UKESATS ",1992,1999,null,null,"F_DAGP_TOM19991242"]
["Endringsdato for UKESATS ",{"$f":"IF(INDIRECT(ADDRESS(ROW()-1,COLUMN()))<>\"\",INDIRECT(ADDRESS(ROW()-1,COLUMN())),\"\")","v":""},{"$f":"IF(INDIRECT(ADDRESS(ROW()-1,COLUMN()))<>\"\",INDIRECT(ADDRESS(ROW()-1,COLUMN())),\"\")","v":""},"UKESDATO ",1992,1999,null,null,"F_DAGP_TOM19991243"]
["Merking av fødselsnummer ",null,null,"MRK_FNR ",1992,1999,null,null,"F_DAGP_TOM19991244"]
["Merking av datokorreksjoner ",null,null,"MRK_DL ",1992,1999,null,null,"F_DAGP_TOM19991245"]
["Teknisk hjelpevariabel - sluttdato for hovedtilfelle ",{"$f":"IF(B69<>\"\",B69,\"\")","v":""},{"$f":"IF(C69<>\"\",C69,\"\")","v":""},"TOMDATO ",1992,1999,null,null,"F_DAGP_TOM19991246"]
[]
["*Skriv ønskede årganger i første ruten for å velge obligatoriske variabler"]
["AVSLAG UFØREPENSJON\nTabell: Avslag uførepensjon (TAB_AVSLAG)",null,null,null,1997,2011,null,null,null,null,"Særlig kategori (hele tabellen)"]
["Løpenummer (avidentifisert fødselsnummer)",{"$f":"IF(B88<>\"\",B88,\"\")","v":""},{"$f":"IF(C88<>\"\",C88,\"\")","v":""},"wXX_XXXX_lnr ",1997,2011,null,null,"TAB_AVSLAG ",null,"Særlig kategori"]
["Vedtaksdato ",{"$f":"IF(B88<>\"\",B88,\"\")","v":""},{"$f":"IF(C88<>\"\",C88,\"\")","v":""},"VEDTDATO ",1997,2011,null,null,"TAB_AVSLAG ",null,"Særlig kategori"]
["Kravdato ",{"$f":"IF(B88<>\"\",B88,\"\")","v":""},{"$f":"IF(C88<>\"\",C88,\"\")","v":""},"KRAVDATO ",1997,2011,null,null,"TAB_AVSLAG ",null,"Særlig kategori"]
["Merking av fødselsnummer ",null,null,"MRK_FNR ",1997,2011,null,null,"TAB_AVSLAG ",null,"Særlig kategori"]
["Årgang",{"$f":"IF(B88<>\"\",B88,\"\")","v":""},{"$f":"IF(C88<>\"\",C88,\"\")","v":""},"AARG",1997,2011,null,null,"TAB_AVSLAG ",null,"Særlig kategori"]
[]
["*Skriv ønskede årganger i første ruten for å velge obligatoriske variabler"]
["BARNETRYGD\nTabell: Barn det mottas barnetrygd for (F_BARNETR_BARN)",null,null,null,1996,2023,null,null,null,null,null,"Ikke alle datovariable er nevnt i variabelomfanger, men inkluderes i uttrekket."]
["Løpenummer barn (avidentifisert fødselsnummer)",{"$f":"IF(B96<>\"\",B96,\"\")","v":""},{"$f":"IF(C96<>\"\",C96,\"\")","v":""},"wXX_XXXX_lnr_fnrb ",1996,2023,null,null,"F_BARNETR_BARN ",null,null,"MERK: TO FNR - FNR og FNRB "]
["Kode for barnetrygd barn ",{"$f":"IF(B96<>\"\",B96,\"\")","v":""},{"$f":"IF(C96<>\"\",C96,\"\")","v":""},"BTKODE ",1996,2023,null,null,"F_BARNETR_BARN "]
["Registreringsdato ",{"$f":"IF(B96<>\"\",B96,\"\")","v":""},{"$f":"IF(C96<>\"\",C96,\"\")","v":""},"REGDATO ",1996,2023,null,null,"F_BARNETR_BARN "]
["Tilgangsdato ",{"$f":"IF(B96<>\"\",B96,\"\")","v":""},{"$f":"IF(C96<>\"\",C96,\"\")","v":""},"TILGDATO ",1996,2023,null,null,"F_BARNETR_BARN "]
["Avgangsdato ",{"$f":"IF(B96<>\"\",B96,\"\")","v":""},{"$f":"IF(C96<>\"\",C96,\"\")","v":""},"AVGDATO ",1996,2023,null,null,"F_BARNETR_BARN "]
["Løpenummer til mottaker (avidentifisert fødselsnummer til mottaker)",{"$f":"IF(B96<>\"\",B96,\"\")","v":""},{"$f":"IF(C96<>\"\",C96,\"\")","v":""},"wXX_XXXX_lnr ",1996,2023,null,null,"F_BARNETR_BARN "]
["Barnets kjønn ",null,null,"KJONN ",1996,2023,null,null,"F_BARNETR_BARN "]
["Miniregisterkontroll - fødselsnummer til barn ",null,null,"MRK_FNRB ",1996,2023,null,null,"F_BARNETR_BARN "]
["Miniregisterkontroll - fødselsnummer til mottaker ",null,null,"MRK_FNR ",1996,2023,null,null,"F_BARNETR_BARN "]
["Til og med dato ",{"$f":"IF(B96<>\"\",B96,\"\")","v":""},{"$f":"IF(C96<>\"\",C96,\"\")","v":""},"TOMDATO ",1996,2023,null,null,"F_BARNETR_BARN "]
["Barnets fødselsår ",null,null,"FAAR ",1996,2023,null,null,"F_BARNETR_BARN "]
["Barnets fødselsår og måned ",null,null,"FAAR_MND ",1996,2023,null,null,"F_BARNETR_BARN "]
[]
["*Skriv ønskede årganger i første ruten for å velge obligatoriske variabler"]
["Tabell: Mottakere av barnetrygd (F_BARNETR_MOT)",null,null,null,1996,2023]
["Løpenummer (avidentifisert fødselsnummer)",{"$f":"IF(B111<>\"\",B111,\"\")","v":""},{"$f":"IF(C111<>\"\",C111,\"\")","v":""},"wXX_XXXX_lnr ",1996,2023,null,null,"F_BARNETR_MOT ","microdata.no",null,"Ikke alle datovariable er nevnt i variabelomfanger, men inkluderes i uttrekket."]
["Kode for barnetrygdmottaker ",{"$f":"IF(B111<>\"\",B111,\"\")","v":""},{"$f":"IF(C111<>\"\",C111,\"\")","v":""},"BTKODE ",1996,2023,null,null,"F_BARNETR_MOT "]
["Registreringsdato ",{"$f":"IF(B111<>\"\",B111,\"\")","v":""},{"$f":"IF(C111<>\"\",C111,\"\")","v":""},"REGDATO ",1996,2023,null,null,"F_BARNETR_MOT "]
["Tilgangsdato ",{"$f":"IF(B111<>\"\",B111,\"\")","v":""},{"$f":"IF(C111<>\"\",C111,\"\")","v":""},"TILGDATO ",1996,2023,null,null,"F_BARNETR_MOT ","microdata.no"]
["Avgangsdato",{"$f":"IF(B111<>\"\",B111,\"\")","v":""},{"$f":"IF(C111<>\"\",C111,\"\")","v":""},"AVGDATO",1996,2023,null,null,"F_BARNETR_MOT ","microdata.no"]
["Utbetalt beløp ",null,null,"BELOP ",1996,2023,null,null,"F_BARNETR_MOT ","microdata.no"]
["Endringsdato for utbetalt beløp",{"$f":"IF(INDIRECT(ADDRESS(ROW()-1,COLUMN()))<>\"\",INDIRECT(ADDRESS(ROW()-1,COLUMN())),\"\")","v":""},{"$f":"IF(INDIRECT(ADDRESS(ROW()-1,COLUMN()))<>\"\",INDIRECT(ADDRESS(ROW()-1,COLUMN())),\"\")","v":""},"BELOPDATO",1996,2023,null,null,"F_BARNETR_MOT "]
["Type barnetrygdstønad ",null,null,"STATUSK ",1996,2023,null,null,"F_BARNETR_MOT ","microdata.no","Særlig kategori"]
["Endringsdato for statuskode",{"$f":"IF(INDIRECT(ADDRESS(ROW()-1,COLUMN()))<>\"\",INDIRECT(ADDRESS(ROW()-1,COLUMN())),\"\")","v":""},{"$f":"IF(INDIRECT(ADDRESS(ROW()-1,COLUMN()))<>\"\",INDIRECT(ADDRESS(ROW()-1,COLUMN())),\"\")","v":""},"STATUSKDATO ",1996,2023,null,null,"F_BARNETR_MOT "]
["Antall barn det mottas barnetrygd for ",null,null,"ANTBARN ",1996,2023,null,null,"F_BARNETR_MOT ","microdata.no"]
["Endringsdato for antall barn",{"$f":"IF(INDIRECT(ADDRESS(ROW()-1,COLUMN()))<>\"\",INDIRECT(ADDRESS(ROW()-1,COLUMN())),\"\")","v":""},{"$f":"IF(INDIRECT(ADDRESS(ROW()-1,COLUMN()))<>\"\",INDIRECT(ADDRESS(ROW()-1,COLUMN())),\"\")","v":""},"ANTBARNDATO",1996,2023,null,null,"F_BARNETR_MOT "]
["Alder til yngste barn det mottas barnetrygd for ",null,null,"YBARN ",1996,2023,null,null,"F_BARNETR_MOT "]
["Mottakers kjønn ",null,null,"KJONN ",1996,2023,null,null,"F_BARNETR_MOT "]
["Til og med dato ",{"$f":"IF(B111<>\"\",B111,\"\")","v":""},{"$f":"IF(C111<>\"\",C111,\"\")","v":""},"TOMDATO ",1996,2023,null,null,"F_BARNETR_MOT "]
["Miniregisterkontroll - Fødselsnummer ",null,null,"MRK_FNR ",1996,2023,null,null,"F_BARNETR_MOT "]
[]
["*Skriv ønskede årganger i første ruten for å velge obligatoriske variabler"]
["DEMOGRAFI\nTabell: Bosatteforløpet i Norge (F_DEMO)",null,null,null,1992,2022]
["Løpenummer (avidentifisert fødselsnummer)",{"$f":"IF(B129<>\"\",B129,\"\")","v":""},{"$f":"IF(C129<>\"\",C129,\"\")","v":""},"wXX_XXXX_lnr ",1992,2022,null,null,"F_DEMO","microdata.no"]
["Hendelseskode for demografiopplysninger ",{"$f":"IF(B129<>\"\",B129,\"\")","v":""},{"$f":"IF(C129<>\"\",C129,\"\")","v":""},"KODE ",1992,2022,null,null,"F_DEMO"]
["Registreringsdato for demografiopplysninger  (må begrunnes i søknaden)",{"$f":"IF(B129<>\"\",B129,\"\")","v":""},{"$f":"IF(C129<>\"\",C129,\"\")","v":""},"REGDATO ",1992,2022,null,null,"F_DEMO",null,"Må begrunnes"]
["Tilgangsdato (må begrunnes i søknaden)",{"$f":"IF(B129<>\"\",B129,\"\")","v":""},{"$f":"IF(C129<>\"\",C129,\"\")","v":""},"TILGDATO ",1992,2022,null,null,"F_DEMO",null,"Må begrunnes"]
["Avgangsdato (døde og utvandrede) (må begrunnes i søknaden)",{"$f":"IF(B129<>\"\",B129,\"\")","v":""},{"$f":"IF(C129<>\"\",C129,\"\")","v":""},"AVGDATO ",1992,2022,null,null,"F_DEMO",null,"Må begrunnes"]
["Personens registreringsstatus ",null,null,"REGSTAT ",1992,2022,"definisjon","kodeliste","F_DEMO"]
["Endringsdato for personens registreringsstatus",{"$f":"IF(INDIRECT(ADDRESS(ROW()-1,COLUMN()))<>\"\",INDIRECT(ADDRESS(ROW()-1,COLUMN())),\"\")","v":""},{"$f":"IF(INDIRECT(ADDRESS(ROW()-1,COLUMN()))<>\"\",INDIRECT(ADDRESS(ROW()-1,COLUMN())),\"\")","v":""},"RESTDATO",1992,2022,null,null,"F_DEMO"]
["Personens statsborgerskap ",null,null,"STATSB ",1992,2022,"definisjon","kodeliste","F_DEMO"]
["Endringsdato for personens statsborgerskap",{"$f":"IF(INDIRECT(ADDRESS(ROW()-1,COLUMN()))<>\"\",INDIRECT(ADDRESS(ROW()-1,COLUMN())),\"\")","v":""},{"$f":"IF(INDIRECT(ADDRESS(ROW()-1,COLUMN()))<>\"\",INDIRECT(ADDRESS(ROW()-1,COLUMN())),\"\")","v":""},"STATDATO",1992,2022,null,null,"F_DEMO"]
["Bostedskommune ",null,null,"BOSTED ",1992,2022,"definisjon","kodeliste","F_DEMO","microdata.no"]
["Endringsdato for siste bosted (kommune) ",{"$f":"IF(INDIRECT(ADDRESS(ROW()-1,COLUMN()))<>\"\",INDIRECT(ADDRESS(ROW()-1,COLUMN())),\"\")","v":""},{"$f":"IF(INDIRECT(ADDRESS(ROW()-1,COLUMN()))<>\"\",INDIRECT(ADDRESS(ROW()-1,COLUMN())),\"\")","v":""},"BOSTDATO",1992,2022,null,null,"F_DEMO"]
["Type flytting (ved siste flytting) ",null,null,"FLYTTYPE ",1992,2022,"definisjon","kodeliste","F_DEMO"]
["Endringsdato for type flytting",{"$f":"IF(INDIRECT(ADDRESS(ROW()-1,COLUMN()))<>\"\",INDIRECT(ADDRESS(ROW()-1,COLUMN())),\"\")","v":""},{"$f":"IF(INDIRECT(ADDRESS(ROW()-1,COLUMN()))<>\"\",INDIRECT(ADDRESS(ROW()-1,COLUMN())),\"\")","v":""},"FLYTDATO",1992,2022,null,null,"F_DEMO"]
["Flyttet til/fra verdensdel ",null,null,"TFVDEL ",1992,2022,null,null,"F_DEMO"]
["Endringsdato for flyttet til/fra verdensdel",{"$f":"IF(INDIRECT(ADDRESS(ROW()-1,COLUMN()))<>\"\",INDIRECT(ADDRESS(ROW()-1,COLUMN())),\"\")","v":""},{"$f":"IF(INDIRECT(ADDRESS(ROW()-1,COLUMN()))<>\"\",INDIRECT(ADDRESS(ROW()-1,COLUMN())),\"\")","v":""},"TFVDDATO",1992,2022,null,null,"F_DEMO"]
["Flyttet til/fra land ",null,null,"TFLAND ",1992,2022,null,null,"F_DEMO"]
["Endringsdato for Flyttet til/fra land",{"$f":"IF(INDIRECT(ADDRESS(ROW()-1,COLUMN()))<>\"\",INDIRECT(ADDRESS(ROW()-1,COLUMN())),\"\")","v":""},{"$f":"IF(INDIRECT(ADDRESS(ROW()-1,COLUMN()))<>\"\",INDIRECT(ADDRESS(ROW()-1,COLUMN())),\"\")","v":""},"TFLADATO",1992,2022,null,null,"F_DEMO"]
["Miniregisterkontroll - fødselsnummer ",null,null,"MRK_FNR ",1992,2022,null,null,"F_DEMO"]
["Teknisk hjelpevariabel - sluttdato for tilfelle ",{"$f":"IF(B129<>\"\",B129,\"\")","v":""},{"$f":"IF(C129<>\"\",C129,\"\")","v":""},"TOMDATO ",1992,2022,null,null,"F_DEMO"]
["Teknisk hjelpevariabel - sluttdato for endringsrekord",null,null,"REGTOM",1992,2022,null,null,"F_DEMO"]
[]
["*Skriv ønskede årganger i første ruten for å velge obligatoriske variabler"]
["Tabell: Fødeland og andre konstante variable ",null,null,null,1992,2022]
["Løpenummer (avidentifisert fødselsnummer)",{"$f":"IF(B152<>\"\",B152,\"\")","v":""},{"$f":"IF(C152<>\"\",C152,\"\")","v":""},"wXX_XXXX_lnr ",1992,2022,"definisjon",null,"TAB_FLAN",null,null,"Datovariable = fødselsdato fjernes hvis ikke godkjent mottak av fødselsdato"]
["Fødeland ",null,null,"FODELAND ",1992,2022,"definisjon","kodeliste","TAB_FLAN"]
["Første oppholdsdato ",null,null,"OPPHDATO ",1992,2022,"definisjon",null,"TAB_FLAN"]
["Innvandrerkategori ",null,null,"INNVKAT ",1992,2022,"definisjon","kodeliste","TAB_FLAN",null,null,"Settes blank for personer ulik invkat B"]
["Landbakgrunn ",null,null,"LANDBAKG ",1992,2022,"definisjon","kodeliste","TAB_FLAN"]
["Kjønn ",null,null,"KJONN ",1992,2022,"definisjon","kodeliste","TAB_FLAN"]
["Fødselsår ",null,null,"FAAR ",1992,2022,"definisjon",null,"TAB_FLAN"]
["Miniregisterkontroll - fødselsnummer ",null,null,"MRK_FNR ",1992,2022,null,null,"TAB_FLAN"]
[]
["*Skriv ønskede årganger i første ruten for å velge obligatoriske variabler"]
["Tabell: Fødsler (TAB_FODS)",null,null,null,1992,2022]
["Barnets løpenummer (avidentifisert fødselsnummer) ",{"$f":"IF(B163<>\"\",B163,\"\")","v":""},{"$f":"IF(C163<>\"\",C163,\"\")","v":""},"wXX_XXXX_lnr ",1992,2022,null,null,"TAB_FODS "]
["Fødselsdato  (må begrunnes i søknaden)",null,null,"FDATO ",1992,2022,"definisjon",null,"TAB_FODS ",null,"Må begrunnes"]
["Levendefødt eller dødfødt ",null,null,"REGST ",1992,2022,null,null,"TAB_FODS "]
["Fødselstype ",null,null,"FODTYPE ",1992,2022,null,null,"TAB_FODS "]
["Barnets nummer i denne fødselen ",null,null,"FODTNR ",1992,2022,null,null,"TAB_FODS "]
["Antall fødsler moren har hatt etter 01.01.1992, inkl. denne ",null,null,"ANT_FODS ",1992,2022,null,null,"TAB_FODS "]
["Miniregisterkontroll - fødselsnummer, barn ",null,null,"MRK_FNR",1992,2022,null,null,"TAB_FODS "]
["Merkevariabel - merker av etterslepsopplysninger ",null,null,"MRK_ESLEP ",1992,2022,null,null,"TAB_FODS "]
["Årgang",{"$f":"IF(B163<>\"\",B163,\"\")","v":""},{"$f":"IF(C163<>\"\",C163,\"\")","v":""},"AARGANG",1992,2022,null,null,"TAB_FODS "]
[]
["*Skriv ønskede årganger i første ruten for å velge obligatoriske variabler"]
["Tabell: Grunnkrets/type bostedsstrøk (TAB_DEMO_GRKRETS)",null,null,null,1992,2022]
["Løpenummer (avidentifisert fødselsnummer)",{"$f":"IF(B175<>\"\",B175,\"\")","v":""},{"$f":"IF(C175<>\"\",C175,\"\")","v":""},"wXX_XXXX_lnr ",1992,2022,null,null,"TAB_DEMO_GRKRETS ",null,null,"Datovariable = fødselsdato fjernes hvis ikke godkjent mottak av fødselsdato"]
["Registreringsdato for grunnkretsopplysninger ",{"$f":"IF(B175<>\"\",B175,\"\")","v":""},{"$f":"IF(C175<>\"\",C175,\"\")","v":""},"REGDATO ",1992,2022,null,null,"TAB_DEMO_GRKRETS "]
["Personens registreringsstatus ",null,null,"REGSTAT ",1992,2022,"definisjon","kodeliste","TAB_DEMO_GRKRETS "]
["Grunnkrets (må begrunnes i søknaden)",null,null,"GRKRETS ",1992,2022,"definisjon","kodeliste","TAB_DEMO_GRKRETS ",null,"Må begrunnes"]
["Miniregisterkontroll - fødselsnummer ",null,null,"MRK_FNR ",1992,2022,null,null,"TAB_DEMO_GRKRETS "]
["Hvilken årgang opplysningen stammer fra ",{"$f":"IF(B175<>\"\",B175,\"\")","v":""},{"$f":"IF(C175<>\"\",C175,\"\")","v":""},"AARGANG ",1992,2022,null,null,"TAB_DEMO_GRKRETS "]
[]
["*Skriv ønskede årganger i første ruten for å velge obligatoriske variabler"]
["Tabell: Sivilstandsforløpet (F_DEMO_SIV)",null,null,null,1992,2022,null,null,null,null,null,"Datovariable = fødselsdato fjernes hvis ikke godkjent mottak av fødselsdato"]
["Løpenummer (avidentifisert fødselsnummer)",{"$f":"IF(B184<>\"\",B184,\"\")","v":""},{"$f":"IF(C184<>\"\",C184,\"\")","v":""},"wXX_XXXX_lnr ",1992,2022,null,null,"F_DEMO_SIV ","microdata.no"]
["Hendelseskode for sivilstandsopplysninger ",{"$f":"IF(B184<>\"\",B184,\"\")","v":""},{"$f":"IF(C184<>\"\",C184,\"\")","v":""},"KODE ",1992,2022,null,null,"F_DEMO_SIV "]
["Registreringsdato for sivilstandsopplysninger ",{"$f":"IF(B184<>\"\",B184,\"\")","v":""},{"$f":"IF(C184<>\"\",C184,\"\")","v":""},"REGDATO ",1992,2022,null,null,"F_DEMO_SIV ",null,null,"Kan være = fødselsdato for ugifte (sivilstand = 1)"]
["Tilgangsdato for sivilstandstilfelle ",{"$f":"IF(B184<>\"\",B184,\"\")","v":""},{"$f":"IF(C184<>\"\",C184,\"\")","v":""},"TILGDATO ",1992,2022,null,null,"F_DEMO_SIV "]
["Avgangsdato (døde) (må begrunnes i søknaden)",{"$f":"IF(B184<>\"\",B184,\"\")","v":""},{"$f":"IF(C184<>\"\",C184,\"\")","v":""},"AVGDATO ",1992,2022,null,null,"F_DEMO_SIV ",null,"Må begrunnes"]
["Kode for sivilstand ",{"$f":"IF(B184<>\"\",B184,\"\")","v":""},{"$f":"IF(C184<>\"\",C184,\"\")","v":""},"SIVSTAND ",1992,2022,"definisjon","kodeliste","F_DEMO_SIV ","microdata.no"]
["Endringsdato for sivilstandsopplysning",{"$f":"IF(B184<>\"\",B184,\"\")","v":""},{"$f":"IF(C184<>\"\",C184,\"\")","v":""},"SIVDATO",1992,2022,null,null,"F_DEMO_SIV "]
["Løpenummer for partner/ektefelle ",null,null,"SIVNR ",1992,2022,null,null,"F_DEMO_SIV "]
["Endringsdato for løpenummer for partner/ektefelle",{"$f":"IF(INDIRECT(ADDRESS(ROW()-1,COLUMN()))<>\"\",INDIRECT(ADDRESS(ROW()-1,COLUMN())),\"\")","v":""},{"$f":"IF(INDIRECT(ADDRESS(ROW()-1,COLUMN()))<>\"\",INDIRECT(ADDRESS(ROW()-1,COLUMN())),\"\")","v":""},"SIVNRDATO",1992,2022,null,null,"F_DEMO_SIV "]
["Miniregisterkontroll - fødselsnummer ",null,null,"MRK_FNR ",1992,2022,null,null,"F_DEMO_SIV "]
["Teknisk hjelpevariabel - sluttdato for tilfelle ",{"$f":"IF(B184<>\"\",B184,\"\")","v":""},{"$f":"IF(C184<>\"\",C184,\"\")","v":""},"TOMDATO ",1992,2022,null,null,"F_DEMO_SIV "]
["Teknisk hjelpevariabel - sluttdato for endringsrekord",null,null,"REGTOM",1992,2022,null,null,"F_DEMO_SIV "]
[]
["*Skriv ønskede årganger i første ruten for å velge obligatoriske variabler"]
["ENSLIG FORSØRGERSTØNAD\nTabell: Overgangsstønad (F_ENSL_OVGST)",null,null,null,1992,2023,null,null,null,null,"Inngripende / sensitiv (hele tabellen)","Ikke alle datovariable er nevnt i variabelomfanger, men inkluderes i uttrekket."]
["Løpenummer (avidentifisert fødselsnummer)",{"$f":"IF(B199<>\"\",B199,\"\")","v":""},{"$f":"IF(C199<>\"\",C199,\"\")","v":""},"wXX_XXXX_lnr ",1992,2023,null,null,"F_ENSL_OVGST ","microdata.no","Inngripende / sensitiv"]
["Kode for overgangsstønad ",{"$f":"IF(B199<>\"\",B199,\"\")","v":""},{"$f":"IF(C199<>\"\",C199,\"\")","v":""},"OVGKODE ",1992,2023,null,null,"F_ENSL_OVGST ",null,"Inngripende / sensitiv"]
["Registreringsdato for enslige forsørgere ",{"$f":"IF(B199<>\"\",B199,\"\")","v":""},{"$f":"IF(C199<>\"\",C199,\"\")","v":""},"REGDATO ",1992,2023,null,null,"F_ENSL_OVGST ",null,"Inngripende / sensitiv"]
["Tilgangsdato for overgangsstønad ",{"$f":"IF(B199<>\"\",B199,\"\")","v":""},{"$f":"IF(C199<>\"\",C199,\"\")","v":""},"OVGTILG ",1992,2023,null,null,"F_ENSL_OVGST ","microdata.no","Inngripende / sensitiv"]
["Avgangsdato for overgangsstønad ",{"$f":"IF(B199<>\"\",B199,\"\")","v":""},{"$f":"IF(C199<>\"\",C199,\"\")","v":""},"OVGAVG ",1992,2023,null,null,"F_ENSL_OVGST ","microdata.no","Inngripende / sensitiv"]
["Forventet årsinntekt ",null,null,"INNT ",1992,2023,null,null,"F_ENSL_OVGST ",null,"Inngripende / sensitiv"]
["Endringsdato for forventet årsinntekt",{"$f":"IF(INDIRECT(ADDRESS(ROW()-1,COLUMN()))<>\"\",INDIRECT(ADDRESS(ROW()-1,COLUMN())),\"\")","v":""},{"$f":"IF(INDIRECT(ADDRESS(ROW()-1,COLUMN()))<>\"\",INDIRECT(ADDRESS(ROW()-1,COLUMN())),\"\")","v":""},"INNTDATO",1992,2023,null,null,"F_ENSL_OVGST ",null,"Inngripende / sensitiv"]
["Overgangsstønad ",null,null,"OVGST ",1992,2023,null,null,"F_ENSL_OVGST ",null,"Inngripende / sensitiv"]
["Endringsdato for overgangsstønad ",{"$f":"IF(INDIRECT(ADDRESS(ROW()-1,COLUMN()))<>\"\",INDIRECT(ADDRESS(ROW()-1,COLUMN())),\"\")","v":""},{"$f":"IF(INDIRECT(ADDRESS(ROW()-1,COLUMN()))<>\"\",INDIRECT(ADDRESS(ROW()-1,COLUMN())),\"\")","v":""},"OVGSDATO",1992,2023,null,null,"F_ENSL_OVGST ",null,"Inngripende / sensitiv"]
["Miniregisterkontroll - fødselsnummer ",null,null,"MRK_FNR ",1992,2023,null,null,"F_ENSL_OVGST ",null,"Inngripende / sensitiv"]
["Hjelpevariabel 2 ",{"$f":"IF(B200<>\"\",B200,\"\")","v":""},{"$f":"IF(C199<>\"\",C199,\"\")","v":""},"OVGTOM ",1992,2023,null,null,"F_ENSL_OVGST ",null,"Inngripende / sensitiv"]
[]
["*Skriv ønskede årganger i første ruten for å velge obligatoriske variabler"]
["Tabell: Stønad til barnetilsyn (F_ENSL_BTLSN)",null,null,null,1992,2023,null,null,null,null,null,"Ikke alle datovariable er nevnt i variabelomfanger, men inkluderes i uttrekket."]
["Løpenummer (avidentifisert fødselsnummer)",{"$f":"IF(B213<>\"\",B213,\"\")","v":""},{"$f":"IF(B213<>\"\",B213,\"\")","v":""},"wXX_XXXX_lnr ",1992,2023,null,null,"F_ENSL_BTLSN ","microdata.no"]
["Kode for barnetilsyn ",{"$f":"IF(B213<>\"\",B213,\"\")","v":""},{"$f":"IF(B213<>\"\",B213,\"\")","v":""},"BTKODE ",1992,2023,null,null,"F_ENSL_BTLSN "]
["Registreringsdato for enslige forsørgere ",{"$f":"IF(B213<>\"\",B213,\"\")","v":""},{"$f":"IF(B213<>\"\",B213,\"\")","v":""},"REGDATO ",1992,2023,null,null,"F_ENSL_BTLSN "]
["Tilgangsdato for barnetilsyn ",{"$f":"IF(B213<>\"\",B213,\"\")","v":""},{"$f":"IF(B213<>\"\",B213,\"\")","v":""},"BTTILG ",1992,2023,null,null,"F_ENSL_BTLSN ","microdata.no"]
["Avgangsdato for barnetilsyn ",{"$f":"IF(B213<>\"\",B213,\"\")","v":""},{"$f":"IF(B213<>\"\",B213,\"\")","v":""},"BTAVG ",1992,2023,null,null,"F_ENSL_BTLSN ","microdata.no"]
["Forventet årsinntekt ",null,null,"INNT ",1992,2023,null,null,"F_ENSL_BTLSN "]
["Endringsdato for forventet årsinntekt",{"$f":"IF(INDIRECT(ADDRESS(ROW()-1,COLUMN()))<>\"\",INDIRECT(ADDRESS(ROW()-1,COLUMN())),\"\")","v":""},{"$f":"IF(INDIRECT(ADDRESS(ROW()-1,COLUMN()))<>\"\",INDIRECT(ADDRESS(ROW()-1,COLUMN())),\"\")","v":""},"INNTDATO",1992,2023,null,null,"F_ENSL_BTLSN "]
["Utbetalt beløp til barnetilsyn ",null,null,"BARNTIL ",1992,2023,null,null,"F_ENSL_BTLSN "]
["Endringsdato for barnetilsyn",{"$f":"IF(INDIRECT(ADDRESS(ROW()-1,COLUMN()))<>\"\",INDIRECT(ADDRESS(ROW()-1,COLUMN())),\"\")","v":""},{"$f":"IF(INDIRECT(ADDRESS(ROW()-1,COLUMN()))<>\"\",INDIRECT(ADDRESS(ROW()-1,COLUMN())),\"\")","v":""},"BARTDATO",1992,2023,null,null,"F_ENSL_BTLSN "]
["Miniregisterkontroll - fødselsnummer ",null,null,"MRK_FNR ",1992,2023,null,null,"F_ENSL_BTLSN "]
["Til og med dato gruppetilfelle ",{"$f":"IF(B213<>\"\",B213,\"\")","v":""},{"$f":"IF(B213<>\"\",B213,\"\")","v":""},"BTTOM ",1992,2023,null,null,"F_ENSL_BTLSN "]
[]
["*Skriv ønskede årganger i første ruten for å velge obligatoriske variabler"]
["Tabell: Utdanningsstønad (F_ENSL_UTDST)",null,null,null,1998,2015,null,null,null,null,null,"Ikke alle datovariable er nevnt i variabelomfanger, men inkluderes i uttrekket."]
["Løpenummer (avidentifisert fødselsnummer)",{"$f":"IF(B227<>\"\",B227,\"\")","v":""},{"$f":"IF(C227<>\"\",C227,\"\")","v":""},"wXX_XXXX_lnr ",1998,2015,null,null,"F_ENSL_UTDST ","microdata.no"]
["Kode for utdanningsstønad ",{"$f":"IF(B227<>\"\",B227,\"\")","v":""},{"$f":"IF(C227<>\"\",C227,\"\")","v":""},"UTDSKODE ",1998,2015,null,null,"F_ENSL_UTDST "]
["Registreringsdato for utdanningsst.opplysninger ",{"$f":"IF(B227<>\"\",B227,\"\")","v":""},{"$f":"IF(C227<>\"\",C227,\"\")","v":""},"REGDATO ",1998,2015,null,null,"F_ENSL_UTDST "]
["Tilgangsdato ",{"$f":"IF(B227<>\"\",B227,\"\")","v":""},{"$f":"IF(C227<>\"\",C227,\"\")","v":""},"UTDSTILG ",1998,2015,null,null,"F_ENSL_UTDST ","microdata.no"]
["Avgangsdato ",{"$f":"IF(B227<>\"\",B227,\"\")","v":""},{"$f":"IF(C227<>\"\",C227,\"\")","v":""},"UTDSAVG ",1998,2015,null,null,"F_ENSL_UTDST ","microdata.no"]
["Sum ordinær utdanningsstønad ",null,null,"SUMORD ",1998,2015,null,null,"F_ENSL_UTDST "]
["Endringsdato for sum ord. utdst.",{"$f":"IF(INDIRECT(ADDRESS(ROW()-1,COLUMN()))<>\"\",INDIRECT(ADDRESS(ROW()-1,COLUMN())),\"\")","v":""},{"$f":"IF(INDIRECT(ADDRESS(ROW()-1,COLUMN()))<>\"\",INDIRECT(ADDRESS(ROW()-1,COLUMN())),\"\")","v":""},"SORDDATO",1998,2015,null,null,"F_ENSL_UTDST "]
["Antall måneder med ordinær utdanningsstønad ",null,null,"MNDORD ",1998,2015,null,null,"F_ENSL_UTDST "]
["Endringsdato for ant. mnd. med ordinær utdst.",{"$f":"IF(INDIRECT(ADDRESS(ROW()-1,COLUMN()))<>\"\",INDIRECT(ADDRESS(ROW()-1,COLUMN())),\"\")","v":""},{"$f":"IF(INDIRECT(ADDRESS(ROW()-1,COLUMN()))<>\"\",INDIRECT(ADDRESS(ROW()-1,COLUMN())),\"\")","v":""},"MORDDATO",1998,2015,null,null,"F_ENSL_UTDST "]
["Sum utdanningsstønad som oppfølgingsleder ",null,null,"SUMOPPF ",1998,2015,null,null,"F_ENSL_UTDST "]
["Endringsdato for sum stønad oppfølgingsleder",{"$f":"IF(INDIRECT(ADDRESS(ROW()-1,COLUMN()))<>\"\",INDIRECT(ADDRESS(ROW()-1,COLUMN())),\"\")","v":""},{"$f":"IF(INDIRECT(ADDRESS(ROW()-1,COLUMN()))<>\"\",INDIRECT(ADDRESS(ROW()-1,COLUMN())),\"\")","v":""},"SOPFDATO",1998,2015,null,null,"F_ENSL_UTDST "]
["Antall måneder med utdanningsstønad som oppfølgingsleder ",null,null,"MNDOPPF ",1998,2015,null,null,"F_ENSL_UTDST "]
["Endringsdato for ant. mnd. som oppfølgingsleder",{"$f":"IF(INDIRECT(ADDRESS(ROW()-1,COLUMN()))<>\"\",INDIRECT(ADDRESS(ROW()-1,COLUMN())),\"\")","v":""},{"$f":"IF(INDIRECT(ADDRESS(ROW()-1,COLUMN()))<>\"\",INDIRECT(ADDRESS(ROW()-1,COLUMN())),\"\")","v":""},"MOPFDATO",1998,2015,null,null,"F_ENSL_UTDST "]
["Sum utdanningsstønad under aktivitetskurs ",null,null,"SUMAKT ",1998,2015,null,null,"F_ENSL_UTDST "]
["Endringsdato for sum stønad aktivitetskurs",{"$f":"IF(INDIRECT(ADDRESS(ROW()-1,COLUMN()))<>\"\",INDIRECT(ADDRESS(ROW()-1,COLUMN())),\"\")","v":""},{"$f":"IF(INDIRECT(ADDRESS(ROW()-1,COLUMN()))<>\"\",INDIRECT(ADDRESS(ROW()-1,COLUMN())),\"\")","v":""},"SAKTDATO",1998,2015,null,null,"F_ENSL_UTDST "]
["Antall måneder med utdanningsstønad under aktivitetskurs ",null,null,"MNDAKT ",1998,2015,null,null,"F_ENSL_UTDST "]
["Endringsdato for antall mnd. aktivitetskurs",{"$f":"IF(INDIRECT(ADDRESS(ROW()-1,COLUMN()))<>\"\",INDIRECT(ADDRESS(ROW()-1,COLUMN())),\"\")","v":""},{"$f":"IF(INDIRECT(ADDRESS(ROW()-1,COLUMN()))<>\"\",INDIRECT(ADDRESS(ROW()-1,COLUMN())),\"\")","v":""},"MAKTDATO",1998,2015,null,null,"F_ENSL_UTDST "]
["Miniregisterkontroll, fødselsnummer ",null,null,"MRK_FNR ",1998,2015,null,null,"F_ENSL_UTDST "]
["Hjelpevariabel - Datering av avgang for tilfelle ",{"$f":"IF(B227<>\"\",B227,\"\")","v":""},{"$f":"IF(C227<>\"\",C227,\"\")","v":""},"TOMDATO ",1998,2015,null,null,"F_ENSL_UTDST "]
[]
["*Skriv ønskede årganger i første ruten for å velge obligatoriske variabler"]
["FORELØPIG UFØRESTØNAD\nTabell: Foreløpig uførestønad (F_FUFOR)",null,null,null,1992,2010,null,null,null,null,"Særlig Kategori (hele tabellen)"]
["Løpenummer (avidentifisert fødselsnummer)",{"$f":"IF(B249<>\"\",B249,\"\")","v":""},{"$f":"IF(C249<>\"\",C249,\"\")","v":""},"wXX_XXXX_lnr ",1992,2010,null,null,"F_FUFOR ","microdata.no","Særlig Kategori"]
["Kode for foreløpig uførestønad (FUFOR) ",{"$f":"IF(B249<>\"\",B249,\"\")","v":""},{"$f":"IF(C249<>\"\",C249,\"\")","v":""},"FUFOKODE ",1992,2010,null,null,"F_FUFOR ",null,"Særlig Kategori"]
["Registreringsdato for FUFOR ",{"$f":"IF(B249<>\"\",B249,\"\")","v":""},{"$f":"IF(C249<>\"\",C249,\"\")","v":""},"REGDATO ",1992,2010,null,null,"F_FUFOR ",null,"Særlig Kategori"]
["FUFOR tilgangsdato ",{"$f":"IF(B249<>\"\",B249,\"\")","v":""},{"$f":"IF(C249<>\"\",C249,\"\")","v":""},"FUFOTILG ",1992,2010,null,null,"F_FUFOR ","microdata.no","Særlig Kategori"]
["FUFOR avgangsdato ",{"$f":"IF(B249<>\"\",B249,\"\")","v":""},{"$f":"IF(C249<>\"\",C249,\"\")","v":""},"FUFOAVG ",1992,2010,null,null,"F_FUFOR ","microdata.no","Særlig Kategori"]
["Uføregrad i prosent ",null,null,"UFG ",1992,2010,null,null,"F_FUFOR ","microdata.no","Særlig Kategori"]
["Endringsdato for uføregrad ",{"$f":"IF(INDIRECT(ADDRESS(ROW()-1,COLUMN()))<>\"\",INDIRECT(ADDRESS(ROW()-1,COLUMN())),\"\")","v":""},{"$f":"IF(INDIRECT(ADDRESS(ROW()-1,COLUMN()))<>\"\",INDIRECT(ADDRESS(ROW()-1,COLUMN())),\"\")","v":""},"UFGDATO ",1992,2010,null,null,"F_FUFOR ",null,"Særlig Kategori"]
["Spesialpoeng til unge uføre ",null,null,"BUPGAR ",1992,2010,null,null,"F_FUFOR ",null,"Særlig Kategori"]
["Endringsdato for bupgaranti",{"$f":"IF(INDIRECT(ADDRESS(ROW()-1,COLUMN()))<>\"\",INDIRECT(ADDRESS(ROW()-1,COLUMN())),\"\")","v":""},{"$f":"IF(INDIRECT(ADDRESS(ROW()-1,COLUMN()))<>\"\",INDIRECT(ADDRESS(ROW()-1,COLUMN())),\"\")","v":""},"BUPGDATO",1992,2010,null,null,"F_FUFOR ",null,"Særlig Kategori"]
["Grunnpensjonsfaktor ",null,null,"GPFAK ",1992,2010,null,null,"F_FUFOR ",null,"Særlig Kategori"]
["Endringsdato for grunnpensjon",{"$f":"IF(INDIRECT(ADDRESS(ROW()-1,COLUMN()))<>\"\",INDIRECT(ADDRESS(ROW()-1,COLUMN())),\"\")","v":""},{"$f":"IF(INDIRECT(ADDRESS(ROW()-1,COLUMN()))<>\"\",INDIRECT(ADDRESS(ROW()-1,COLUMN())),\"\")","v":""},"GFPDATO",1992,2010,null,null,"F_FUFOR ",null,"Særlig Kategori"]
["Tilleggspensjonsfaktor (inkl. garantitillegg) ",null,null,"TPFAK ",1992,2010,null,null,"F_FUFOR ",null,"Særlig Kategori"]
["Endringsdato tilleggspensjon",{"$f":"IF(INDIRECT(ADDRESS(ROW()-1,COLUMN()))<>\"\",INDIRECT(ADDRESS(ROW()-1,COLUMN())),\"\")","v":""},{"$f":"IF(INDIRECT(ADDRESS(ROW()-1,COLUMN()))<>\"\",INDIRECT(ADDRESS(ROW()-1,COLUMN())),\"\")","v":""},"TPFDATO",1992,2010,null,null,"F_FUFOR ",null,"Særlig Kategori"]
["Barnetilleggsfaktor ",null,null,"BTFAK ",1992,2010,null,null,"F_FUFOR ",null,"Særlig Kategori"]
["Endringsdato barnetillegg",{"$f":"IF(INDIRECT(ADDRESS(ROW()-1,COLUMN()))<>\"\",INDIRECT(ADDRESS(ROW()-1,COLUMN())),\"\")","v":""},{"$f":"IF(INDIRECT(ADDRESS(ROW()-1,COLUMN()))<>\"\",INDIRECT(ADDRESS(ROW()-1,COLUMN())),\"\")","v":""},"BTFDATO",1992,2010,null,null,"F_FUFOR ",null,"Særlig Kategori"]
["Ektefelletilleggsfaktor ",null,null,"ETFAK ",1992,2010,null,null,"F_FUFOR ",null,"Særlig Kategori"]
["Endringsdato ektefelletillegg",{"$f":"IF(INDIRECT(ADDRESS(ROW()-1,COLUMN()))<>\"\",INDIRECT(ADDRESS(ROW()-1,COLUMN())),\"\")","v":""},{"$f":"IF(INDIRECT(ADDRESS(ROW()-1,COLUMN()))<>\"\",INDIRECT(ADDRESS(ROW()-1,COLUMN())),\"\")","v":""},"ETFDATO",1992,2010,null,null,"F_FUFOR ",null,"Særlig Kategori"]
["Første uføretidspunkt ",null,null,"FUFT ",1992,2010,null,null,"F_FUFOR ",null,"Særlig Kategori"]
["Endringsdato for første uføretidspunkt",{"$f":"IF(INDIRECT(ADDRESS(ROW()-1,COLUMN()))<>\"\",INDIRECT(ADDRESS(ROW()-1,COLUMN())),\"\")","v":""},{"$f":"IF(INDIRECT(ADDRESS(ROW()-1,COLUMN()))<>\"\",INDIRECT(ADDRESS(ROW()-1,COLUMN())),\"\")","v":""},"FUFTDATO",1992,2010,null,null,"F_FUFOR ",null,"Særlig Kategori"]
["Første virkningsdato ",null,null,"FVIRK ",1992,2010,null,null,"F_FUFOR ",null,"Særlig Kategori"]
["Endringsdato for første virkningsdato",{"$f":"IF(INDIRECT(ADDRESS(ROW()-1,COLUMN()))<>\"\",INDIRECT(ADDRESS(ROW()-1,COLUMN())),\"\")","v":""},{"$f":"IF(INDIRECT(ADDRESS(ROW()-1,COLUMN()))<>\"\",INDIRECT(ADDRESS(ROW()-1,COLUMN())),\"\")","v":""},"FVRKDATO",1992,2010,null,null,"F_FUFOR ",null,"Særlig Kategori"]
["Miniregisterkontroll - fødselsnummer ",null,null,"MRK_FNR ",1992,2010,null,null,"F_FUFOR ",null,"Særlig Kategori"]
["Beregning av folketrygd (EØS) ",null,null,"BERTRYGD ",1992,2010,null,null,"F_FUFOR ",null,"Særlig Kategori"]
["Endringsdato for beregning av trygd EØS",{"$f":"IF(INDIRECT(ADDRESS(ROW()-1,COLUMN()))<>\"\",INDIRECT(ADDRESS(ROW()-1,COLUMN())),\"\")","v":""},{"$f":"IF(INDIRECT(ADDRESS(ROW()-1,COLUMN()))<>\"\",INDIRECT(ADDRESS(ROW()-1,COLUMN())),\"\")","v":""},"BERTDATO",1992,2010,null,null,"F_FUFOR ",null,"Særlig Kategori"]
["Til og med dato ",{"$f":"IF(B249<>\"\",B249,\"\")","v":""},{"$f":"IF(C249<>\"\",C249,\"\")","v":""},"TOMDATO ",1992,2010,null,null,"F_FUFOR ",null,"Særlig Kategori"]
[]
["*Skriv ønskede årganger i første ruten for å velge obligatoriske variabler"]
["FØDSELS- OG SYKEPENGER\nTabell: Aggregerte fødsels- og sykepenger (dager og beløp) (TAB_SUMFPSP)",null,null,null,1992,2016,null,null,null,null,"Særlig Kategori (hele tabellen)"]
["Løpenummer (avidentifisert fødselsnummer)",{"$f":"IF(B277<>\"\",B277,\"\")","v":""},{"$f":"IF(C277<>\"\",C277,\"\")","v":""},"wXX_XXXX_lnr ",1992,2016,null,null,"TAB_SUMFPSP ",null,"Særlig Kategori"]
["Arbeidsuførhetsdato ",{"$f":"IF(B277<>\"\",B277,\"\")","v":""},{"$f":"IF(C277<>\"\",C277,\"\")","v":""},"ARBUF ",1992,2016,null,null,"TAB_SUMFPSP ",null,"Særlig Kategori"]
["Skille mellom fødsels- og sykepenger ",{"$f":"IF(B277<>\"\",B277,\"\")","v":""},{"$f":"IF(C277<>\"\",C277,\"\")","v":""},"FOED ",1992,2016,null,null,"TAB_SUMFPSP ",null,"Særlig Kategori"]
["Hovedgrupper innenfor fødsels- og sykepengeordningen ",{"$f":"IF(B277<>\"\",B277,\"\")","v":""},{"$f":"IF(C277<>\"\",C277,\"\")","v":""},"GRUPPE ",1992,2016,null,null,"TAB_SUMFPSP ",null,"Særlig Kategori"]
["Fødsels- eller sykepenger som arbeidsledig ",{"$f":"IF(B277<>\"\",B277,\"\")","v":""},{"$f":"IF(C277<>\"\",C277,\"\")","v":""},"ARBLEDIG ",1992,2016,null,null,"TAB_SUMFPSP ",null,"Særlig Kategori"]
["Statusvariabel ",{"$f":"IF(B277<>\"\",B277,\"\")","v":""},{"$f":"IF(C277<>\"\",C277,\"\")","v":""},"STATUS ",1992,2016,null,null,"TAB_SUMFPSP ",null,"Særlig Kategori"]
["Utbetalingskonto ",{"$f":"IF(B277<>\"\",B277,\"\")","v":""},{"$f":"IF(C277<>\"\",C277,\"\")","v":""},"KONTO ",1992,2016,null,null,"TAB_SUMFPSP ",null,"Særlig Kategori"]
["Antall dager summert med utbetalt stønad ",{"$f":"IF(B277<>\"\",B277,\"\")","v":""},{"$f":"IF(C277<>\"\",C277,\"\")","v":""},"DAGER ",1992,2016,null,null,"TAB_SUMFPSP ",null,"Særlig Kategori"]
["Totalt summert utbetalt beløp ",{"$f":"IF(B277<>\"\",B277,\"\")","v":""},{"$f":"IF(C277<>\"\",C277,\"\")","v":""},"BELOP ",1992,2016,null,null,"TAB_SUMFPSP ",null,"Særlig Kategori"]
["Regnskapsår ",{"$f":"IF(B277<>\"\",B277,\"\")","v":""},{"$f":"IF(C277<>\"\",C277,\"\")","v":""},"AAR ",1992,2016,null,null,"TAB_SUMFPSP ",null,"Særlig Kategori"]
[]
["*Skriv ønskede årganger i første ruten for å velge obligatoriske variabler"]
["Tabell: Fødselspenger (F_FP)\n*MERK: Koder for adopsjonspenger (30-33) kodes om til \"andre\" (40-43) hvis ikke annet fremgår i søknaden til SSB",null,null,null,1992,2015]
["Løpenummer (avidentifisert fødselsnummer)",{"$f":"IF(B290<>\"\",B290,\"\")","v":""},{"$f":"IF(C290<>\"\",C290,\"\")","v":""},"wXX_XXXX_lnr ",1992,2015,null,null,"F_FP "]
["Kode for fødselspenger ",{"$f":"IF(B290<>\"\",B290,\"\")","v":""},{"$f":"IF(C290<>\"\",C290,\"\")","v":""},"FPKODE ",1992,2015,null,null,"F_FP ",null,"Inngripende / sensitiv (kun hvis søkt særskilt om adopsjon, hvis ikke kodes denne om)"]
["Registreringsdato ",{"$f":"IF(B290<>\"\",B290,\"\")","v":""},{"$f":"IF(C290<>\"\",C290,\"\")","v":""},"REGDATO ",1992,2015,null,null,"F_FP "]
["Tilgangsdato for fødselspengetilfellet ",{"$f":"IF(B290<>\"\",B290,\"\")","v":""},{"$f":"IF(C290<>\"\",C290,\"\")","v":""},"TILGDATO ",1992,2015,null,null,"F_FP "]
["Avgangsdato for fødselspengetilfellet ",{"$f":"IF(B290<>\"\",B290,\"\")","v":""},{"$f":"IF(C290<>\"\",C290,\"\")","v":""},"AVGDATO ",1992,2015,null,null,"F_FP "]
["Fødselspengegruppens tilgangsdato ",{"$f":"IF(B290<>\"\",B290,\"\")","v":""},{"$f":"IF(C290<>\"\",C290,\"\")","v":""},"FPTILG ",1992,2015,null,null,"F_FP "]
["Fødselspengegruppens avgangsdato ",{"$f":"IF(B290<>\"\",B290,\"\")","v":""},{"$f":"IF(C290<>\"\",C290,\"\")","v":""},"FPAVG ",1992,2015,null,null,"F_FP "]
["Fødselspenger som arbeidsledige ",null,null,"ARBLEDIG ",1992,2015,null,null,"F_FP "]
["Endringsdato for fødselspenger som arbeidsledig",{"$f":"IF(INDIRECT(ADDRESS(ROW()-1,COLUMN()))<>\"\",INDIRECT(ADDRESS(ROW()-1,COLUMN())),\"\")","v":""},{"$f":"IF(INDIRECT(ADDRESS(ROW()-1,COLUMN()))<>\"\",INDIRECT(ADDRESS(ROW()-1,COLUMN())),\"\")","v":""},"ARBLDATO",1992,2015,null,null,"F_FP "]
["Kombinert med sykepenger ",null,null,"KOMBSP ",1992,2015,null,null,"F_FP ",null,"Særlig Kategori"]
["Endringsdato for Kombinert med sykepenger",{"$f":"IF(INDIRECT(ADDRESS(ROW()-1,COLUMN()))<>\"\",INDIRECT(ADDRESS(ROW()-1,COLUMN())),\"\")","v":""},{"$f":"IF(INDIRECT(ADDRESS(ROW()-1,COLUMN()))<>\"\",INDIRECT(ADDRESS(ROW()-1,COLUMN())),\"\")","v":""},"KOMBDATO",1992,2015,null,null,"F_FP ",null,"Særlig Kategori"]
["Utbetalingsgrunnlag for fødselspenger ",null,null,"INNT ",1992,2015,null,null,"F_FP "]
["Endringsdato for Utbetalingsgrunnlag for fødselspenger",{"$f":"IF(INDIRECT(ADDRESS(ROW()-1,COLUMN()))<>\"\",INDIRECT(ADDRESS(ROW()-1,COLUMN())),\"\")","v":""},{"$f":"IF(INDIRECT(ADDRESS(ROW()-1,COLUMN()))<>\"\",INDIRECT(ADDRESS(ROW()-1,COLUMN())),\"\")","v":""},"INNTDATO",1992,2015,null,null,"F_FP "]
["Uttaksprosent ",null,null,"FPREGR ",1992,2015,null,null,"F_FP "]
["Antall barn det utbetales fødselspenger for ",null,null,"ABUTB ",1992,2015,null,null,"F_FP "]
["Årsak til unntak fra fedrekvoten ",null,null,"AARSAK ",1992,2015,null,null,"F_FP ",null,"Særlig Kategori"]
["Endringsdato for årsak til unntak fra fedrekvoten",{"$f":"IF(INDIRECT(ADDRESS(ROW()-1,COLUMN()))<>\"\",INDIRECT(ADDRESS(ROW()-1,COLUMN())),\"\")","v":""},{"$f":"IF(INDIRECT(ADDRESS(ROW()-1,COLUMN()))<>\"\",INDIRECT(ADDRESS(ROW()-1,COLUMN())),\"\")","v":""},"AARSDATO",1992,2015,null,null,"F_FP "]
["Første tidspunkt for tidskontouttak ",null,null,"FORSTUT ",1992,2015,null,null,"F_FP "]
["Stillingsandel før uttak av tidskonto ",null,null,"STILAND ",1992,2015,null,null,"F_FP "]
["Tidskontoprosent ",null,null,"TIDSPRO ",1992,2015,null,null,"F_FP "]
["Samtidig tidskonto for mor og far ",null,null,"SAMTIDS ",1992,2015,null,null,"F_FP "]
["Bortfallsgrunn ",null,null,"BORTFGR ",1992,2015,null,null,"F_FP "]
["Antall erstattede dager ",null,null,"ERDAG ",1992,2015,null,null,"F_FP "]
["Erstattet beløp ",null,null,"ERTLF ",1992,2015,null,null,"F_FP "]
["Antall erstattede dager ",null,null,"AVDAG ",1992,2015,null,null,"F_FP "]
["Erstattet beløp i kroner ",null,null,"AVTLF ",1992,2015,null,null,"F_FP "]
["Merking av fødselsnummer ",null,null,"MRK_FNR ",1992,2015,null,null,"F_FP "]
["Til og med dato ",{"$f":"IF(B290<>\"\",B290,\"\")","v":""},{"$f":"IF(C290<>\"\",C290,\"\")","v":""},"TOMDATO ",1992,2015,null,null,"F_FP "]
["Til og med dato gruppetilfelle ",{"$f":"IF(B290<>\"\",B290,\"\")","v":""},{"$f":"IF(C290<>\"\",C290,\"\")","v":""},"FPTOM ",1992,2015,null,null,"F_FP "]
[]
["*Skriv ønskede årganger i første ruten for å velge obligatoriske variabler"]
["Tabell: Sykepenger (F_SP)",null,null,null,1992,2019,null,null,null,null,"Særlig Kategori (hele tabellen)"]
["Løpenummer (avidentifisert fødselsnummer)",{"$f":"IF(B322<>\"\",B322,\"\")","v":""},{"$f":"IF(C322<>\"\",C322,\"\")","v":""},"wXX_XXXX_lnr ",1992,2019,null,null,"F_SP",null,"Særlig Kategori"]
["Kode for sykepenger (grupper og hendelser) ",{"$f":"IF(B322<>\"\",B322,\"\")","v":""},{"$f":"IF(C322<>\"\",C322,\"\")","v":""},"SPKODE ",1992,2019,null,null,"F_SP",null,"Særlig Kategori"]
["Registreringsdato for type sykepenger ",{"$f":"IF(B322<>\"\",B322,\"\")","v":""},{"$f":"IF(C322<>\"\",C322,\"\")","v":""},"REGDATO ",1992,2019,null,null,"F_SP",null,"Særlig Kategori"]
["Tilgangsdato for sykepenger (uavhengig av gruppe) ",{"$f":"IF(B322<>\"\",B322,\"\")","v":""},{"$f":"IF(C322<>\"\",C322,\"\")","v":""},"TILGDATO ",1992,2019,null,null,"F_SP",null,"Særlig Kategori"]
["Avgangsdato for perioden ",{"$f":"IF(B322<>\"\",B322,\"\")","v":""},{"$f":"IF(C322<>\"\",C322,\"\")","v":""},"AVGDATO ",1992,2019,null,null,"F_SP",null,"Særlig Kategori"]
["Sykepengegruppens tilgangsdato ",{"$f":"IF(B322<>\"\",B322,\"\")","v":""},{"$f":"IF(C322<>\"\",C322,\"\")","v":""},"SPTILG ",1992,2019,null,null,"F_SP",null,"Særlig Kategori"]
["Sykepengegruppens avgangsdato ",{"$f":"IF(B322<>\"\",B322,\"\")","v":""},{"$f":"IF(C322<>\"\",C322,\"\")","v":""},"SPAVG ",1992,2019,null,null,"F_SP",null,"Særlig Kategori"]
["Arbeidsuførhetsdato ",{"$f":"IF(B322<>\"\",B322,\"\")","v":""},{"$f":"IF(C322<>\"\",C322,\"\")","v":""},"ARBUF ",1992,2019,null,null,"F_SP",null,"Særlig Kategori"]
["Angir sykepenger fom. dato ",null,null,"SPFOM ",1992,2019,null,null,"F_SP",null,"Særlig Kategori"]
["Angir sykepenger tom. dato ",null,null,"SPTOM ",1992,2019,null,null,"F_SP",null,"Særlig Kategori"]
["Sykepenger som arbeidsledig ",null,null,"ARBLEDIG ",1992,2019,null,null,"F_SP",null,"Særlig Kategori"]
["Endringsdato for mottak av sykepenger som arbeidsledig",{"$f":"IF(INDIRECT(ADDRESS(ROW()-1,COLUMN()))<>\"\",INDIRECT(ADDRESS(ROW()-1,COLUMN())),\"\")","v":""},{"$f":"IF(INDIRECT(ADDRESS(ROW()-1,COLUMN()))<>\"\",INDIRECT(ADDRESS(ROW()-1,COLUMN())),\"\")","v":""},"ARBLDATO ",1992,2019,null,null,"F_SP",null,"Særlig Kategori"]
["Prognosegruppe ",null,null,"PROGR ",1992,2019,null,null,"F_SP",null,"Særlig Kategori"]
["Endringsdato for prognosegruppe",{"$f":"IF(INDIRECT(ADDRESS(ROW()-1,COLUMN()))<>\"\",INDIRECT(ADDRESS(ROW()-1,COLUMN())),\"\")","v":""},{"$f":"IF(INDIRECT(ADDRESS(ROW()-1,COLUMN()))<>\"\",INDIRECT(ADDRESS(ROW()-1,COLUMN())),\"\")","v":""},"PROGDATO",1992,2019,null,null,"F_SP",null,"Særlig Kategori"]
["Sykepengegrad i prosent ",null,null,"SPGRAD ",1992,2019,null,null,"F_SP",null,"Særlig Kategori"]
["Endringsdato for sykepengegrad",{"$f":"IF(INDIRECT(ADDRESS(ROW()-1,COLUMN()))<>\"\",INDIRECT(ADDRESS(ROW()-1,COLUMN())),\"\")","v":""},{"$f":"IF(INDIRECT(ADDRESS(ROW()-1,COLUMN()))<>\"\",INDIRECT(ADDRESS(ROW()-1,COLUMN())),\"\")","v":""},"SPGRDATO",1992,2019,null,null,"F_SP",null,"Særlig Kategori"]
["Inntektsgrunnlag for sykepenger ",null,null,"INNT ",1992,2019,null,null,"F_SP",null,"Særlig Kategori"]
["Endringsdato for inntektsgrunnlaget",{"$f":"IF(INDIRECT(ADDRESS(ROW()-1,COLUMN()))<>\"\",INDIRECT(ADDRESS(ROW()-1,COLUMN())),\"\")","v":""},{"$f":"IF(INDIRECT(ADDRESS(ROW()-1,COLUMN()))<>\"\",INDIRECT(ADDRESS(ROW()-1,COLUMN())),\"\")","v":""},"INNTDATO",1992,2019,null,null,"F_SP",null,"Særlig Kategori"]
["Bortfallsgrunn ",null,null,"BORTFGR ",1992,2019,null,null,"F_SP",null,"Særlig Kategori"]
["Antall erstattede dager ",null,null,"ERDAG ",1992,2019,null,null,"F_SP",null,"Særlig Kategori"]
["Erstattet beløp ",null,null,"ERTLF ",1992,2019,null,null,"F_SP",null,"Særlig Kategori"]
["Antall erstattede dager ",null,null,"AVDAG ",1992,2019,null,null,"F_SP",null,"Særlig Kategori"]
["Erstattet beløp i kroner ",null,null,"AVTLF ",1992,2019,null,null,"F_SP",null,"Særlig Kategori"]
["Merking av fødselsnummer ",null,null,"MRK_FNR ",1992,2019,null,null,"F_SP",null,"Særlig Kategori"]
["Aktiv/passiv sykemelding ",null,null,"FORM5 ",1992,2019,null,null,"F_SP",null,"Særlig Kategori"]
["Endringsdato for FORM5",{"$f":"IF(INDIRECT(ADDRESS(ROW()-1,COLUMN()))<>\"\",INDIRECT(ADDRESS(ROW()-1,COLUMN())),\"\")","v":""},{"$f":"IF(INDIRECT(ADDRESS(ROW()-1,COLUMN()))<>\"\",INDIRECT(ADDRESS(ROW()-1,COLUMN())),\"\")","v":""},"FRM5DATO",1992,2019,null,null,"F_SP",null,"Særlig Kategori"]
["Statsansatte - fra 2001",null,null,"STATSAN ",1992,2019,null,null,"F_SP",null,"Særlig Kategori"]
["Endringsdato for statsansatt",{"$f":"IF(INDIRECT(ADDRESS(ROW()-1,COLUMN()))<>\"\",INDIRECT(ADDRESS(ROW()-1,COLUMN())),\"\")","v":""},{"$f":"IF(INDIRECT(ADDRESS(ROW()-1,COLUMN()))<>\"\",INDIRECT(ADDRESS(ROW()-1,COLUMN())),\"\")","v":""},"STATSANDATO",1992,2019,null,null,"F_SP",null,"Særlig Kategori"]
["Til og med dato ",{"$f":"IF(B322<>\"\",B322,\"\")","v":""},{"$f":"IF(C322<>\"\",C322,\"\")","v":""},"TOMDATO ",1992,2019,null,null,"F_SP",null,"Særlig Kategori"]
["Tiltakstype nummer en ",null,null,"ttype1 ",1992,2019,null,null,"F_SP",null,"Særlig Kategori"]
["Tiltakstype nummer to ",null,null,"ttype2 ",1992,2019,null,null,"F_SP",null,"Særlig Kategori"]
["Tiltakstype nummer tre ",null,null,"ttype3 ",1992,2019,null,null,"F_SP",null,"Særlig Kategori"]
[]
["*Skriv ønskede årganger i første ruten for å velge obligatoriske variabler"]
["GRUNN- OG HJELPESTØNAD\nTabell: Grunnstønad fra folketrygden, forløpstabell (F_GRUNN)",null,null,null,1992,2023,null,null,null,null,"Særlig Kategori (hele tabellen)"]
["Løpenummer (avidentifisert fødselsnummer)",{"$f":"IF(B357<>\"\",B357,\"\")","v":""},{"$f":"IF(C357<>\"\",C357,\"\")","v":""},"wXX_XXXX_lnr ",1992,2023,null,null,"F_GRUNN","microdata.no","Særlig Kategori"]
["Hendelseskode for grunnstønad ",{"$f":"IF(B357<>\"\",B357,\"\")","v":""},{"$f":"IF(C357<>\"\",C357,\"\")","v":""},"GS_KODE ",1992,2023,null,null,"F_GRUNN",null,"Særlig Kategori"]
["Registreringsdato ",{"$f":"IF(B357<>\"\",B357,\"\")","v":""},{"$f":"IF(C357<>\"\",C357,\"\")","v":""},"REGDATO ",1992,2023,null,null,"F_GRUNN",null,"Særlig Kategori"]
["Tilgangsdato for grunnstønad ",{"$f":"IF(B357<>\"\",B357,\"\")","v":""},{"$f":"IF(C357<>\"\",C357,\"\")","v":""},"GS_TILG ",1992,2023,null,null,"F_GRUNN","microdata.no","Særlig Kategori"]
["Avgangsdato for grunnstønad ",null,null,"GS_AVG ",1992,2023,null,null,"F_GRUNN","microdata.no","Særlig Kategori"]
["Månedsfil for opplysningen ",null,null,"PR_TIDS ",1992,2023,null,null,"F_GRUNN",null,"Særlig Kategori"]
["Fødselsnummerkontroll ",null,null,"MRK_FNR ",1992,2023,null,null,"F_GRUNN",null,"Særlig Kategori"]
["Til og med dato for tilfellet ",{"$f":"IF(B357<>\"\",B357,\"\")","v":""},{"$f":"IF(C357<>\"\",C357,\"\")","v":""},"GS_TOM ",1992,2023,null,null,"F_GRUNN",null,"Særlig Kategori"]
[]
["*Skriv ønskede årganger i første ruten for å velge obligatoriske variabler"]
["Tabell: Grunnstønad, oppslagstabell (TAB_GRUNN)",null,null,null,2009,2023,null,null,null,null,"Særlig Kategori (hele tabellen)"]
["Løpenummer (avidentifisert fødselsnummer)",{"$f":"IF(B368<>\"\",B368,\"\")","v":""},{"$f":"IF(C368<>\"\",C368,\"\")","v":""},"wXX_XXXX_lnr ",2009,2023,null,null,"TAB_GRUNN ",null,"Særlig Kategori"]
["Månedsfil for opplysningen ",{"$f":"IF(B368<>\"\",B368,\"\")","v":""},{"$f":"IF(C368<>\"\",C368,\"\")","v":""},"PR_TIDS ",2009,2023,null,null,"TAB_GRUNN ",null,"Særlig Kategori"]
["Mottak av grunnstønad ",null,null,"GRUNNST_BESTAND ",2009,2023,null,null,"TAB_GRUNN ",null,"Særlig Kategori"]
["Ny tilgang til grunnstønad ",null,null,"GRUNNST_TILGANG ",2009,2023,null,null,"TAB_GRUNN ",null,"Særlig Kategori"]
["Grunnstønad sats ",null,null,"GRUNNST_SATS ",2009,2023,null,null,"TAB_GRUNN ",null,"Særlig Kategori"]
["Grunnstønad beløp ",null,null,"GRUNNST_BELOP ",2009,2023,null,null,"TAB_GRUNN ",null,"Særlig Kategori"]
["Kode for opphør av grunnstønad ",null,null,"OPPHOR_GS_KODE ",2009,2023,null,null,"TAB_GRUNN ",null,"Særlig Kategori"]
["Beskrivelse av kode for opphør av grunnstønad ",null,null,"OPPHOR_GS_BESK ",2009,2023,null,null,"TAB_GRUNN ",null,"Særlig Kategori"]
["Dataårgang på miniregisterfilen ",{"$f":"IF(B368<>\"\",B368,\"\")","v":""},{"$f":"IF(C368<>\"\",C368,\"\")","v":""},"AARGANG ",2009,2023,null,null,"TAB_GRUNN ",null,"Særlig Kategori"]
["Fødselsnummerkontroll ",null,null,"MRK_FNR ",2009,2023,null,null,"TAB_GRUNN ",null,"Særlig Kategori"]
["Tilgangsdato for grunnstønad ",null,null,"GS_TILG ",2009,2023,null,null,"TAB_GRUNN ",null,"Særlig Kategori"]
[]
["*Skriv ønskede årganger i første ruten for å velge obligatoriske variabler"]
["Tabell: Grunnstønad, forløpstabell (F_GS)",null,null,null,1992,2008,null,null,null,null,"Særlig Kategori (hele tabellen)","Ikke alle datovariable er nevnt i variabelomfanger, men inkluderes i uttrekket."]
["Løpenummer (avidentifisert fødselsnummer)",{"$f":"IF(B382<>\"\",B382,\"\")","v":""},{"$f":"IF(C382<>\"\",C382,\"\")","v":""},"wXX_XXXX_lnr ",1992,2008,null,null,"F_GS",null,"Særlig Kategori"]
["Grunnstønadskode ",{"$f":"IF(B382<>\"\",B382,\"\")","v":""},{"$f":"IF(C382<>\"\",C382,\"\")","v":""},"GS ",1992,2008,null,null,"F_GS",null,"Særlig Kategori"]
["Registreringsdato ",{"$f":"IF(B382<>\"\",B382,\"\")","v":""},{"$f":"IF(C382<>\"\",C382,\"\")","v":""},"REGDATO ",1992,2008,null,null,"F_GS",null,"Særlig Kategori"]
["Tilgangsdato for grunnstønad ",{"$f":"IF(B382<>\"\",B382,\"\")","v":""},{"$f":"IF(C382<>\"\",C382,\"\")","v":""},"GSTILG ",1992,2008,null,null,"F_GS",null,"Særlig Kategori"]
["Avgangsdato fro grunnstønad ",{"$f":"IF(B382<>\"\",B382,\"\")","v":""},{"$f":"IF(C382<>\"\",C382,\"\")","v":""},"GSAVG ",1992,2008,null,null,"F_GS",null,"Særlig Kategori"]
["Grunnstønadsbeløp ",null,null,"GSKR ",1992,2008,null,null,"F_GS",null,"Særlig Kategori"]
["Første virkningsdato (tidspunkt) for grunnstønad - fra 1994",null,null,"FVTPGS ",1992,2008,null,null,"F_GS",null,"Særlig Kategori"]
["Endringsdato for første virkningsdato grunnstønad",{"$f":"IF(INDIRECT(ADDRESS(ROW()-1,COLUMN()))<>\"\",INDIRECT(ADDRESS(ROW()-1,COLUMN())),\"\")","v":""},{"$f":"IF(INDIRECT(ADDRESS(ROW()-1,COLUMN()))<>\"\",INDIRECT(ADDRESS(ROW()-1,COLUMN())),\"\")","v":""},"FVGSDATO",1992,2008,null,null,"F_GS",null,"Særlig Kategori"]
["Miniregisterkontroll - fødselsnummer ",null,null,"MRK_FNR ",1992,2008,null,null,"F_GS",null,"Særlig Kategori"]
["Til og med dato gruppetilfelle ",{"$f":"IF(B382<>\"\",B382,\"\")","v":""},{"$f":"IF(C382<>\"\",C382,\"\")","v":""},"GSTOM ",1992,2008,null,null,"F_GS",null,"Særlig Kategori"]
[]
["*Skriv ønskede årganger i første ruten for å velge obligatoriske variabler"]
["Tabell: Hjelpestønad fra folketrygden, forløpstabell (F_HJELP )",null,null,null,1992,2023,null,null,null,null,"Særlig Kategori (hele tabellen)"]
["Løpenummer (avidentifisert fødselsnummer)",{"$f":"IF(B395<>\"\",B395,\"\")","v":""},{"$f":"IF(C395<>\"\",C395,\"\")","v":""},"wXX_XXXX_lnr ",1992,2023,null,null,"F_HJELP ",null,"Særlig Kategori"]
["Hendelseskode for hjelpestønad ",{"$f":"IF(B395<>\"\",B395,\"\")","v":""},{"$f":"IF(C395<>\"\",C395,\"\")","v":""},"HS_KODE ",1992,2023,null,null,"F_HJELP ",null,"Særlig Kategori"]
["Registreringsdato ",{"$f":"IF(B395<>\"\",B395,\"\")","v":""},{"$f":"IF(C395<>\"\",C395,\"\")","v":""},"REGDATO ",1992,2023,null,null,"F_HJELP ",null,"Særlig Kategori"]
["Tilgangsdato for hjelpestønad ",{"$f":"IF(B395<>\"\",B395,\"\")","v":""},{"$f":"IF(C395<>\"\",C395,\"\")","v":""},"HS_TILG ",1992,2023,null,null,"F_HJELP ",null,"Særlig Kategori"]
["Avgangsdato for hjelpestønad ",{"$f":"IF(B395<>\"\",B395,\"\")","v":""},{"$f":"IF(C395<>\"\",C395,\"\")","v":""},"HS_AVG ",1992,2023,null,null,"F_HJELP ",null,"Særlig Kategori"]
["Fødselsnummerkontroll ",null,null,"MRK_FNR ",1992,2023,null,null,"F_HJELP ",null,"Særlig Kategori"]
["Til og med dato for tilfellet ",{"$f":"IF(B395<>\"\",B395,\"\")","v":""},{"$f":"IF(C395<>\"\",C395,\"\")","v":""},"HS_TOM ",1992,2023,null,null,"F_HJELP ",null,"Særlig Kategori"]
[]
["*Skriv ønskede årganger i første ruten for å velge obligatoriske variabler"]
["Tabell: Hjelpestønad, oppslagstabell (TAB_HJELP)",null,null,null,2009,2023,null,null,null,null,"Særlig Kategori (hele tabellen)"]
["Løpenummer (avidentifisert fødselsnummer)",{"$f":"IF(B405<>\"\",B405,\"\")","v":""},{"$f":"IF(C405<>\"\",C405,\"\")","v":""},"wXX_XXXX_lnr ",2009,2023,null,null,"TAB_HJELP ",null,"Særlig Kategori"]
["Månedsfil for opplysningen ",{"$f":"IF(B405<>\"\",B405,\"\")","v":""},{"$f":"IF(C405<>\"\",C405,\"\")","v":""},"PR_TIDS ",2009,2023,null,null,"TAB_HJELP ",null,"Særlig Kategori"]
["Mottak av hjelpestønad ",null,null,"HJELPEST_BESTAND ",2009,2023,null,null,"TAB_HJELP ",null,"Særlig Kategori"]
["Ny tilgang til hjelpestønad ",null,null,"HJELPEST_TILGANG ",2009,2023,null,null,"TAB_HJELP ",null,"Særlig Kategori"]
["Hjelpestønad sats ",null,null,"HJELPEST_SATS ",2009,2023,null,null,"TAB_HJELP ",null,"Særlig Kategori"]
["Hjelpestønad beløp ",null,null,"HJELPEST_BELOP ",2009,2023,null,null,"TAB_HJELP ",null,"Særlig Kategori"]
["Kode for opphør av hjelpestønad ",null,null,"OPPHOR_HS_KODE ",2009,2023,null,null,"TAB_HJELP ",null,"Særlig Kategori"]
["Beskrivelse av kode for opphør av hjelpestønad ",null,null,"OPPHOR_HS_BESK ",2009,2023,null,null,"TAB_HJELP ",null,"Særlig Kategori"]
["Fødselsnummerkontroll ",null,null,"MRK_FNR ",2009,2023,null,null,"TAB_HJELP ",null,"Særlig Kategori"]
["Tilgangsdato for hjelpestønad ",null,null,"HS_TILG ",2009,2023,null,null,"TAB_HJELP ",null,"Særlig Kategori"]
["Årgang",{"$f":"IF(B405<>\"\",B405,\"\")","v":""},{"$f":"IF(C405<>\"\",C405,\"\")","v":""},"AARGANG",2009,2023,null,null,"TAB_HJELP ",null,"Særlig Kategori"]
[]
["*Skriv ønskede årganger i første ruten for å velge obligatoriske variabler"]
["Tabell: Hjelpestønad, forløpstabell (F_HSU)",null,null,null,1992,2008,null,null,null,null,"Særlig Kategori (hele tabellen)"]
["Løpenummer (avidentifisert fødselsnummer)",{"$f":"IF(B419<>\"\",B419,\"\")","v":""},{"$f":"IF(C419<>\"\",C419,\"\")","v":""},"wXX_XXXX_lnr ",1992,2008,null,null,"F_HSU ",null,"Særlig Kategori"]
["Hjelpestønadskode ",{"$f":"IF(B419<>\"\",B419,\"\")","v":""},{"$f":"IF(C419<>\"\",C419,\"\")","v":""},"HSU ",1992,2008,null,null,"F_HSU ",null,"Særlig Kategori"]
["Registreringsdato for hsu ",{"$f":"IF(B419<>\"\",B419,\"\")","v":""},{"$f":"IF(C419<>\"\",C419,\"\")","v":""},"REGDATO ",1992,2008,null,null,"F_HSU ",null,"Særlig Kategori"]
["Tilgangsdato for hjelpestønad ",{"$f":"IF(B419<>\"\",B419,\"\")","v":""},{"$f":"IF(C419<>\"\",C419,\"\")","v":""},"HSUTILG ",1992,2008,null,null,"F_HSU ",null,"Særlig Kategori"]
["Avgangsdato for hjelpestønad ",{"$f":"IF(B419<>\"\",B419,\"\")","v":""},{"$f":"IF(C419<>\"\",C419,\"\")","v":""},"HSUAVG ",1992,2008,null,null,"F_HSU ",null,"Særlig Kategori"]
["Hjelpestønadsbeløp ",null,null,"HSUKR ",1992,2008,null,null,"F_HSU ",null,"Særlig Kategori"]
["Endringsdato for hjelpestønad kroner",{"$f":"IF(INDIRECT(ADDRESS(ROW()-1,COLUMN()))<>\"\",INDIRECT(ADDRESS(ROW()-1,COLUMN())),\"\")","v":""},{"$f":"IF(INDIRECT(ADDRESS(ROW()-1,COLUMN()))<>\"\",INDIRECT(ADDRESS(ROW()-1,COLUMN())),\"\")","v":""},"HSKRDATO",1992,2008,null,null,"F_HSU ",null,"Særlig Kategori"]
["Første vrikningsdato (tidspunkt) for hjelpestønad ",null,null,"FVTPHSU ",1992,2008,null,null,"F_HSU ",null,"Særlig Kategori"]
["Endringsdato for virkningsdato for hsu",{"$f":"IF(INDIRECT(ADDRESS(ROW()-1,COLUMN()))<>\"\",INDIRECT(ADDRESS(ROW()-1,COLUMN())),\"\")","v":""},{"$f":"IF(INDIRECT(ADDRESS(ROW()-1,COLUMN()))<>\"\",INDIRECT(ADDRESS(ROW()-1,COLUMN())),\"\")","v":""},"FVHSDATO",1992,2008,null,null,"F_HSU ",null,"Særlig Kategori"]
["Miniregisterkontroll - fødselsnummer ",null,null,"MRK_FNR ",1992,2008,null,null,"F_HSU ",null,"Særlig Kategori"]
["Til og med dato gruppetilfelle ",{"$f":"IF(B419<>\"\",B419,\"\")","v":""},{"$f":"IF(C419<>\"\",C419,\"\")","v":""},"HSUTOM ",1992,2008,null,null,"F_HSU ",null,"Særlig Kategori"]
[]
["*Skriv ønskede årganger i første ruten for å velge obligatoriske variabler"]
["INTRODUKSJONSSTØNAD\nTabell: Forløp over Introduksjonsstønad (F_INTRO)",null,null,null,2005,2021]
["Løpenummer (avidentifisert fødselsnummer)",{"$f":"IF(B433<>\"\",B433,\"\")","v":""},{"$f":"IF(C433<>\"\",C433,\"\")","v":""},"wXX_XXXX_lnr ",2005,2021,null,null,"F_INTRO","microdata.no"]
["Kode for introduksjonsordning for nyankomne innvandrere ",{"$f":"IF(B433<>\"\",B433,\"\")","v":""},{"$f":"IF(C433<>\"\",C433,\"\")","v":""},"KODE ",2005,2021,null,null,"F_INTRO"]
["Hendelsesdato for introduksjonsstønad ",{"$f":"IF(B433<>\"\",B433,\"\")","v":""},{"$f":"IF(C433<>\"\",C433,\"\")","v":""},"REGDATO ",2005,2021,null,null,"F_INTRO"]
["Tilgangsdato for introduksjonsstønadstilfelle ",{"$f":"IF(B433<>\"\",B433,\"\")","v":""},{"$f":"IF(C433<>\"\",C433,\"\")","v":""},"TILGDATO ",2005,2021,null,null,"F_INTRO","microdata.no"]
["Avgangsdato for introduksjonsstønadstilfelle ",{"$f":"IF(B433<>\"\",B433,\"\")","v":""},{"$f":"IF(C433<>\"\",C433,\"\")","v":""},"AVGDATO ",2005,2021,null,null,"F_INTRO","microdata.no"]
["Tomdato ",null,null,"TOMDATO ",2005,2021,null,null,"F_INTRO"]
["Miniregisterkontroll - fødselsnummer",null,null,"MRK_FNR ",2005,2021,null,null,"F_INTRO"]
["Merking av imputerte data ",null,null,"MRK_IMP ",2005,2021,null,null,"F_INTRO"]
["Teknisk hjelpevariabel - sluttdato for endringsrekord",null,null,"REGTOM",2005,2021,null,null,"F_INTRO"]
[]
["*Skriv ønskede årganger i første ruten for å velge obligatoriske variabler"]
["KVALIFISERINGSSTØNAD\nTabell: Forløp over Kvalifiseringsstønad (F_KVALIF)",null,null,null,2008,2022,null,null,null,null,"Inngripende / sensitiv (hele tabellen)"]
["Løpenummer (avidentifisert fødselsnummer)",{"$f":"IF(B445<>\"\",B445,\"\")","v":""},{"$f":"IF(C445<>\"\",C445,\"\")","v":""},"wXX_XXXX_lnr ",2008,2022,null,null,"F_KVALIF","microdata.no","Inngripende / sensitiv"]
["Kode for hendelse, kvalifiseringsstønad ",{"$f":"IF(B445<>\"\",B445,\"\")","v":""},{"$f":"IF(C445<>\"\",C445,\"\")","v":""},"KODE ",2008,2022,null,null,"F_KVALIF",null,"Inngripende / sensitiv"]
["Registreringsdato ",{"$f":"IF(B445<>\"\",B445,\"\")","v":""},{"$f":"IF(C445<>\"\",C445,\"\")","v":""},"REGDATO ",2008,2022,null,null,"F_KVALIF",null,"Inngripende / sensitiv"]
["Tilgangsdato ",{"$f":"IF(B445<>\"\",B445,\"\")","v":""},{"$f":"IF(C445<>\"\",C445,\"\")","v":""},"TILGDATO ",2008,2022,null,null,"F_KVALIF","microdata.no","Inngripende / sensitiv"]
["Avgangsdato ",{"$f":"IF(B445<>\"\",B445,\"\")","v":""},{"$f":"IF(C445<>\"\",C445,\"\")","v":""},"AVGDATO ",2008,2022,null,null,"F_KVALIF","microdata.no","Inngripende / sensitiv"]
["Til og med dato for tilfellet ",{"$f":"IF(B445<>\"\",B445,\"\")","v":""},{"$f":"IF(C445<>\"\",C445,\"\")","v":""},"TOMDATO ",2008,2022,null,null,"F_KVALIF",null,"Inngripende / sensitiv"]
["Fødselsnummerkontroll ",null,null,"MRK_FNR ",2008,2022,null,null,"F_KVALIF",null,"Inngripende / sensitiv"]
["Merke for imputering ",null,null,"MRK_IMP ",2008,2022,null,null,"F_KVALIF",null,"Inngripende / sensitiv"]
[]
["*Skriv ønskede årganger i første ruten for å velge obligatoriske variabler"]
["Tabell: Månedsopplysning over Kvalifiseringsstønad (TAB_KVALIF)",null,null,null,2010,2022,null,null,null,null,"Inngripende / sensitiv (hele tabellen)"]
["Løpenummer (avidentifisert fødselsnummer)",{"$f":"IF(B456<>\"\",B456,\"\")","v":""},{"$f":"IF(C456<>\"\",C456,\"\")","v":""},"wXX_XXXX_lnr ",2010,2022,null,null,"TAB_KVALIK","microdata.no","Inngripende / sensitiv"]
["Årgang ",{"$f":"IF(B456<>\"\",B456,\"\")","v":""},{"$f":"IF(C456<>\"\",C456,\"\")","v":""},"AAR ",2010,2022,null,null,"TAB_KVALIK",null,"Inngripende / sensitiv"]
["Antall kommuner ",null,null,"ANT_KOM ",2010,2022,null,null,"TAB_KVALIK","microdata.no","Inngripende / sensitiv"]
["Kvalifiseringsstønadsbeløp ",null,null,"KVP_STONAD ",2010,2022,null,null,"TAB_KVALIK","microdata.no","Inngripende / sensitiv"]
["Dataårgang på miniregisterfilen ",null,null,"AARGANG ",2010,2022,null,null,"TAB_KVALIK",null,"Inngripende / sensitiv"]
["Fødselsnummerkontroll ",null,null,"MRK_FNR ",2010,2022,null,null,"TAB_KVALIK",null,"Inngripende / sensitiv"]
[]
["*Skriv ønskede årganger i første ruten for å velge obligatoriske variabler"]
["OMSORGSPOENG\nTabell: Omsorgspoeng (TAB_OMSP)",null,null,null,1992,2004,null,null,null,null,"Særlig kategori (hele tabellen)"]
["Løpenummer (avidentifisert fødselsnummer)",{"$f":"IF(B465<>\"\",B465,\"\")","v":""},{"$f":"IF(C465<>\"\",C465,\"\")","v":""},"wXX_XXXX_lnr ",1992,2004,null,null,"TAB_OMSP",null,"Særlig kategori"]
["År for omsorgspoeng ",{"$f":"IF(B465<>\"\",B465,\"\")","v":""},{"$f":"IF(C465<>\"\",C465,\"\")","v":""},"AAR ",1992,2004,null,null,"TAB_OMSP",null,"Særlig kategori"]
["Omsorg for barn under 7 år ",null,null,"OMSBARN ",1992,2004,null,null,"TAB_OMSP",null,"Særlig kategori"]
["Pleie av funksjonshemmede (barn som har forhøyet hjelpestønad) ",null,null,"FORHJST ",1992,2004,null,null,"TAB_OMSP",null,"Særlig kategori"]
["Pleie av syke og eldre ",null,null,"PLEIE ",1992,2004,null,null,"TAB_OMSP",null,"Særlig kategori"]
["Pensjonspoeng opptjent i året ",null,null,"PP ",1992,2004,null,null,"TAB_OMSP",null,"Særlig kategori"]
["Antall poengår med inntekt og/eller omsorg i alt ",null,null,"PA_TELL ",1992,2004,null,null,"TAB_OMSP",null,"Særlig kategori"]
["Gjennomsnittlig pensjonspoeng for alle opptjeningsår ",null,null,"GJ_PPTE ",1992,2004,null,null,"TAB_OMSP",null,"Særlig kategori"]
["Antall år innvilget omsorgspoeng i alt ",null,null,"OMSP1 ",1992,2004,null,null,"TAB_OMSP",null,"Særlig kategori"]
["Antall år med innvilgede omsorgspoeng ",null,null,"OMSP2 ",1992,2004,null,null,"TAB_OMSP",null,"Særlig kategori"]
["Antall år innvilget omsorgspoeng for barn under 7 år ",null,null,"OMSP3 ",1992,2004,null,null,"TAB_OMSP",null,"Særlig kategori"]
["Antall år innvilget omsorgspoeng for andre ",null,null,"OMSP4 ",1992,2004,null,null,"TAB_OMSP",null,"Særlig kategori"]
["Merking av fødselsnummer ",null,null,"MRK_FNR ",1992,2004,null,null,"TAB_OMSP",null,"Særlig kategori"]
[]
["*Skriv ønskede årganger i første ruten for å velge obligatoriske variabler"]
["PENSJONER, FREM TIL 2010\nTabell: Alderspensjon (F_ALDP)",null,null,null,1992,2010]
["Løpenummer (avidentifisert fødselsnummer)",{"$f":"IF(B481<>\"\",B481,\"\")","v":""},{"$f":"IF(C481<>\"\",C481,\"\")","v":""},"wXX_XXXX_lnr ",1992,2010,null,null,"F_ALDP","microdata.no"]
["Kode for type pensjon ",{"$f":"IF(B481<>\"\",B481,\"\")","v":""},{"$f":"IF(C481<>\"\",C481,\"\")","v":""},"PNSJKODE ",1992,2010,null,null,"F_ALDP"]
["Registreringsdato for pensjon og stønader ",{"$f":"IF(B481<>\"\",B481,\"\")","v":""},{"$f":"IF(C481<>\"\",C481,\"\")","v":""},"REGDATO ",1992,2010,null,null,"F_ALDP","microdata.no"]
["Pensjonsgruppens tilgangsdato ",{"$f":"IF(B481<>\"\",B481,\"\")","v":""},{"$f":"IF(C481<>\"\",C481,\"\")","v":""},"PNSJTILG ",1992,2010,null,null,"F_ALDP","microdata.no"]
["Pensjonsgruppens avgangsdato ",{"$f":"IF(B481<>\"\",B481,\"\")","v":""},{"$f":"IF(C481<>\"\",C481,\"\")","v":""},"PNSJAVG ",1992,2010,null,null,"F_ALDP"]
["Pensjonstype 1",null,null,"PT1 ",1992,2010,null,null,"F_ALDP",null,"Særlig kategori"]
["Endringsdato for pensjonstype 1",{"$f":"IF(INDIRECT(ADDRESS(ROW()-1,COLUMN()))<>\"\",INDIRECT(ADDRESS(ROW()-1,COLUMN())),\"\")","v":""},{"$f":"IF(INDIRECT(ADDRESS(ROW()-1,COLUMN()))<>\"\",INDIRECT(ADDRESS(ROW()-1,COLUMN())),\"\")","v":""},"PT1DATO",1992,2010,null,null,"F_ALDP"]
["Pensjonstype 2",null,null,"PT2 ",1992,2010,null,null,"F_ALDP"]
["Endringsdato for pensjonstype 2",{"$f":"IF(INDIRECT(ADDRESS(ROW()-1,COLUMN()))<>\"\",INDIRECT(ADDRESS(ROW()-1,COLUMN())),\"\")","v":""},{"$f":"IF(INDIRECT(ADDRESS(ROW()-1,COLUMN()))<>\"\",INDIRECT(ADDRESS(ROW()-1,COLUMN())),\"\")","v":""},"PT2DATO",1992,2010,null,null,"F_ALDP"]
["Pensjonstype 3",null,null,"PT3 ",1992,2010,null,null,"F_ALDP"]
["Endringsdato for pensjonstype 3",{"$f":"IF(INDIRECT(ADDRESS(ROW()-1,COLUMN()))<>\"\",INDIRECT(ADDRESS(ROW()-1,COLUMN())),\"\")","v":""},{"$f":"IF(INDIRECT(ADDRESS(ROW()-1,COLUMN()))<>\"\",INDIRECT(ADDRESS(ROW()-1,COLUMN())),\"\")","v":""},"PT3DATO",1992,2010,null,null,"F_ALDP"]
["Pensjonsstatus",null,null,"PSTAT ",1992,2010,null,null,"F_ALDP"]
["Endringsdato for pensjonsstatus",{"$f":"IF(INDIRECT(ADDRESS(ROW()-1,COLUMN()))<>\"\",INDIRECT(ADDRESS(ROW()-1,COLUMN())),\"\")","v":""},{"$f":"IF(INDIRECT(ADDRESS(ROW()-1,COLUMN()))<>\"\",INDIRECT(ADDRESS(ROW()-1,COLUMN())),\"\")","v":""},"PSTADATO",1992,2010,null,null,"F_ALDP"]
["Første virkningsdato for pensjonsordningen",null,null,"FVIRK ",1992,2010,null,null,"F_ALDP"]
["Endringsdato for virkningsdato for pensjonsordning",{"$f":"IF(INDIRECT(ADDRESS(ROW()-1,COLUMN()))<>\"\",INDIRECT(ADDRESS(ROW()-1,COLUMN())),\"\")","v":""},{"$f":"IF(INDIRECT(ADDRESS(ROW()-1,COLUMN()))<>\"\",INDIRECT(ADDRESS(ROW()-1,COLUMN())),\"\")","v":""},"FVRKDATO",1992,2010,null,null,"F_ALDP"]
["Alderspensjonsdel ",null,null,"APD ",1992,2010,null,null,"F_ALDP"]
["Endringsdato for alderspensjondel",{"$f":"IF(INDIRECT(ADDRESS(ROW()-1,COLUMN()))<>\"\",INDIRECT(ADDRESS(ROW()-1,COLUMN())),\"\")","v":""},{"$f":"IF(INDIRECT(ADDRESS(ROW()-1,COLUMN()))<>\"\",INDIRECT(ADDRESS(ROW()-1,COLUMN())),\"\")","v":""},"APDDATO",1992,2010,null,null,"F_ALDP"]
["Grunnpensjonsfaktor",null,null,"GPFAK ",1992,2010,null,null,"F_ALDP"]
["Endringsdato for grunnpensjon-faktor",{"$f":"IF(INDIRECT(ADDRESS(ROW()-1,COLUMN()))<>\"\",INDIRECT(ADDRESS(ROW()-1,COLUMN())),\"\")","v":""},{"$f":"IF(INDIRECT(ADDRESS(ROW()-1,COLUMN()))<>\"\",INDIRECT(ADDRESS(ROW()-1,COLUMN())),\"\")","v":""},"GPFDATO",1992,2010,null,null,"F_ALDP"]
["Særtilleggsfaktor ",null,null,"STFAK ",1992,2010,null,null,"F_ALDP"]
["Endringsdato for særtilleggsfaktor",{"$f":"IF(INDIRECT(ADDRESS(ROW()-1,COLUMN()))<>\"\",INDIRECT(ADDRESS(ROW()-1,COLUMN())),\"\")","v":""},{"$f":"IF(INDIRECT(ADDRESS(ROW()-1,COLUMN()))<>\"\",INDIRECT(ADDRESS(ROW()-1,COLUMN())),\"\")","v":""},"STFDATO",1992,2010,null,null,"F_ALDP"]
["Tilleggspensjonsfaktor (inkl. garantitillegg) ",null,null,"TPFAK ",1992,2010,null,null,"F_ALDP"]
["Endringsdato for tilleggspensjon-faktor",{"$f":"IF(INDIRECT(ADDRESS(ROW()-1,COLUMN()))<>\"\",INDIRECT(ADDRESS(ROW()-1,COLUMN())),\"\")","v":""},{"$f":"IF(INDIRECT(ADDRESS(ROW()-1,COLUMN()))<>\"\",INDIRECT(ADDRESS(ROW()-1,COLUMN())),\"\")","v":""},"TPFDATO",1992,2010,null,null,"F_ALDP"]
["Sum av ventetillegg ",null,null,"VTSMFAK ",1992,2010,null,null,"F_ALDP"]
["Endringsdato for ventetillegg sum-faktor",{"$f":"IF(INDIRECT(ADDRESS(ROW()-1,COLUMN()))<>\"\",INDIRECT(ADDRESS(ROW()-1,COLUMN())),\"\")","v":""},{"$f":"IF(INDIRECT(ADDRESS(ROW()-1,COLUMN()))<>\"\",INDIRECT(ADDRESS(ROW()-1,COLUMN())),\"\")","v":""},"VTSFDATO",1992,2010,null,null,"F_ALDP"]
["Ektefelletilleggsfaktor ",null,null,"ETFAK ",1992,2010,null,null,"F_ALDP"]
["Endringsdato for ektefelletillegg-faktor",{"$f":"IF(INDIRECT(ADDRESS(ROW()-1,COLUMN()))<>\"\",INDIRECT(ADDRESS(ROW()-1,COLUMN())),\"\")","v":""},{"$f":"IF(INDIRECT(ADDRESS(ROW()-1,COLUMN()))<>\"\",INDIRECT(ADDRESS(ROW()-1,COLUMN())),\"\")","v":""},"ETFDATO",1992,2010,null,null,"F_ALDP"]
["Barnetilleggsfaktor ",null,null,"BTFAK ",1992,2010,null,null,"F_ALDP"]
["Endringsdato for barnetillegg-faktor",{"$f":"IF(INDIRECT(ADDRESS(ROW()-1,COLUMN()))<>\"\",INDIRECT(ADDRESS(ROW()-1,COLUMN())),\"\")","v":""},{"$f":"IF(INDIRECT(ADDRESS(ROW()-1,COLUMN()))<>\"\",INDIRECT(ADDRESS(ROW()-1,COLUMN())),\"\")","v":""},"BTFDATO",1992,2010,null,null,"F_ALDP"]
["Miniregisterkontroll - fødselsnummer ",null,null,"MRK_FNR ",1992,2010,null,null,"F_ALDP"]
["Beregning av folketrygd (EØS) ",null,null,"BERTRYGD ",1992,2010,null,null,"F_ALDP"]
["Dato for beregning av trygd EØS",{"$f":"IF(INDIRECT(ADDRESS(ROW()-1,COLUMN()))<>\"\",INDIRECT(ADDRESS(ROW()-1,COLUMN())),\"\")","v":""},{"$f":"IF(INDIRECT(ADDRESS(ROW()-1,COLUMN()))<>\"\",INDIRECT(ADDRESS(ROW()-1,COLUMN())),\"\")","v":""},"BERTDATO",1992,2010,null,null,"F_ALDP"]
["Til og med dato gruppetilfelle ",{"$f":"IF(B481<>\"\",B481,\"\")","v":""},{"$f":"IF(C481<>\"\",C481,\"\")","v":""},"PNSJTOM ",1992,2010,null,null,"F_ALDP"]
[]
["*Skriv ønskede årganger i første ruten for å velge obligatoriske variabler"]
["Tabell: Avtalefestet pensjon - offentlig sektor (F_AFP_O)",null,null,null,1992,2010]
["Løpenummer (avidentifisert fødselsnummer)",{"$f":"IF(B517<>\"\",B517,\"\")","v":""},{"$f":"IF(C517<>\"\",C517,\"\")","v":""},"wXX_XXXX_lnr ",1992,2010,null,null,"F_AFP_O","microdata.no"]
["Kode for pensjon ",{"$f":"IF(B517<>\"\",B517,\"\")","v":""},{"$f":"IF(C517<>\"\",C517,\"\")","v":""},"PNSJKODE ",1992,2010,null,null,"F_AFP_O"]
["Registreringsdato for pensjon og stønader ",{"$f":"IF(B517<>\"\",B517,\"\")","v":""},{"$f":"IF(C517<>\"\",C517,\"\")","v":""},"REGDATO ",1992,2010,null,null,"F_AFP_O"]
["Pensjonsgruppens tilgangsdato ",{"$f":"IF(B517<>\"\",B517,\"\")","v":""},{"$f":"IF(C517<>\"\",C517,\"\")","v":""},"PNSJTILG ",1992,2010,null,null,"F_AFP_O","microdata.no"]
["Pensjonsgruppens avgangsdato ",{"$f":"IF(B517<>\"\",B517,\"\")","v":""},{"$f":"IF(C517<>\"\",C517,\"\")","v":""},"PNSJAVG ",1992,2010,null,null,"F_AFP_O","microdata.no"]
["Pensjonstype 1 ",null,null,"PT1 ",1992,2010,null,null,"F_AFP_O",null,"Særlig kategori"]
["Endringsdato for pensjonstype 1",{"$f":"IF(INDIRECT(ADDRESS(ROW()-1,COLUMN()))<>\"\",INDIRECT(ADDRESS(ROW()-1,COLUMN())),\"\")","v":""},{"$f":"IF(INDIRECT(ADDRESS(ROW()-1,COLUMN()))<>\"\",INDIRECT(ADDRESS(ROW()-1,COLUMN())),\"\")","v":""},"PT1DATO",1992,2010,null,null,"F_AFP_O"]
["Pensjonstype 2 ",null,null,"PT2 ",1992,2010,null,null,"F_AFP_O"]
["Endringsdato for pensjonstype 2",{"$f":"IF(INDIRECT(ADDRESS(ROW()-1,COLUMN()))<>\"\",INDIRECT(ADDRESS(ROW()-1,COLUMN())),\"\")","v":""},{"$f":"IF(INDIRECT(ADDRESS(ROW()-1,COLUMN()))<>\"\",INDIRECT(ADDRESS(ROW()-1,COLUMN())),\"\")","v":""},"PT2DATO",1992,2010,null,null,"F_AFP_O"]
["Pensjonstype 3 ",null,null,"PT3 ",1992,2010,null,null,"F_AFP_O"]
["Endringsdato for pensjonstype 3",{"$f":"IF(INDIRECT(ADDRESS(ROW()-1,COLUMN()))<>\"\",INDIRECT(ADDRESS(ROW()-1,COLUMN())),\"\")","v":""},{"$f":"IF(INDIRECT(ADDRESS(ROW()-1,COLUMN()))<>\"\",INDIRECT(ADDRESS(ROW()-1,COLUMN())),\"\")","v":""},"PT3DATO",1992,2010,null,null,"F_AFP_O"]
["Alderspensjonsdel ",null,null,"APD ",1992,2010,null,null,"F_AFP_O"]
["Endringsdato for alderspensjondel",{"$f":"IF(INDIRECT(ADDRESS(ROW()-1,COLUMN()))<>\"\",INDIRECT(ADDRESS(ROW()-1,COLUMN())),\"\")","v":""},{"$f":"IF(INDIRECT(ADDRESS(ROW()-1,COLUMN()))<>\"\",INDIRECT(ADDRESS(ROW()-1,COLUMN())),\"\")","v":""},"APDDATO",1992,2010,null,null,"F_AFP_O"]
["Grunnpensjonsfaktor ",null,null,"GPFAK ",1992,2010,null,null,"F_AFP_O"]
["Endringsdato for grunnpensjon-faktor",{"$f":"IF(INDIRECT(ADDRESS(ROW()-1,COLUMN()))<>\"\",INDIRECT(ADDRESS(ROW()-1,COLUMN())),\"\")","v":""},{"$f":"IF(INDIRECT(ADDRESS(ROW()-1,COLUMN()))<>\"\",INDIRECT(ADDRESS(ROW()-1,COLUMN())),\"\")","v":""},"GPFDATO",1992,2010,null,null,"F_AFP_O"]
["Særtilleggsfaktor ",null,null,"STFAK ",1992,2010,null,null,"F_AFP_O"]
["Endringsdato for særtilleggsfaktor",{"$f":"IF(INDIRECT(ADDRESS(ROW()-1,COLUMN()))<>\"\",INDIRECT(ADDRESS(ROW()-1,COLUMN())),\"\")","v":""},{"$f":"IF(INDIRECT(ADDRESS(ROW()-1,COLUMN()))<>\"\",INDIRECT(ADDRESS(ROW()-1,COLUMN())),\"\")","v":""},"STFDATO",1992,2010,null,null,"F_AFP_O"]
["Tilleggspensjonsfaktor (inkl. garantitillegg) ",null,null,"TPFAK ",1992,2010,null,null,"F_AFP_O"]
["Endringsdato for tilleggspensjon-faktor",{"$f":"IF(INDIRECT(ADDRESS(ROW()-1,COLUMN()))<>\"\",INDIRECT(ADDRESS(ROW()-1,COLUMN())),\"\")","v":""},{"$f":"IF(INDIRECT(ADDRESS(ROW()-1,COLUMN()))<>\"\",INDIRECT(ADDRESS(ROW()-1,COLUMN())),\"\")","v":""},"TPFDATO",1992,2010,null,null,"F_AFP_O"]
["Avtalefestet pensjonstillegg ",null,null,"AFPTILL ",1992,2010,null,null,"F_AFP_O"]
["Endringsdato for avtalefestet pensjons-tillegg",{"$f":"IF(INDIRECT(ADDRESS(ROW()-1,COLUMN()))<>\"\",INDIRECT(ADDRESS(ROW()-1,COLUMN())),\"\")","v":""},{"$f":"IF(INDIRECT(ADDRESS(ROW()-1,COLUMN()))<>\"\",INDIRECT(ADDRESS(ROW()-1,COLUMN())),\"\")","v":""},"AFPTDATO",1992,2010,null,null,"F_AFP_O"]
["Ektefelletilleggsfaktor ",null,null,"ETFAK ",1992,2010,null,null,"F_AFP_O"]
["Endringsdato for ektefelletillegg-faktor",{"$f":"IF(INDIRECT(ADDRESS(ROW()-1,COLUMN()))<>\"\",INDIRECT(ADDRESS(ROW()-1,COLUMN())),\"\")","v":""},{"$f":"IF(INDIRECT(ADDRESS(ROW()-1,COLUMN()))<>\"\",INDIRECT(ADDRESS(ROW()-1,COLUMN())),\"\")","v":""},"ETFDATO",1992,2010,null,null,"F_AFP_O"]
["Miniregisterkontroll - fødselsnummer ",null,null,"MRK_FNR ",1992,2010,null,null,"F_AFP_O"]
["Type avtalefestet pensjon, offentlig ordning ",null,null,"AFP_TYPE ",1992,2010,null,null,"F_AFP_O"]
["Dato for AFP-type",{"$f":"IF(INDIRECT(ADDRESS(ROW()-1,COLUMN()))<>\"\",INDIRECT(ADDRESS(ROW()-1,COLUMN())),\"\")","v":""},{"$f":"IF(INDIRECT(ADDRESS(ROW()-1,COLUMN()))<>\"\",INDIRECT(ADDRESS(ROW()-1,COLUMN())),\"\")","v":""},"AFPTDATO",1992,2010,null,null,"F_AFP_O"]
["Til og med dato gruppetilfelle ",{"$f":"IF(B517<>\"\",B517,\"\")","v":""},{"$f":"IF(C517<>\"\",C517,\"\")","v":""},"PNSJTOM ",1992,2010,null,null,"F_AFP_O"]
[]
["*Skriv ønskede årganger i første ruten for å velge obligatoriske variabler"]
["Tabell: Avtalefestet pensjon - privat sektor (F_AFP_P)",null,null,null,1992,2010]
["Løpenummer (avidentifisert fødselsnummer)",{"$f":"IF(B547<>\"\",B547,\"\")","v":""},{"$f":"IF(C547<>\"\",C547,\"\")","v":""},"wXX_XXXX_lnr ",1992,2010,null,null,"F_AFP_P","microdata.no"]
["Kode for pensjon ",{"$f":"IF(B547<>\"\",B547,\"\")","v":""},{"$f":"IF(C547<>\"\",C547,\"\")","v":""},"PNSJKODE ",1992,2010,null,null,"F_AFP_P"]
["Registreringsdato for pensjon og stønder ",{"$f":"IF(B547<>\"\",B547,\"\")","v":""},{"$f":"IF(C547<>\"\",C547,\"\")","v":""},"REGDATO ",1992,2010,null,null,"F_AFP_P"]
["Pensjonsgruppens tilgangsdato ",{"$f":"IF(B547<>\"\",B547,\"\")","v":""},{"$f":"IF(C547<>\"\",C547,\"\")","v":""},"PNSJTILG ",1992,2010,null,null,"F_AFP_P","microdata.no"]
["Pensjonsgruppens avgangsdato ",{"$f":"IF(B547<>\"\",B547,\"\")","v":""},{"$f":"IF(C547<>\"\",C547,\"\")","v":""},"PNSJAVG ",1992,2010,null,null,"F_AFP_P","microdata.no"]
["Pensjonstype 1 ",null,null,"PT1 ",1992,2010,null,null,"F_AFP_P",null,"Særlig kategori"]
["Endringsdato for pensjonstype 1",{"$f":"IF(INDIRECT(ADDRESS(ROW()-1,COLUMN()))<>\"\",INDIRECT(ADDRESS(ROW()-1,COLUMN())),\"\")","v":""},{"$f":"IF(INDIRECT(ADDRESS(ROW()-1,COLUMN()))<>\"\",INDIRECT(ADDRESS(ROW()-1,COLUMN())),\"\")","v":""},"PT1DATO",1992,2010,null,null,"F_AFP_P"]
["Pensjonstype 2 ",null,null,"PT2 ",1992,2010,null,null,"F_AFP_P"]
["Endringsdato for pensjonstype 2",{"$f":"IF(INDIRECT(ADDRESS(ROW()-1,COLUMN()))<>\"\",INDIRECT(ADDRESS(ROW()-1,COLUMN())),\"\")","v":""},{"$f":"IF(INDIRECT(ADDRESS(ROW()-1,COLUMN()))<>\"\",INDIRECT(ADDRESS(ROW()-1,COLUMN())),\"\")","v":""},"PT2DATO",1992,2010,null,null,"F_AFP_P"]
["Pensjonstype 3 ",null,null,"PT3 ",1992,2010,null,null,"F_AFP_P"]
["Endringsdato for pensjonstype 3",{"$f":"IF(INDIRECT(ADDRESS(ROW()-1,COLUMN()))<>\"\",INDIRECT(ADDRESS(ROW()-1,COLUMN())),\"\")","v":""},{"$f":"IF(INDIRECT(ADDRESS(ROW()-1,COLUMN()))<>\"\",INDIRECT(ADDRESS(ROW()-1,COLUMN())),\"\")","v":""},"PT3DATO",1992,2010,null,null,"F_AFP_P"]
["Alderspensjonsdel ",null,null,"APD ",1992,2010,null,null,"F_AFP_P"]
["Endringsdato for alderspensjondel",{"$f":"IF(INDIRECT(ADDRESS(ROW()-1,COLUMN()))<>\"\",INDIRECT(ADDRESS(ROW()-1,COLUMN())),\"\")","v":""},{"$f":"IF(INDIRECT(ADDRESS(ROW()-1,COLUMN()))<>\"\",INDIRECT(ADDRESS(ROW()-1,COLUMN())),\"\")","v":""},"APDDATO",1992,2010,null,null,"F_AFP_P"]
["Grunnpensjonsfaktor ",null,null,"GPFAK ",1992,2010,null,null,"F_AFP_P"]
["Endringsdato for grunnpensjon-faktor",{"$f":"IF(INDIRECT(ADDRESS(ROW()-1,COLUMN()))<>\"\",INDIRECT(ADDRESS(ROW()-1,COLUMN())),\"\")","v":""},{"$f":"IF(INDIRECT(ADDRESS(ROW()-1,COLUMN()))<>\"\",INDIRECT(ADDRESS(ROW()-1,COLUMN())),\"\")","v":""},"GPFDATO",1992,2010,null,null,"F_AFP_P"]
["Særtilleggsfaktor ",null,null,"STFAK ",1992,2010,null,null,"F_AFP_P"]
["Endringsdato for særtilleggsfaktor",{"$f":"IF(INDIRECT(ADDRESS(ROW()-1,COLUMN()))<>\"\",INDIRECT(ADDRESS(ROW()-1,COLUMN())),\"\")","v":""},{"$f":"IF(INDIRECT(ADDRESS(ROW()-1,COLUMN()))<>\"\",INDIRECT(ADDRESS(ROW()-1,COLUMN())),\"\")","v":""},"STFDATO",1992,2010,null,null,"F_AFP_P"]
["Tilleggspensjonsfaktor (inkl. garantitillegg) ",null,null,"TPFAK ",1992,2010,null,null,"F_AFP_P"]
["Endringsdato for tilleggspensjon-faktor",{"$f":"IF(INDIRECT(ADDRESS(ROW()-1,COLUMN()))<>\"\",INDIRECT(ADDRESS(ROW()-1,COLUMN())),\"\")","v":""},{"$f":"IF(INDIRECT(ADDRESS(ROW()-1,COLUMN()))<>\"\",INDIRECT(ADDRESS(ROW()-1,COLUMN())),\"\")","v":""},"TPFDATO",1992,2010,null,null,"F_AFP_P"]
["Avtalefestet pensjonstillegg ",null,null,"AFPTILL ",1992,2010,null,null,"F_AFP_P"]
["Endringsdato for avtalefestet pensjons-tillegg",{"$f":"IF(INDIRECT(ADDRESS(ROW()-1,COLUMN()))<>\"\",INDIRECT(ADDRESS(ROW()-1,COLUMN())),\"\")","v":""},{"$f":"IF(INDIRECT(ADDRESS(ROW()-1,COLUMN()))<>\"\",INDIRECT(ADDRESS(ROW()-1,COLUMN())),\"\")","v":""},"AFPTDATO",1992,2010,null,null,"F_AFP_P"]
["Ektefelletilleggsfaktor ",null,null,"ETFAK ",1992,2010,null,null,"F_AFP_P"]
["Endringsdato for ektefelletillegg-faktor",{"$f":"IF(INDIRECT(ADDRESS(ROW()-1,COLUMN()))<>\"\",INDIRECT(ADDRESS(ROW()-1,COLUMN())),\"\")","v":""},{"$f":"IF(INDIRECT(ADDRESS(ROW()-1,COLUMN()))<>\"\",INDIRECT(ADDRESS(ROW()-1,COLUMN())),\"\")","v":""},"ETFDATO",1992,2010,null,null,"F_AFP_P"]
["Miniregisterkontroll - fødselsnummer ",null,null,"MRK_FNR ",1992,2010,null,null,"F_AFP_P"]
["Type avtalefestet pensjon, privat ordning ",null,null,"AFP_TYPE ",1992,2010,null,null,"F_AFP_P"]
["Dato for AFP-type",{"$f":"IF(INDIRECT(ADDRESS(ROW()-1,COLUMN()))<>\"\",INDIRECT(ADDRESS(ROW()-1,COLUMN())),\"\")","v":""},{"$f":"IF(INDIRECT(ADDRESS(ROW()-1,COLUMN()))<>\"\",INDIRECT(ADDRESS(ROW()-1,COLUMN())),\"\")","v":""},"AFPTDATO",1992,2010,null,null,"F_AFP_P"]
["Til og med dato gruppetilfelle ",{"$f":"IF(B547<>\"\",B547,\"\")","v":""},{"$f":"IF(C547<>\"\",C547,\"\")","v":""},"PNSJTOM ",1992,2010,null,null,"F_AFP_P"]
[]
["*Skriv ønskede årganger i første ruten for å velge obligatoriske variabler"]
["Tabell: Pensjon - etterlatt barn (F_EBAR)",null,null,null,1992,2010]
["Løpenummer (avidentifisert fødselsnummer)",{"$f":"IF(B577<>\"\",B577,\"\")","v":""},{"$f":"IF(C577<>\"\",C577,\"\")","v":""},"wXX_XXXX_lnr ",1992,2010,null,null,"F_EBAR","microdata.no"]
["Kode for pensjon ",{"$f":"IF(B577<>\"\",B577,\"\")","v":""},{"$f":"IF(C577<>\"\",C577,\"\")","v":""},"PNSJKODE ",1992,2010,null,null,"F_EBAR"]
["Registreringsdato for pensjon og stønader ",{"$f":"IF(B577<>\"\",B577,\"\")","v":""},{"$f":"IF(C577<>\"\",C577,\"\")","v":""},"REGDATO ",1992,2010,null,null,"F_EBAR"]
["Pensjonsgruppens tilgangsdato ",{"$f":"IF(B577<>\"\",B577,\"\")","v":""},{"$f":"IF(C577<>\"\",C577,\"\")","v":""},"PNSJTILG ",1992,2010,null,null,"F_EBAR","microdata.no"]
["Pensjonsgruppens avgangsdato ",{"$f":"IF(B577<>\"\",B577,\"\")","v":""},{"$f":"IF(C577<>\"\",C577,\"\")","v":""},"PNSJAVG ",1992,2010,null,null,"F_EBAR","microdata.no"]
["Pensjonstype 1 ",null,null,"PT1 ",1992,2010,null,null,"F_EBAR",null,"Særlig kategori"]
["Endringsdato for pensjonstype 1",{"$f":"IF(INDIRECT(ADDRESS(ROW()-1,COLUMN()))<>\"\",INDIRECT(ADDRESS(ROW()-1,COLUMN())),\"\")","v":""},{"$f":"IF(INDIRECT(ADDRESS(ROW()-1,COLUMN()))<>\"\",INDIRECT(ADDRESS(ROW()-1,COLUMN())),\"\")","v":""},"PT1DATO",1992,2010,null,null,"F_EBAR"]
["Pensjonstype 2 ",null,null,"PT2 ",1992,2010,null,null,"F_EBAR"]
["Endringsdato for pensjonstype 2",{"$f":"IF(INDIRECT(ADDRESS(ROW()-1,COLUMN()))<>\"\",INDIRECT(ADDRESS(ROW()-1,COLUMN())),\"\")","v":""},{"$f":"IF(INDIRECT(ADDRESS(ROW()-1,COLUMN()))<>\"\",INDIRECT(ADDRESS(ROW()-1,COLUMN())),\"\")","v":""},"PT2DATO",1992,2010,null,null,"F_EBAR"]
["Pensjonstype 3 ",null,null,"PT3 ",1992,2010,null,null,"F_EBAR"]
["Endringsdato for pensjonstype 3",{"$f":"IF(INDIRECT(ADDRESS(ROW()-1,COLUMN()))<>\"\",INDIRECT(ADDRESS(ROW()-1,COLUMN())),\"\")","v":""},{"$f":"IF(INDIRECT(ADDRESS(ROW()-1,COLUMN()))<>\"\",INDIRECT(ADDRESS(ROW()-1,COLUMN())),\"\")","v":""},"PT3DATO",1992,2010,null,null,"F_EBAR"]
["Pensjonsstatus ",null,null,"PSTAT ",1992,2010,null,null,"F_EBAR"]
["Endringsdato for pensjonsstatus",{"$f":"IF(INDIRECT(ADDRESS(ROW()-1,COLUMN()))<>\"\",INDIRECT(ADDRESS(ROW()-1,COLUMN())),\"\")","v":""},{"$f":"IF(INDIRECT(ADDRESS(ROW()-1,COLUMN()))<>\"\",INDIRECT(ADDRESS(ROW()-1,COLUMN())),\"\")","v":""},"PSTADATO",1992,2010,null,null,"F_EBAR"]
["Første virkningsdato for pensjonsordningen ",null,null,"FVIRK ",1992,2010,null,null,"F_EBAR"]
["Endringsdato for virkningsdato for pensjonsordning",{"$f":"IF(INDIRECT(ADDRESS(ROW()-1,COLUMN()))<>\"\",INDIRECT(ADDRESS(ROW()-1,COLUMN())),\"\")","v":""},{"$f":"IF(INDIRECT(ADDRESS(ROW()-1,COLUMN()))<>\"\",INDIRECT(ADDRESS(ROW()-1,COLUMN())),\"\")","v":""},"FVRKDATO",1992,2010,null,null,"F_EBAR"]
["Grunnpensjonsfaktor ",null,null,"GPFAK ",1992,2010,null,null,"F_EBAR"]
["Endringsdato for grunnpensjon-faktor",{"$f":"IF(INDIRECT(ADDRESS(ROW()-1,COLUMN()))<>\"\",INDIRECT(ADDRESS(ROW()-1,COLUMN())),\"\")","v":""},{"$f":"IF(INDIRECT(ADDRESS(ROW()-1,COLUMN()))<>\"\",INDIRECT(ADDRESS(ROW()-1,COLUMN())),\"\")","v":""},"GPFDATO",1992,2010,null,null,"F_EBAR"]
["Særtilleggsfaktor ",null,null,"STFAK ",1992,2010,null,null,"F_EBAR"]
["Endringsdato for særtilleggsfaktor",{"$f":"IF(INDIRECT(ADDRESS(ROW()-1,COLUMN()))<>\"\",INDIRECT(ADDRESS(ROW()-1,COLUMN())),\"\")","v":""},{"$f":"IF(INDIRECT(ADDRESS(ROW()-1,COLUMN()))<>\"\",INDIRECT(ADDRESS(ROW()-1,COLUMN())),\"\")","v":""},"STFDATO",1992,2010,null,null,"F_EBAR"]
["Tilleggspensjonsfaktor (inkl. garantitillegg) ",null,null,"TPFAK ",1992,2010,null,null,"F_EBAR"]
["Endringsdato for tilleggspensjon-faktor",{"$f":"IF(INDIRECT(ADDRESS(ROW()-1,COLUMN()))<>\"\",INDIRECT(ADDRESS(ROW()-1,COLUMN())),\"\")","v":""},{"$f":"IF(INDIRECT(ADDRESS(ROW()-1,COLUMN()))<>\"\",INDIRECT(ADDRESS(ROW()-1,COLUMN())),\"\")","v":""},"TPFDATO",1992,2010,null,null,"F_EBAR"]
["Miniregisterkontroll - fødselsnummer ",null,null,"MRK_FNR ",1992,2010,null,null,"F_EBAR"]
["Beregning av folketrygd (EØS) ",null,null,"BERTRYGD ",1992,2010,null,null,"F_EBAR"]
["Dato for beregning av trygd EØS",{"$f":"IF(INDIRECT(ADDRESS(ROW()-1,COLUMN()))<>\"\",INDIRECT(ADDRESS(ROW()-1,COLUMN())),\"\")","v":""},{"$f":"IF(INDIRECT(ADDRESS(ROW()-1,COLUMN()))<>\"\",INDIRECT(ADDRESS(ROW()-1,COLUMN())),\"\")","v":""},"BERTDATO",1992,2010,null,null,"F_EBAR"]
["Til og med dato gruppetilfelle ",{"$f":"IF(B577<>\"\",B577,\"\")","v":""},{"$f":"IF(C577<>\"\",C577,\"\")","v":""},"PNSJTOM ",1992,2010,null,null,"F_EBAR"]
[]
["*Skriv ønskede årganger i første ruten for å velge obligatoriske variabler"]
["Tabell: Pensjon - etterlatt ektefelle (F_EEKT)",null,null,null,1992,2010]
["Løpenummer (avidentifisert fødselsnummer)",{"$f":"IF(B605<>\"\",B605,\"\")","v":""},{"$f":"IF(C605<>\"\",C605,\"\")","v":""},"wXX_XXXX_lnr ",1992,2010,null,null,"F_EEKT","microdata.no"]
["Kode for pensjon ",{"$f":"IF(B605<>\"\",B605,\"\")","v":""},{"$f":"IF(C605<>\"\",C605,\"\")","v":""},"PNSJKODE ",1992,2010,null,null,"F_EEKT"]
["Registreringsdato for pensjon og stønader ",{"$f":"IF(B605<>\"\",B605,\"\")","v":""},{"$f":"IF(C605<>\"\",C605,\"\")","v":""},"REGDATO ",1992,2010,null,null,"F_EEKT"]
["Pensjonsgruppens tilgangsdato ",{"$f":"IF(B605<>\"\",B605,\"\")","v":""},{"$f":"IF(C605<>\"\",C605,\"\")","v":""},"PNSJTILG ",1992,2010,null,null,"F_EEKT","microdata.no"]
["Pensjonsgruppens avgangsdato ",{"$f":"IF(B605<>\"\",B605,\"\")","v":""},{"$f":"IF(C605<>\"\",C605,\"\")","v":""},"PNSJAVG ",1992,2010,null,null,"F_EEKT","microdata.no"]
["Pensjonstype 1 ",null,null,"PT1 ",1992,2010,null,null,"F_EEKT",null,"Særlig kategori"]
["Endringsdato for pensjonstype 1",{"$f":"IF(INDIRECT(ADDRESS(ROW()-1,COLUMN()))<>\"\",INDIRECT(ADDRESS(ROW()-1,COLUMN())),\"\")","v":""},{"$f":"IF(INDIRECT(ADDRESS(ROW()-1,COLUMN()))<>\"\",INDIRECT(ADDRESS(ROW()-1,COLUMN())),\"\")","v":""},"PT1DATO",1992,2010,null,null,"F_EEKT"]
["Pensjonstype 2 ",null,null,"PT2 ",1992,2010,null,null,"F_EEKT"]
["Endringsdato for pensjonstype 2",{"$f":"IF(INDIRECT(ADDRESS(ROW()-1,COLUMN()))<>\"\",INDIRECT(ADDRESS(ROW()-1,COLUMN())),\"\")","v":""},{"$f":"IF(INDIRECT(ADDRESS(ROW()-1,COLUMN()))<>\"\",INDIRECT(ADDRESS(ROW()-1,COLUMN())),\"\")","v":""},"PT2DATO",1992,2010,null,null,"F_EEKT"]
["Pensjonstype 3 ",null,null,"PT3 ",1992,2010,null,null,"F_EEKT"]
["Endringsdato for pensjonstype 3",{"$f":"IF(INDIRECT(ADDRESS(ROW()-1,COLUMN()))<>\"\",INDIRECT(ADDRESS(ROW()-1,COLUMN())),\"\")","v":""},{"$f":"IF(INDIRECT(ADDRESS(ROW()-1,COLUMN()))<>\"\",INDIRECT(ADDRESS(ROW()-1,COLUMN())),\"\")","v":""},"PT3DATO",1992,2010,null,null,"F_EEKT"]
["Pensjonsstatus ",null,null,"PSTAT ",1992,2010,null,null,"F_EEKT"]
["Endringsdato for pensjonsstatus",{"$f":"IF(INDIRECT(ADDRESS(ROW()-1,COLUMN()))<>\"\",INDIRECT(ADDRESS(ROW()-1,COLUMN())),\"\")","v":""},{"$f":"IF(INDIRECT(ADDRESS(ROW()-1,COLUMN()))<>\"\",INDIRECT(ADDRESS(ROW()-1,COLUMN())),\"\")","v":""},"PSTADATO",1992,2010,null,null,"F_EEKT"]
["Første virkningsdato for pensjonsordningen ",null,null,"FVIRK ",1992,2010,null,null,"F_EEKT"]
["Endringsdato for virkningsdato for pensjonsordning",{"$f":"IF(INDIRECT(ADDRESS(ROW()-1,COLUMN()))<>\"\",INDIRECT(ADDRESS(ROW()-1,COLUMN())),\"\")","v":""},{"$f":"IF(INDIRECT(ADDRESS(ROW()-1,COLUMN()))<>\"\",INDIRECT(ADDRESS(ROW()-1,COLUMN())),\"\")","v":""},"FVRKDATO",1992,2010,null,null,"F_EEKT"]
["Grunnpensjonsfaktor ",null,null,"GPFAK ",1992,2010,null,null,"F_EEKT"]
["Endringsdato for grunnpensjon-faktor",{"$f":"IF(INDIRECT(ADDRESS(ROW()-1,COLUMN()))<>\"\",INDIRECT(ADDRESS(ROW()-1,COLUMN())),\"\")","v":""},{"$f":"IF(INDIRECT(ADDRESS(ROW()-1,COLUMN()))<>\"\",INDIRECT(ADDRESS(ROW()-1,COLUMN())),\"\")","v":""},"GPFDATO",1992,2010,null,null,"F_EEKT"]
["Særtilleggsfaktor ",null,null,"STFAK ",1992,2010,null,null,"F_EEKT"]
["Endringsdato for særtilleggsfaktor",{"$f":"IF(INDIRECT(ADDRESS(ROW()-1,COLUMN()))<>\"\",INDIRECT(ADDRESS(ROW()-1,COLUMN())),\"\")","v":""},{"$f":"IF(INDIRECT(ADDRESS(ROW()-1,COLUMN()))<>\"\",INDIRECT(ADDRESS(ROW()-1,COLUMN())),\"\")","v":""},"STFDATO",1992,2010,null,null,"F_EEKT"]
["Tilleggspensjonsfaktor (inkl. garantitillegg) ",null,null,"TPFAK ",1992,2010,null,null,"F_EEKT"]
["Endringsdato for tilleggspensjon-faktor",{"$f":"IF(INDIRECT(ADDRESS(ROW()-1,COLUMN()))<>\"\",INDIRECT(ADDRESS(ROW()-1,COLUMN())),\"\")","v":""},{"$f":"IF(INDIRECT(ADDRESS(ROW()-1,COLUMN()))<>\"\",INDIRECT(ADDRESS(ROW()-1,COLUMN())),\"\")","v":""},"TPFDATO",1992,2010,null,null,"F_EEKT"]
["Samlet fradrag ",null,null,"FRADFAK ",1992,2010,null,null,"F_EEKT"]
["Endringsdato for f/faktor",{"$f":"IF(INDIRECT(ADDRESS(ROW()-1,COLUMN()))<>\"\",INDIRECT(ADDRESS(ROW()-1,COLUMN())),\"\")","v":""},{"$f":"IF(INDIRECT(ADDRESS(ROW()-1,COLUMN()))<>\"\",INDIRECT(ADDRESS(ROW()-1,COLUMN())),\"\")","v":""},"FRAFDATO",1992,2010,null,null,"F_EEKT"]
["Miniregisterkontroll - fødselsnummer ",null,null,"MRK_FNR ",1992,2010,null,null,"F_EEKT"]
["Beregning av folketrygd (EØS) ",null,null,"BERTRYGD ",1992,2010,null,null,"F_EEKT"]
["Dato for beregning av trygd EØS",{"$f":"IF(INDIRECT(ADDRESS(ROW()-1,COLUMN()))<>\"\",INDIRECT(ADDRESS(ROW()-1,COLUMN())),\"\")","v":""},{"$f":"IF(INDIRECT(ADDRESS(ROW()-1,COLUMN()))<>\"\",INDIRECT(ADDRESS(ROW()-1,COLUMN())),\"\")","v":""},"BERTDATO",1992,2010,null,null,"F_EEKT"]
["Til og med dato gruppetilfelle ",{"$f":"IF(B605<>\"\",B605,\"\")","v":""},{"$f":"IF(C605<>\"\",C605,\"\")","v":""},"PNSJTOM ",1992,2010,null,null,"F_EEKT"]
[]
["*Skriv ønskede årganger i første ruten for å velge obligatoriske variabler"]
["Tabell: Pensjon - etterlatt familiepleier (F_EFAM)",null,null,null,1992,2010]
["Løpenummer (avidentifisert fødselsnummer)",{"$f":"IF(B635<>\"\",B635,\"\")","v":""},{"$f":"IF(C635<>\"\",C635,\"\")","v":""},"wXX_XXXX_lnr ",1992,2010,null,null,"F_EFAM","microdata.no"]
["Kode for pensjon ",{"$f":"IF(B635<>\"\",B635,\"\")","v":""},{"$f":"IF(C635<>\"\",C635,\"\")","v":""},"PNSJKODE ",1992,2010,null,null,"F_EFAM"]
["Registreringsdato pensjon og stønader ",{"$f":"IF(B635<>\"\",B635,\"\")","v":""},{"$f":"IF(C635<>\"\",C635,\"\")","v":""},"REGDATO ",1992,2010,null,null,"F_EFAM"]
["Pensjonsgruppens tilgangsdato ",{"$f":"IF(B635<>\"\",B635,\"\")","v":""},{"$f":"IF(C635<>\"\",C635,\"\")","v":""},"PNSJTILG ",1992,2010,null,null,"F_EFAM","microdata.no"]
["Pensjonsgruppens avgangsdato ",{"$f":"IF(B635<>\"\",B635,\"\")","v":""},{"$f":"IF(C635<>\"\",C635,\"\")","v":""},"PNSJAVG ",1992,2010,null,null,"F_EFAM","microdata.no"]
["Pensjonstype 1 ",null,null,"PT1 ",1992,2010,null,null,"F_EFAM",null,"Særlig kategori"]
["Endringsdato for pensjonstype 1",{"$f":"IF(INDIRECT(ADDRESS(ROW()-1,COLUMN()))<>\"\",INDIRECT(ADDRESS(ROW()-1,COLUMN())),\"\")","v":""},{"$f":"IF(INDIRECT(ADDRESS(ROW()-1,COLUMN()))<>\"\",INDIRECT(ADDRESS(ROW()-1,COLUMN())),\"\")","v":""},"PT1DATO",1992,2010,null,null,"F_EFAM"]
["Pensjonstype 2 ",null,null,"PT2 ",1992,2010,null,null,"F_EFAM"]
["Endringsdato for pensjonstype 2",{"$f":"IF(INDIRECT(ADDRESS(ROW()-1,COLUMN()))<>\"\",INDIRECT(ADDRESS(ROW()-1,COLUMN())),\"\")","v":""},{"$f":"IF(INDIRECT(ADDRESS(ROW()-1,COLUMN()))<>\"\",INDIRECT(ADDRESS(ROW()-1,COLUMN())),\"\")","v":""},"PT2DATO",1992,2010,null,null,"F_EFAM"]
["Pensjonstype 3 ",null,null,"PT3 ",1992,2010,null,null,"F_EFAM"]
["Endringsdato for pensjonstype 3",{"$f":"IF(INDIRECT(ADDRESS(ROW()-1,COLUMN()))<>\"\",INDIRECT(ADDRESS(ROW()-1,COLUMN())),\"\")","v":""},{"$f":"IF(INDIRECT(ADDRESS(ROW()-1,COLUMN()))<>\"\",INDIRECT(ADDRESS(ROW()-1,COLUMN())),\"\")","v":""},"PT3DATO",1992,2010,null,null,"F_EFAM"]
["Pensjonsstatus ",null,null,"PSTAT ",1992,2010,null,null,"F_EFAM"]
["Endringsdato for pensjonsstatus",{"$f":"IF(INDIRECT(ADDRESS(ROW()-1,COLUMN()))<>\"\",INDIRECT(ADDRESS(ROW()-1,COLUMN())),\"\")","v":""},{"$f":"IF(INDIRECT(ADDRESS(ROW()-1,COLUMN()))<>\"\",INDIRECT(ADDRESS(ROW()-1,COLUMN())),\"\")","v":""},"PSTADATO",1992,2010,null,null,"F_EFAM"]
["Første virkningsdato for pensjonsordningen ",null,null,"FVIRK ",1992,2010,null,null,"F_EFAM"]
["Endringsdato for virkningsdato for pensjonsordning",{"$f":"IF(INDIRECT(ADDRESS(ROW()-1,COLUMN()))<>\"\",INDIRECT(ADDRESS(ROW()-1,COLUMN())),\"\")","v":""},{"$f":"IF(INDIRECT(ADDRESS(ROW()-1,COLUMN()))<>\"\",INDIRECT(ADDRESS(ROW()-1,COLUMN())),\"\")","v":""},"FVRKDATO",1992,2010,null,null,"F_EFAM"]
["Grunnpensjonsfaktor ",null,null,"GPFAK ",1992,2010,null,null,"F_EFAM"]
["Endringsdato for grunnpensjon-faktor",{"$f":"IF(INDIRECT(ADDRESS(ROW()-1,COLUMN()))<>\"\",INDIRECT(ADDRESS(ROW()-1,COLUMN())),\"\")","v":""},{"$f":"IF(INDIRECT(ADDRESS(ROW()-1,COLUMN()))<>\"\",INDIRECT(ADDRESS(ROW()-1,COLUMN())),\"\")","v":""},"GPFDATO",1992,2010,null,null,"F_EFAM"]
["Særtilleggsfaktor ",null,null,"STFAK ",1992,2010,null,null,"F_EFAM"]
["Endringsdato for særtilleggsfaktor",{"$f":"IF(INDIRECT(ADDRESS(ROW()-1,COLUMN()))<>\"\",INDIRECT(ADDRESS(ROW()-1,COLUMN())),\"\")","v":""},{"$f":"IF(INDIRECT(ADDRESS(ROW()-1,COLUMN()))<>\"\",INDIRECT(ADDRESS(ROW()-1,COLUMN())),\"\")","v":""},"STFDATO",1992,2010,null,null,"F_EFAM"]
["Samlet fradrag ",null,null,"FRADFAK ",1992,2010,null,null,"F_EFAM"]
["Endringsdato for f/faktor",{"$f":"IF(INDIRECT(ADDRESS(ROW()-1,COLUMN()))<>\"\",INDIRECT(ADDRESS(ROW()-1,COLUMN())),\"\")","v":""},{"$f":"IF(INDIRECT(ADDRESS(ROW()-1,COLUMN()))<>\"\",INDIRECT(ADDRESS(ROW()-1,COLUMN())),\"\")","v":""},"FRAFDATO",1992,2010,null,null,"F_EFAM"]
["Miniregisterkontroll - fødselsnummer ",null,null,"MRK_FNR ",1992,2010,null,null,"F_EFAM"]
["Beregning av folketrygd (EØS) ",null,null,"BERTRYGD ",1992,2010,null,null,"F_EFAM"]
["Dato for beregning av trygd EØS",{"$f":"IF(INDIRECT(ADDRESS(ROW()-1,COLUMN()))<>\"\",INDIRECT(ADDRESS(ROW()-1,COLUMN())),\"\")","v":""},{"$f":"IF(INDIRECT(ADDRESS(ROW()-1,COLUMN()))<>\"\",INDIRECT(ADDRESS(ROW()-1,COLUMN())),\"\")","v":""},"BERTDATO",1992,2010,null,null,"F_EFAM"]
["Til og med dato gruppetilfelle ",{"$f":"IF(B635<>\"\",B635,\"\")","v":""},{"$f":"IF(C635<>\"\",C635,\"\")","v":""},"PNSJTOM ",1992,2010,null,null,"F_EFAM"]
[]
["*Skriv ønskede årganger i første ruten for å velge obligatoriske variabler"]
["Tabell: Pensjoner desember måned 1967-1990 (TAB_PENSJONSDATA )",null,null,null,1967,1990]
["Løpenummer (avidentifisert fødselsnummer)",{"$f":"IF(B663<>\"\",B663,\"\")","v":""},{"$f":"IF(C635<>\"\",C635,\"\")","v":""},"wXX_XXXX_lnr ",1967,1990,null,null,"TAB_PENSJONSDATA ","microdata.no"]
["Grunnpensjonsfaktor ",null,null,"GPFAK ",1967,1990,null,null,"TAB_PENSJONSDATA ","microdata.no"]
["Særtilleggsfaktor ",null,null,"STFAK ",1967,1990,null,null,"TAB_PENSJONSDATA ","microdata.no"]
["Tilleggspensjonsfaktor (inkl. garantitillegg) ",null,null,"TPFAK ",1967,1990,null,null,"TAB_PENSJONSDATA ","microdata.no"]
["Sum av ventetillegg ",null,null,"VTSMFAK ",1967,1990,null,null,"TAB_PENSJONSDATA ","microdata.no"]
["Samlet fradrag ",null,null,"FRADFAK ",1967,1990,null,null,"TAB_PENSJONSDATA ","microdata.no"]
["Ektefelletilleggsfaktor ",null,null,"ETFAK ",1967,1990,null,null,"TAB_PENSJONSDATA ","microdata.no"]
["Barnetilleggsfaktor ",null,null,"BTFAK ",1967,1990,null,null,"TAB_PENSJONSDATA ","microdata.no"]
["Grunnstønadsbeløp ",null,null,"GSKR ",1967,1990,null,null,"TAB_PENSJONSDATA ",null,"Særlig kategori"]
["Hjelpestønadsbeløp ",null,null,"HSUKR ",1967,1990,null,null,"TAB_PENSJONSDATA ",null,"Særlig kategori"]
["Alder ved utgang av kalenderåret ",null,null,"ALDER ",1967,1990,null,null,"TAB_PENSJONSDATA "]
["Pensjonstype 1 ",null,null,"PT1 ",1967,1990,null,null,"TAB_PENSJONSDATA ",null,"Særlig kategori"]
["Pensjonstype 2 ",null,null,"PT2 ",1967,1990,null,null,"TAB_PENSJONSDATA "]
["Pensjonsstatus ",null,null,"PSTAT ",1967,1990,null,null,"TAB_PENSJONSDATA "]
["Alderspensjonsdel ",null,null,"APD ",1967,1990,null,null,"TAB_PENSJONSDATA "]
["Uføregrad i prosent ",null,null,"UFG ",1967,1990,null,null,"TAB_PENSJONSDATA ","microdata.no"]
["Første virkningsdato (tidspunkt) for grunnstønad ",null,null,"FVTPGS ",1967,1990,null,null,"TAB_PENSJONSDATA "]
["Første vrikningsdato (tidspunkt) for hjelpestønad ",null,null,"FVTPHSU ",1967,1990,null,null,"TAB_PENSJONSDATA "]
["Registermåned ",{"$f":"IF(B635<>\"\",B635,\"\")","v":""},{"$f":"IF(C635<>\"\",C635,\"\")","v":""},"PR_TIDS ",1967,1990,null,null,"TAB_PENSJONSDATA "]
["Kode for pensjon ",{"$f":"IF(B635<>\"\",B635,\"\")","v":""},{"$f":"IF(C635<>\"\",C635,\"\")","v":""},"PNSJKODE ",1967,1990,null,null,"TAB_PENSJONSDATA "]
["Første uføretidspunkt ",null,null,"FUFT ",1967,1990,null,null,"TAB_PENSJONSDATA "]
["Første virkningsdato for pensjonsordningen ",null,null,"FVIRK ",1967,1990,null,null,"TAB_PENSJONSDATA "]
["Grunnstønad ",null,null,"GRSTO ",1967,1990,null,null,"TAB_PENSJONSDATA ",null,"Særlig kategori"]
["Hjelpestønad ",null,null,"HJSTO ",1967,1990,null,null,"TAB_PENSJONSDATA ",null,"Særlig kategori"]
[]
["*Skriv ønskede årganger i første ruten for å velge obligatoriske variabler"]
["Tabell: Pensjonspoeng (TAB_SPT_OPT)",null,null,null,1992,2010]
["Løpenummer (avidentifisert fødselsnummer)",{"$f":"IF(B690<>\"\",B690,\"\")","v":""},{"$f":"IF(C690<>\"\",C690,\"\")","v":""},"wXX_XXXX_lnr ",1992,2010,null,null,"TAB_SPT_OPT ","microdata.no"]
["Sluttpoengtall ",null,null,"SPT ",1992,2010,null,null,"TAB_SPT_OPT ","microdata.no"]
["Overkompensasjon ",null,null,"OPT ",1992,2010,null,null,"TAB_SPT_OPT ","microdata.no"]
["Miniregisterkontroll, fødselsnummer ",null,null,"MRK_FNR ",1992,2010,null,null,"TAB_SPT_OPT "]
["Årgang opplysningen gjelder for ",{"$f":"IF(B690<>\"\",B690,\"\")","v":""},{"$f":"IF(C690<>\"\",C690,\"\")","v":""},"AARGANG ",1992,2010,null,null,"TAB_SPT_OPT "]
[]
["*Skriv ønskede årganger i første ruten for å velge obligatoriske variabler"]
["Tabell: Uførepensjon",null,null,null,1991,2010,null,null,null,null,"Særlig kategori (hele tabellen)"]
["Løpenummer (avidentifisert fødselsnummer)",{"$f":"IF(B698<>\"\",B698,\"\")","v":""},{"$f":"IF(C698<>\"\",C698,\"\")","v":""},"wXX_XXXX_lnr ",1991,2010,null,null,"F_UFP","microdata.no","Særlig kategori"]
["Kode for pensjonen ",{"$f":"IF(B698<>\"\",B698,\"\")","v":""},{"$f":"IF(C698<>\"\",C698,\"\")","v":""},"PNSJKODE ",1991,2010,null,null,"F_UFP",null,"Særlig kategori"]
["Registreringsdato pensjon og stønader ",{"$f":"IF(B698<>\"\",B698,\"\")","v":""},{"$f":"IF(C698<>\"\",C698,\"\")","v":""},"REGDATO ",1991,2010,null,null,"F_UFP",null,"Særlig kategori"]
["Pensjonsgruppens tilgangsdato ",{"$f":"IF(B698<>\"\",B698,\"\")","v":""},{"$f":"IF(C698<>\"\",C698,\"\")","v":""},"PNSJTILG ",1991,2010,null,null,"F_UFP","microdata.no","Særlig kategori"]
["Pensjonsgruppens avgangsdato ",{"$f":"IF(B698<>\"\",B698,\"\")","v":""},{"$f":"IF(C698<>\"\",C698,\"\")","v":""},"PNSJAVG ",1991,2010,null,null,"F_UFP","microdata.no","Særlig kategori"]
["Pensjonstype 1 ",null,null,"PT1 ",1991,2010,null,null,"F_UFP",null,"Særlig kategori"]
["Endringsdato for pensjonstype 1",{"$f":"IF(INDIRECT(ADDRESS(ROW()-1,COLUMN()))<>\"\",INDIRECT(ADDRESS(ROW()-1,COLUMN())),\"\")","v":""},{"$f":"IF(INDIRECT(ADDRESS(ROW()-1,COLUMN()))<>\"\",INDIRECT(ADDRESS(ROW()-1,COLUMN())),\"\")","v":""},"PT1DATO",1991,2010,null,null,"F_UFP",null,"Særlig kategori"]
["Pensjonstype 2 ",null,null,"PT2 ",1991,2010,null,null,"F_UFP",null,"Særlig kategori"]
["Endringsdato for pensjonstype 2",{"$f":"IF(INDIRECT(ADDRESS(ROW()-1,COLUMN()))<>\"\",INDIRECT(ADDRESS(ROW()-1,COLUMN())),\"\")","v":""},{"$f":"IF(INDIRECT(ADDRESS(ROW()-1,COLUMN()))<>\"\",INDIRECT(ADDRESS(ROW()-1,COLUMN())),\"\")","v":""},"PT2DATO",1991,2010,null,null,"F_UFP",null,"Særlig kategori"]
["Pensjonstype 3 ",null,null,"PT3 ",1991,2010,null,null,"F_UFP",null,"Særlig kategori"]
["Endringsdato for pensjonstype 3",{"$f":"IF(INDIRECT(ADDRESS(ROW()-1,COLUMN()))<>\"\",INDIRECT(ADDRESS(ROW()-1,COLUMN())),\"\")","v":""},{"$f":"IF(INDIRECT(ADDRESS(ROW()-1,COLUMN()))<>\"\",INDIRECT(ADDRESS(ROW()-1,COLUMN())),\"\")","v":""},"PT3DATO",1991,2010,null,null,"F_UFP",null,"Særlig kategori"]
["Pensjonsstatus ",null,null,"PSTAT ",1991,2010,null,null,"F_UFP",null,"Særlig kategori"]
["Endringsdato for pensjonsstatus",{"$f":"IF(INDIRECT(ADDRESS(ROW()-1,COLUMN()))<>\"\",INDIRECT(ADDRESS(ROW()-1,COLUMN())),\"\")","v":""},{"$f":"IF(INDIRECT(ADDRESS(ROW()-1,COLUMN()))<>\"\",INDIRECT(ADDRESS(ROW()-1,COLUMN())),\"\")","v":""},"PSTADATO",1991,2010,null,null,"F_UFP",null,"Særlig kategori"]
["Første virkningsdato for pensjonsordningen ",null,null,"FVIRK ",1991,2010,null,null,"F_UFP",null,"Særlig kategori"]
["Endringsdato for virkningsdato for pensjonsordning",{"$f":"IF(INDIRECT(ADDRESS(ROW()-1,COLUMN()))<>\"\",INDIRECT(ADDRESS(ROW()-1,COLUMN())),\"\")","v":""},{"$f":"IF(INDIRECT(ADDRESS(ROW()-1,COLUMN()))<>\"\",INDIRECT(ADDRESS(ROW()-1,COLUMN())),\"\")","v":""},"FVRKDATO",1991,2010,null,null,"F_UFP",null,"Særlig kategori"]
["Spesialpoeng til unge uføre ",null,null,"BUPGAR ",1991,2010,null,null,"F_UFP",null,"Særlig kategori"]
["Endringsdato for bupgaranti",{"$f":"IF(INDIRECT(ADDRESS(ROW()-1,COLUMN()))<>\"\",INDIRECT(ADDRESS(ROW()-1,COLUMN())),\"\")","v":""},{"$f":"IF(INDIRECT(ADDRESS(ROW()-1,COLUMN()))<>\"\",INDIRECT(ADDRESS(ROW()-1,COLUMN())),\"\")","v":""},"BUPGDATO",1991,2010,null,null,"F_UFP",null,"Særlig kategori"]
["Første uføretidspunkt ",null,null,"FUFT ",1991,2010,null,null,"F_UFP",null,"Særlig kategori"]
["Endringsdato for første uføretidspunkt ",{"$f":"IF(INDIRECT(ADDRESS(ROW()-1,COLUMN()))<>\"\",INDIRECT(ADDRESS(ROW()-1,COLUMN())),\"\")","v":""},{"$f":"IF(INDIRECT(ADDRESS(ROW()-1,COLUMN()))<>\"\",INDIRECT(ADDRESS(ROW()-1,COLUMN())),\"\")","v":""},"FUFTDATO",1991,2010,null,null,"F_UFP",null,"Særlig kategori"]
["Uføregrad i prosent ",null,null,"UFG ",1991,2010,null,null,"F_UFP","microdata.no","Særlig kategori"]
["Endringsdato for uføregrad for uførepensjonist",{"$f":"IF(INDIRECT(ADDRESS(ROW()-1,COLUMN()))<>\"\",INDIRECT(ADDRESS(ROW()-1,COLUMN())),\"\")","v":""},{"$f":"IF(INDIRECT(ADDRESS(ROW()-1,COLUMN()))<>\"\",INDIRECT(ADDRESS(ROW()-1,COLUMN())),\"\")","v":""},"UFGDATO",1991,2010,null,null,"F_UFP",null,"Særlig kategori"]
["Grunnpensjonsfaktor ",null,null,"GPFAK ",1991,2010,null,null,"F_UFP",null,"Særlig kategori"]
["Endringsdato for grunnpensjon-faktor",{"$f":"IF(INDIRECT(ADDRESS(ROW()-1,COLUMN()))<>\"\",INDIRECT(ADDRESS(ROW()-1,COLUMN())),\"\")","v":""},{"$f":"IF(INDIRECT(ADDRESS(ROW()-1,COLUMN()))<>\"\",INDIRECT(ADDRESS(ROW()-1,COLUMN())),\"\")","v":""},"GPFDATO",1991,2010,null,null,"F_UFP",null,"Særlig kategori"]
["Særtilleggsfaktor ",null,null,"STFAK ",1991,2010,null,null,"F_UFP",null,"Særlig kategori"]
["Endringsdato for særtilleggsfaktor",{"$f":"IF(INDIRECT(ADDRESS(ROW()-1,COLUMN()))<>\"\",INDIRECT(ADDRESS(ROW()-1,COLUMN())),\"\")","v":""},{"$f":"IF(INDIRECT(ADDRESS(ROW()-1,COLUMN()))<>\"\",INDIRECT(ADDRESS(ROW()-1,COLUMN())),\"\")","v":""},"STFDATO",1991,2010,null,null,"F_UFP",null,"Særlig kategori"]
["Tilleggspensjonsfaktor (inkl. garantitillegg) ",null,null,"TPFAK ",1991,2010,null,null,"F_UFP",null,"Særlig kategori"]
["Endringsdato for tilleggspensjon-faktor",{"$f":"IF(INDIRECT(ADDRESS(ROW()-1,COLUMN()))<>\"\",INDIRECT(ADDRESS(ROW()-1,COLUMN())),\"\")","v":""},{"$f":"IF(INDIRECT(ADDRESS(ROW()-1,COLUMN()))<>\"\",INDIRECT(ADDRESS(ROW()-1,COLUMN())),\"\")","v":""},"TPFDATO",1991,2010,null,null,"F_UFP",null,"Særlig kategori"]
["Ektefelletilleggsfaktor ",null,null,"ETFAK ",1991,2010,null,null,"F_UFP",null,"Særlig kategori"]
["Endringsdato for ektefelletillegg-faktor",{"$f":"IF(INDIRECT(ADDRESS(ROW()-1,COLUMN()))<>\"\",INDIRECT(ADDRESS(ROW()-1,COLUMN())),\"\")","v":""},{"$f":"IF(INDIRECT(ADDRESS(ROW()-1,COLUMN()))<>\"\",INDIRECT(ADDRESS(ROW()-1,COLUMN())),\"\")","v":""},"ETFDATO",1991,2010,null,null,"F_UFP",null,"Særlig kategori"]
["Barnetilleggsfaktor ",null,null,"BTFAK ",1991,2010,null,null,"F_UFP",null,"Særlig kategori"]
["Endringsdato for barnetillegg-faktor",{"$f":"IF(INDIRECT(ADDRESS(ROW()-1,COLUMN()))<>\"\",INDIRECT(ADDRESS(ROW()-1,COLUMN())),\"\")","v":""},{"$f":"IF(INDIRECT(ADDRESS(ROW()-1,COLUMN()))<>\"\",INDIRECT(ADDRESS(ROW()-1,COLUMN())),\"\")","v":""},"BTFDATO",1991,2010,null,null,"F_UFP",null,"Særlig kategori"]
["Miniregisterkontroll - fødselsnummer ",null,null,"MRK_FNR ",1991,2010,null,null,"F_UFP",null,"Særlig kategori"]
["Nordisk yrkeskode ",null,null,"NYK ",1991,2010,null,null,"F_UFP",null,"Særlig kategori"]
["Dato for nordisk yrkeskode",{"$f":"IF(C698<>\"\",C698,\"\")","v":""},{"$f":"IF(C698<>\"\",C698,\"\")","v":""},"NYKDATO",1991,2010,null,null,"F_UFP",null,"Særlig kategori"]
["Beregning av folketrygd (EØS) ",null,null,"BERTRYGD ",1991,2010,null,null,"F_UFP",null,"Særlig kategori"]
["Dato for beregning av trygd EØS",{"$f":"IF(INDIRECT(ADDRESS(ROW()-1,COLUMN()))<>\"\",INDIRECT(ADDRESS(ROW()-1,COLUMN())),\"\")","v":""},{"$f":"IF(INDIRECT(ADDRESS(ROW()-1,COLUMN()))<>\"\",INDIRECT(ADDRESS(ROW()-1,COLUMN())),\"\")","v":""},"BERTDATO",1991,2010,null,null,"F_UFP",null,"Særlig kategori"]
["Til og med dato gruppetilfelle ",{"$f":"IF(B698<>\"\",B698,\"\")","v":""},{"$f":"IF(C698<>\"\",C698,\"\")","v":""},"PNSJTOM",1991,2010,null,null,"F_UFP",null,"Særlig kategori"]
[]
["*Skriv ønskede årganger i første ruten for å velge obligatoriske variabler"]
["PENSJONER, FRA OG MED 2011\nTabell: Alderspensjon fra og med 2011 (F_PENSJ_ALDP)",null,null,null,2011,2023]
["Løpenummer (avidentifisert fødselsnummer)",{"$f":"IF(B738<>\"\",B738,\"\")","v":""},{"$f":"IF(C738<>\"\",C738,\"\")","v":""},"wXX_XXXX_lnr ",2011,2023,null,null,"F_PENSJ_ALDP","microdata.no"]
["Hendelseskode for alderspensjon ",{"$f":"IF(B738<>\"\",B738,\"\")","v":""},{"$f":"IF(C738<>\"\",C738,\"\")","v":""},"KODE ",2011,2023,null,null,"F_PENSJ_ALDP"]
["Registreringsdato for hendelsen ",{"$f":"IF(B738<>\"\",B738,\"\")","v":""},{"$f":"IF(C738<>\"\",C738,\"\")","v":""},"REGDATO ",2011,2023,null,null,"F_PENSJ_ALDP"]
["Tilgangsdato for alderspensjon ",{"$f":"IF(B738<>\"\",B738,\"\")","v":""},{"$f":"IF(C738<>\"\",C738,\"\")","v":""},"PNSJTILG ",2011,2023,null,null,"F_PENSJ_ALDP","microdata.no"]
["Avgangsdato for alderspensjon ",{"$f":"IF(B738<>\"\",B738,\"\")","v":""},{"$f":"IF(C738<>\"\",C738,\"\")","v":""},"PNSJAVG ",2011,2023,null,null,"F_PENSJ_ALDP","microdata.no"]
["Pensjonsgrad ",null,null,"GRAD ",2011,2023,null,null,"F_PENSJ_ALDP","microdata.no"]
["Endringsdato for pensjonsgrad ",{"$f":"IF(INDIRECT(ADDRESS(ROW()-1,COLUMN()))<>\"\",INDIRECT(ADDRESS(ROW()-1,COLUMN())),\"\")","v":""},{"$f":"IF(INDIRECT(ADDRESS(ROW()-1,COLUMN()))<>\"\",INDIRECT(ADDRESS(ROW()-1,COLUMN())),\"\")","v":""},"GRADDATO ",2011,2023,null,null,"F_PENSJ_ALDP"]
["Aktivstatus ",null,null,"AKTIV ",2011,2023,null,null,"F_PENSJ_ALDP"]
["Endringsdato for aktivstatus ",{"$f":"IF(INDIRECT(ADDRESS(ROW()-1,COLUMN()))<>\"\",INDIRECT(ADDRESS(ROW()-1,COLUMN())),\"\")","v":""},{"$f":"IF(INDIRECT(ADDRESS(ROW()-1,COLUMN()))<>\"\",INDIRECT(ADDRESS(ROW()-1,COLUMN())),\"\")","v":""},"AKTIVDATO ",2011,2023,null,null,"F_PENSJ_ALDP"]
["Fødselsnummerkontroll ",null,null,"MRK_FNR ",2011,2023,null,null,"F_PENSJ_ALDP"]
["Til og med dato for tilfellet ",{"$f":"IF(B738<>\"\",B738,\"\")","v":""},{"$f":"IF(C738<>\"\",C738,\"\")","v":""},"PNSJTOM ",2011,2023,null,null,"F_PENSJ_ALDP"]
["Teknisk hjelpevariabel - sluttdato for endringsrekord",null,null,"REGTOM",2011,2023,null,null,"F_PENSJ_ALDP"]
[]
["*Skriv ønskede årganger i første ruten for å velge obligatoriske variabler"]
["Tabell: Avtalefestet pensjon - offentlig sektor fra og med 2011 (F_PENSJ_AFP_O)",null,null,null,2011,2023]
["Løpenummer (avidentifisert fødselsnummer)",{"$f":"IF(B753<>\"\",B753,\"\")","v":""},{"$f":"IF(C753<>\"\",C753,\"\")","v":""},"wXX_XXXX_lnr ",2011,2023,null,null,"F_PENSJ_AFP_O ","microdata.no"]
["Hendelseskode for afp off. sektor ",{"$f":"IF(B753<>\"\",B753,\"\")","v":""},{"$f":"IF(C753<>\"\",C753,\"\")","v":""},"KODE ",2011,2023,null,null,"F_PENSJ_AFP_O "]
["Registreringsdato for hendelsen ",{"$f":"IF(B753<>\"\",B753,\"\")","v":""},{"$f":"IF(C753<>\"\",C753,\"\")","v":""},"REGDATO ",2011,2023,null,null,"F_PENSJ_AFP_O "]
["Tilgangsdato for afp off. sektor ",{"$f":"IF(B753<>\"\",B753,\"\")","v":""},{"$f":"IF(C753<>\"\",C753,\"\")","v":""},"PNSJTILG ",2011,2023,null,null,"F_PENSJ_AFP_O ","microdata.no"]
["Avgangsdato for afp off. sektor ",{"$f":"IF(B753<>\"\",B753,\"\")","v":""},{"$f":"IF(C753<>\"\",C753,\"\")","v":""},"PNSJAVG ",2011,2023,null,null,"F_PENSJ_AFP_O ","microdata.no"]
["Type avtalefestet pensjon, offentlig ordning ",null,null,"AFP_TYPE ",2011,2023,null,null,"F_PENSJ_AFP_O "]
["Endringsdato for  AFP-type ",{"$f":"IF(INDIRECT(ADDRESS(ROW()-1,COLUMN()))<>\"\",INDIRECT(ADDRESS(ROW()-1,COLUMN())),\"\")","v":""},{"$f":"IF(INDIRECT(ADDRESS(ROW()-1,COLUMN()))<>\"\",INDIRECT(ADDRESS(ROW()-1,COLUMN())),\"\")","v":""},"AFP_DATO ",2011,2023,null,null,"F_PENSJ_AFP_O "]
["Pensjonsgrad ",null,null,"GRAD ",2011,2023,null,null,"F_PENSJ_AFP_O ","microdata.no"]
["Endringsdato for pensjonsgrad ",{"$f":"IF(INDIRECT(ADDRESS(ROW()-1,COLUMN()))<>\"\",INDIRECT(ADDRESS(ROW()-1,COLUMN())),\"\")","v":""},{"$f":"IF(INDIRECT(ADDRESS(ROW()-1,COLUMN()))<>\"\",INDIRECT(ADDRESS(ROW()-1,COLUMN())),\"\")","v":""},"GRADDATO ",2011,2023,null,null,"F_PENSJ_AFP_O "]
["Fødselsnummerkontroll ",null,null,"MRK_FNR ",2011,2023,null,null,"F_PENSJ_AFP_O "]
["Til og med dato for tilfellet ",{"$f":"IF(B753<>\"\",B753,\"\")","v":""},{"$f":"IF(C753<>\"\",C753,\"\")","v":""},"PNSJTOM ",2011,2023,null,null,"F_PENSJ_AFP_O "]
["Teknisk hjelpevariabel - sluttdato for endringsrekord",null,null,"REGTOM",2011,2023,null,null,"F_PENSJ_AFP_O "]
[]
["*Skriv ønskede årganger i første ruten for å velge obligatoriske variabler"]
["Tabell: Avtalefestet pensjon - privat sektor fra og med 2011 (F_PENSJ_AFP_P)",null,null,null,2011,2023]
["Løpenummer (avidentifisert fødselsnummer)",{"$f":"IF(B768<>\"\",B768,\"\")","v":""},{"$f":"IF(C768<>\"\",C768,\"\")","v":""},"wXX_XXXX_lnr ",2011,2023,null,null,"F_PENSJ_AFP_P","microdata.no"]
["Hendelseskode for afp priv. sektor ",{"$f":"IF(B768<>\"\",B768,\"\")","v":""},{"$f":"IF(C768<>\"\",C768,\"\")","v":""},"KODE ",2011,2023,null,null,"F_PENSJ_AFP_P"]
["Registreringsdato for hendelsen ",{"$f":"IF(B768<>\"\",B768,\"\")","v":""},{"$f":"IF(C768<>\"\",C768,\"\")","v":""},"REGDATO ",2011,2023,null,null,"F_PENSJ_AFP_P"]
["Tilgangsdato for afp priv. sektor ",{"$f":"IF(B768<>\"\",B768,\"\")","v":""},{"$f":"IF(C768<>\"\",C768,\"\")","v":""},"PNSJTILG ",2011,2023,null,null,"F_PENSJ_AFP_P","microdata.no"]
["Avgangsdato for afp priv. sektor ",{"$f":"IF(B768<>\"\",B768,\"\")","v":""},{"$f":"IF(C768<>\"\",C768,\"\")","v":""},"PNSJAVG ",2011,2023,null,null,"F_PENSJ_AFP_P","microdata.no"]
["Type avtalefestet pensjon, privat ordning ",null,null,"AFP_TYPE ",2011,2023,null,null,"F_PENSJ_AFP_P"]
["Endringsdato for  afp-type ",{"$f":"IF(INDIRECT(ADDRESS(ROW()-1,COLUMN()))<>\"\",INDIRECT(ADDRESS(ROW()-1,COLUMN())),\"\")","v":""},{"$f":"IF(INDIRECT(ADDRESS(ROW()-1,COLUMN()))<>\"\",INDIRECT(ADDRESS(ROW()-1,COLUMN())),\"\")","v":""},"AFP_DATO ",2011,2023,null,null,"F_PENSJ_AFP_P"]
["Pensjonsgrad ",null,null,"GRAD ",2011,2023,null,null,"F_PENSJ_AFP_P","microdata.no"]
["Endringsdato for pensjonsgrad ",{"$f":"IF(INDIRECT(ADDRESS(ROW()-1,COLUMN()))<>\"\",INDIRECT(ADDRESS(ROW()-1,COLUMN())),\"\")","v":""},{"$f":"IF(INDIRECT(ADDRESS(ROW()-1,COLUMN()))<>\"\",INDIRECT(ADDRESS(ROW()-1,COLUMN())),\"\")","v":""},"GRADDATO ",2011,2023,null,null,"F_PENSJ_AFP_P"]
["Fødselsnummerkontroll ",null,null,"MRK_FNR ",2011,2023,null,null,"F_PENSJ_AFP_P"]
["Til og med dato for tilfellet ",{"$f":"IF(B768<>\"\",B768,\"\")","v":""},{"$f":"IF(C768<>\"\",C768,\"\")","v":""},"PNSJTOM ",2011,2023,null,null,"F_PENSJ_AFP_P"]
["Teknisk hjelpevariabel - sluttdato for endringsrekord",null,null,"REGTOM",2011,2023,null,null,"F_PENSJ_AFP_P"]
[]
["*Skriv ønskede årganger i første ruten for å velge obligatoriske variabler"]
["Tabell: Pensjon - etterlatt barn fra og med 2011",null,null,null,2011,2023]
["Løpenummer (avidentifisert fødselsnummer)",{"$f":"IF(B783<>\"\",B783,\"\")","v":""},{"$f":"IF(C783<>\"\",C783,\"\")","v":""},"wXX_XXXX_lnr ",2011,2023,null,null,"F_PENSJ_EBAR ","microdata.no"]
["Hendelseskode for etterlattepensjonen ",{"$f":"IF(B783<>\"\",B783,\"\")","v":""},{"$f":"IF(C783<>\"\",C783,\"\")","v":""},"KODE ",2011,2023,null,null,"F_PENSJ_EBAR "]
["Registreringsdato for hendelsen ",{"$f":"IF(B783<>\"\",B783,\"\")","v":""},{"$f":"IF(C783<>\"\",C783,\"\")","v":""},"REGDATO ",2011,2023,null,null,"F_PENSJ_EBAR "]
["Tilgangsdato for etterlattepensjonen ",{"$f":"IF(B783<>\"\",B783,\"\")","v":""},{"$f":"IF(C783<>\"\",C783,\"\")","v":""},"PNSJTILG ",2011,2023,null,null,"F_PENSJ_EBAR ","microdata.no"]
["Avgangsdato for etterlattepensjonen ",{"$f":"IF(B783<>\"\",B783,\"\")","v":""},{"$f":"IF(C783<>\"\",C783,\"\")","v":""},"PNSJAVG ",2011,2023,null,null,"F_PENSJ_EBAR ","microdata.no"]
["Fødselsnummerkontroll ",null,null,"MRK_FNR ",2011,2023,null,null,"F_PENSJ_EBAR "]
["Til og med dato for tilfellet ",{"$f":"IF(B783<>\"\",B783,\"\")","v":""},{"$f":"IF(C783<>\"\",C783,\"\")","v":""},"PNSJTOM ",2011,2023,null,null,"F_PENSJ_EBAR "]
["Teknisk hjelpevariabel - sluttdato for endringsrekord",null,null,"REGTOM",2011,2023,null,null,"F_PENSJ_EBAR "]
[]
["*Skriv ønskede årganger i første ruten for å velge obligatoriske variabler"]
["Tabell: Pensjon - etterlatt ektefelle fra og med 2011",null,null,null,2011,2023]
["Løpenummer (avidentifisert fødselsnummer)",{"$f":"IF(B794<>\"\",B794,\"\")","v":""},{"$f":"IF(C794<>\"\",C794,\"\")","v":""},"wXX_XXXX_lnr ",2011,2023,null,null,"F_PENSJ_EEKT ","microdata.no"]
["Hendelseskode for etterlattepensjonen ",{"$f":"IF(B794<>\"\",B794,\"\")","v":""},{"$f":"IF(C794<>\"\",C794,\"\")","v":""},"KODE ",2011,2023,null,null,"F_PENSJ_EEKT "]
["Registreringsdato for hendelsen ",{"$f":"IF(B794<>\"\",B794,\"\")","v":""},{"$f":"IF(C794<>\"\",C794,\"\")","v":""},"REGDATO ",2011,2023,null,null,"F_PENSJ_EEKT "]
["Tilgangsdato for etterlattepensjonen ",{"$f":"IF(B794<>\"\",B794,\"\")","v":""},{"$f":"IF(C794<>\"\",C794,\"\")","v":""},"PNSJTILG ",2011,2023,null,null,"F_PENSJ_EEKT ","microdata.no"]
["Avgangsdato for etterlattepensjonen ",{"$f":"IF(B794<>\"\",B794,\"\")","v":""},{"$f":"IF(C794<>\"\",C794,\"\")","v":""},"PNSJAVG ",2011,2023,null,null,"F_PENSJ_EEKT ","microdata.no"]
["Pensjonsgrad ",null,null,"GRAD ",2011,2023,null,null,"F_PENSJ_EEKT ","microdata.no"]
["Endringsdato for pensjonsgrad ",{"$f":"IF(INDIRECT(ADDRESS(ROW()-1,COLUMN()))<>\"\",INDIRECT(ADDRESS(ROW()-1,COLUMN())),\"\")","v":""},{"$f":"IF(INDIRECT(ADDRESS(ROW()-1,COLUMN()))<>\"\",INDIRECT(ADDRESS(ROW()-1,COLUMN())),\"\")","v":""},"GRADDATO ",2011,2023,null,null,"F_PENSJ_EEKT "]
["Fødselsnummerkontroll ",null,null,"MRK_FNR ",2011,2023,null,null,"F_PENSJ_EEKT "]
["Til og med dato for tilfellet ",{"$f":"IF(B794<>\"\",B794,\"\")","v":""},{"$f":"IF(C794<>\"\",C794,\"\")","v":""},"PNSJTOM ",2011,2023,null,null,"F_PENSJ_EEKT "]
["Teknisk hjelpevariabel - sluttdato for endringsrekord",null,null,"REGTOM",2011,2023,null,null,"F_PENSJ_EEKT "]
[]
["*Skriv ønskede årganger i første ruten for å velge obligatoriske variabler"]
["Tabell: Pensjon - etterlatt familiepleier fra og med 2011",null,null,null,2011,2023]
["Løpenummer (avidentifisert fødselsnummer)",{"$f":"IF(B807<>\"\",B807,\"\")","v":""},{"$f":"IF(C807<>\"\",C807,\"\")","v":""},"wXX_XXXX_lnr ",2011,2023,null,null,"F_PENSJ_EFAM ","microdata.no"]
["Hendelseskode for etterlattepensjonen ",{"$f":"IF(B807<>\"\",B807,\"\")","v":""},{"$f":"IF(C807<>\"\",C807,\"\")","v":""},"KODE ",2011,2023,null,null,"F_PENSJ_EFAM "]
["Registreringsdato for hendelsen ",{"$f":"IF(B807<>\"\",B807,\"\")","v":""},{"$f":"IF(C807<>\"\",C807,\"\")","v":""},"REGDATO ",2011,2023,null,null,"F_PENSJ_EFAM "]
["Tilgangsdato for etterlattepensjonen ",{"$f":"IF(B807<>\"\",B807,\"\")","v":""},{"$f":"IF(C807<>\"\",C807,\"\")","v":""},"PNSJTILG ",2011,2023,null,null,"F_PENSJ_EFAM ","microdata.no"]
["Avgangsdato for etterlattepensjonen ",{"$f":"IF(B807<>\"\",B807,\"\")","v":""},{"$f":"IF(C807<>\"\",C807,\"\")","v":""},"PNSJAVG ",2011,2023,null,null,"F_PENSJ_EFAM ","microdata.no"]
["Fødselsnummerkontroll ",null,null,"MRK_FNR ",2011,2023,null,null,"F_PENSJ_EFAM "]
["Til og med dato for tilfellet ",{"$f":"IF(B807<>\"\",B807,\"\")","v":""},{"$f":"IF(C807<>\"\",C807,\"\")","v":""},"PNSJTOM ",2011,2023,null,null,"F_PENSJ_EFAM "]
["Teknisk hjelpevariabel - sluttdato for endringsrekord",null,null,"REGTOM",2011,2023,null,null,"F_PENSJ_EFAM "]
[]
["*Skriv ønskede årganger i første ruten for å velge obligatoriske variabler"]
["Tabell: Uførepensjon fra og med 2011",null,null,null,2011,2023,null,null,null,null,"Særlig kategori (hele tabellen)"]
["Løpenummer (avidentifisert fødselsnummer)",{"$f":"IF(B818<>\"\",B818,\"\")","v":""},{"$f":"IF(C818<>\"\",C818,\"\")","v":""},"wXX_XXXX_lnr ",2011,2023,null,null,"F_PENSJ_UFP ","microdata.no","Særlig kategori"]
["Hendelseskode for uførepensjon ",{"$f":"IF(B818<>\"\",B818,\"\")","v":""},{"$f":"IF(C818<>\"\",C818,\"\")","v":""},"KODE ",2011,2023,null,null,"F_PENSJ_UFP ",null,"Særlig kategori"]
["Registreringsdato for hendelsen ",{"$f":"IF(B818<>\"\",B818,\"\")","v":""},{"$f":"IF(C818<>\"\",C818,\"\")","v":""},"REGDATO ",2011,2023,null,null,"F_PENSJ_UFP ",null,"Særlig kategori"]
["Tilgangsdato for uførepensjon ",{"$f":"IF(B818<>\"\",B818,\"\")","v":""},{"$f":"IF(C818<>\"\",C818,\"\")","v":""},"PNSJTILG ",2011,2023,null,null,"F_PENSJ_UFP ","microdata.no","Særlig kategori"]
["Avgangsdato for uførepensjon ",{"$f":"IF(B818<>\"\",B818,\"\")","v":""},{"$f":"IF(C818<>\"\",C818,\"\")","v":""},"PNSJAVG ",2011,2023,null,null,"F_PENSJ_UFP ","microdata.no","Særlig kategori"]
["Pensjonsgrad ",null,null,"GRAD ",2011,2023,null,null,"F_PENSJ_UFP ","microdata.no","Særlig kategori"]
["Endringsdato for pensjonsgrad ",{"$f":"IF(INDIRECT(ADDRESS(ROW()-1,COLUMN()))<>\"\",INDIRECT(ADDRESS(ROW()-1,COLUMN())),\"\")","v":""},{"$f":"IF(INDIRECT(ADDRESS(ROW()-1,COLUMN()))<>\"\",INDIRECT(ADDRESS(ROW()-1,COLUMN())),\"\")","v":""},"GRADDATO ",2011,2023,null,null,"F_PENSJ_UFP ",null,"Særlig kategori"]
["Fødselsnummerkontroll ",null,null,"MRK_FNR ",2011,2023,null,null,"F_PENSJ_UFP ",null,"Særlig kategori"]
["Til og med dato for tilfellet ",{"$f":"IF(B818<>\"\",B818,\"\")","v":""},{"$f":"IF(C818<>\"\",C818,\"\")","v":""},"PNSJTOM ",2011,2023,null,null,"F_PENSJ_UFP ",null,"Særlig kategori"]
["Teknisk hjelpevariabel - sluttdato for endringsrekord",null,null,"REGTOM",2011,2023,null,null,"F_PENSJ_UFP ",null,"Særlig kategori"]
[]
["*Skriv ønskede årganger i første ruten for å velge obligatoriske variabler"]
["PENSJONSGIVENDE INNTEKT\nTabell: Pensjonsgivende inntekt (variabler om pensjonspoeng) (TAB_INNT)",null,null,null,1967,2006]
["Løpenummer (avidentifisert fødselsnummer)",{"$f":"IF(B831<>\"\",B831,\"\")","v":""},{"$f":"IF(C831<>\"\",C831,\"\")","v":""},"wXX_XXXX_lnr ",1967,2006,null,null,"TAB_INNT"]
["Inntektsår ",{"$f":"IF(B831<>\"\",B831,\"\")","v":""},{"$f":"IF(C831<>\"\",C831,\"\")","v":""},"INNTAAR ",1967,2006,null,null,"TAB_INNT"]
["Høyeste uføregrad i prosent ",null,null,"HUFGR ",1967,2006,null,null,"TAB_INNT",null,"Særlig kategori"]
["Pensjonspoeng opptjent i året ",null,null,"PP ",1967,2006,null,null,"TAB_INNT"]
["Antall år med pensjonspoeng større enn null ",null,null,"PAA ",1967,2006,null,null,"TAB_INNT"]
["Antall år med pensjonspoeng større enn null de siste 3 år ",null,null,"PAA_3 ",1967,2006,null,null,"TAB_INNT"]
["Gjennomsnittlig pensjonspoeng hittil ",null,null,"GJSN_PP ",1967,2006,null,null,"TAB_INNT"]
["Gjennomsnittlig pensjonspoeng de siste 3 år ",null,null,"GJSN_PP3 ",1967,2006,null,null,"TAB_INNT"]
["Merking av fødselsnummer ",null,null,"MRK_FNR ",1967,2006,null,null,"TAB_INNT"]
[]
["*Skriv ønskede årganger i første ruten for å velge obligatoriske variabler"]
["REHABILITERING OG ATTFØRING\nTabell: Medisinsk rehabilitering fra og med 2002, forløpstabell (F_REHAB)",null,null,null,2002,2010,null,null,null,null,"Særlig kategori (hele tabellen)"]
["Løpenummer (avidentifisert fødselsnummer)",{"$f":"IF(B843<>\"\",B843,\"\")","v":""},{"$f":"IF(C843<>\"\",C843,\"\")","v":""},"wXX_XXXX_lnr ",2002,2010,null,null,"F_REHAB ","microdata.no","Særlig kategori"]
["Kode for type forløpsrecord (hendelser) ",{"$f":"IF(B843<>\"\",B843,\"\")","v":""},{"$f":"IF(C843<>\"\",C843,\"\")","v":""},"KODE ",2002,2010,null,null,"F_REHAB ",null,"Særlig kategori"]
["Hovedgruppe ",{"$f":"IF(B843<>\"\",B843,\"\")","v":""},{"$f":"IF(C843<>\"\",C843,\"\")","v":""},"HOVED ",2002,2010,null,null,"F_REHAB ",null,"Særlig kategori"]
["Registreringsdato ",{"$f":"IF(B843<>\"\",B843,\"\")","v":""},{"$f":"IF(C843<>\"\",C843,\"\")","v":""},"REGDATO ",2002,2010,null,null,"F_REHAB ",null,"Særlig kategori"]
["Tilgangsdato ",{"$f":"IF(B843<>\"\",B843,\"\")","v":""},{"$f":"IF(C843<>\"\",C843,\"\")","v":""},"TILGDATO ",2002,2010,null,null,"F_REHAB ","microdata.no","Særlig kategori"]
["Avgangsdato ",{"$f":"IF(B843<>\"\",B843,\"\")","v":""},{"$f":"IF(C843<>\"\",C843,\"\")","v":""},"AVGDATO ",2002,2010,null,null,"F_REHAB ","microdata.no","Særlig kategori"]
["Tilgangsdato for rehabiliteringsgruppe ",{"$f":"IF(B843<>\"\",B843,\"\")","v":""},{"$f":"IF(C843<>\"\",C843,\"\")","v":""},"REHTILG ",2002,2010,null,null,"F_REHAB ",null,"Særlig kategori"]
["Avgangsdato for rehabiliteringsgruppe ",{"$f":"IF(B843<>\"\",B843,\"\")","v":""},{"$f":"IF(C843<>\"\",C843,\"\")","v":""},"REHAVG ",2002,2010,null,null,"F_REHAB ",null,"Særlig kategori"]
["Dagsats ",null,null,"DAGSATS ",2002,2010,null,null,"F_REHAB ","microdata.no","Særlig kategori"]
["Datering av dagsats",{"$f":"IF(INDIRECT(ADDRESS(ROW()-1,COLUMN()))<>\"\",INDIRECT(ADDRESS(ROW()-1,COLUMN())),\"\")","v":""},{"$f":"IF(INDIRECT(ADDRESS(ROW()-1,COLUMN()))<>\"\",INDIRECT(ADDRESS(ROW()-1,COLUMN())),\"\")","v":""},"DAGSATSDATO",2002,2010,null,null,"F_REHAB ",null,"Særlig kategori"]
["Antall barn ",null,null,"ANT_BARN ",2002,2010,null,null,"F_REHAB ",null,"Særlig kategori"]
["Datering av antall barn",{"$f":"IF(INDIRECT(ADDRESS(ROW()-1,COLUMN()))<>\"\",INDIRECT(ADDRESS(ROW()-1,COLUMN())),\"\")","v":""},{"$f":"IF(INDIRECT(ADDRESS(ROW()-1,COLUMN()))<>\"\",INDIRECT(ADDRESS(ROW()-1,COLUMN())),\"\")","v":""},"ANT_BARNDATO",2002,2010,null,null,"F_REHAB ",null,"Særlig kategori"]
["Innvilgelsesgrad ",null,null,"INNV_GRAD ",2002,2010,null,null,"F_REHAB ","microdata.no","Særlig kategori"]
["Datering av innvilgelsesgrad",{"$f":"IF(INDIRECT(ADDRESS(ROW()-1,COLUMN()))<>\"\",INDIRECT(ADDRESS(ROW()-1,COLUMN())),\"\")","v":""},{"$f":"IF(INDIRECT(ADDRESS(ROW()-1,COLUMN()))<>\"\",INDIRECT(ADDRESS(ROW()-1,COLUMN())),\"\")","v":""},"INNV_GRADDATO",2002,2010,null,null,"F_REHAB ",null,"Særlig kategori"]
["Uføretidspunkt ",null,null,"UFOERETIDSP ",2002,2010,null,null,"F_REHAB ",null,"Særlig kategori"]
["Rehabiliteringspenger fra og med ",null,null,"RPFOM ",2002,2010,null,null,"F_REHAB ",null,"Særlig kategori"]
["Koblingsvariabel mot oppslagstabellen -  unik ID for en utbetalingsrecord",null,null,"K_ID",2002,2010,null,null,"F_REHAB ",null,"Særlig kategori"]
["Merke for fødselsnummer ",null,null,"MRK_FNR ",2002,2010,null,null,"F_REHAB ",null,"Særlig kategori"]
["Gruppeforløpets varighet til og med ",{"$f":"IF(B843<>\"\",B843,\"\")","v":""},{"$f":"IF(C843<>\"\",C843,\"\")","v":""},"REHTOM ",2002,2010,null,null,"F_REHAB ",null,"Særlig kategori"]
["Rehabilitering til og med ",{"$f":"IF(B843<>\"\",B843,\"\")","v":""},{"$f":"IF(C843<>\"\",C843,\"\")","v":""},"TOMDATO ",2002,2010,null,null,"F_REHAB ",null,"Særlig kategori"]
["Teknisk hjelpevariabel - sluttdato for endringsrekord",null,null,"REGTOM",2002,2010,null,null,"F_REHAB ",null,"Særlig kategori"]
[]
["*Skriv ønskede årganger i første ruten for å velge obligatoriske variabler"]
["Tabell: Medisinsk rehabilitering fra og med 2002, oppslagstabell (TAB_REHAB_UTB)",null,null,null,2002,2010,null,null,null,null,"Særlig kategori (hele tabellen)"]
["Løpenummer (avidentifisert fødselsnummer)",{"$f":"IF(B867<>\"\",B867,\"\")","v":""},{"$f":"IF(C867<>\"\",C867,\"\")","v":""},"wXX_XXXX_lnr ",2002,2010,null,null,"TAB_REHAB_UTB ",null,"Særlig kategori"]
["Startdato for vedtaket satt av Nav ",null,null,"RPFOM ",2002,2010,null,null,"TAB_REHAB_UTB ",null,"Særlig kategori"]
["Startdato for når utbetalt beløp gjelder satt av Nav ",null,null,"UTBET_FOM ",2002,2010,null,null,"TAB_REHAB_UTB ",null,"Særlig kategori"]
["Sluttdato for perioden utbetalt beløp gjelder satt av Nav ",null,null,"UTBET_TOM ",2002,2010,null,null,"TAB_REHAB_UTB ",null,"Særlig kategori"]
["Kontonummer for ytelsen ",null,null,"KONTONR ",2002,2010,null,null,"TAB_REHAB_UTB ",null,"Særlig kategori"]
["Utbetalt beløp ",null,null,"BELOP ",2002,2010,null,null,"TAB_REHAB_UTB ",null,"Særlig kategori"]
["Mineregisterkontroll fødselsnummer ",null,null,"MRK_FNR ",2002,2010,null,null,"TAB_REHAB_UTB ",null,"Særlig kategori"]
["Koblingsvariabel mot forløpstabellen - unik ID for en utbetalingsrecord ",null,null,"K_ID ",2002,2010,null,null,"TAB_REHAB_UTB ",null,"Særlig kategori"]
["Årgang på miniregisteret hvor opplysningen stammer fra ",{"$f":"IF(B867<>\"\",B867,\"\")","v":""},{"$f":"IF(C867<>\"\",C867,\"\")","v":""},"AARGANG ",2002,2010,null,null,"TAB_REHAB_UTB ",null,"Særlig kategori"]
[]
["*Skriv ønskede årganger i første ruten for å velge obligatoriske variabler"]
["Tabell: Rehabilitering og attføring til og med 2001 (F_ATTF)",null,null,null,1992,2001,null,null,null,null,"Særlig kategori (hele tabellen)"]
["Løpenummer (avidentifisert fødselsnummer)",{"$f":"IF(B879<>\"\",B879,\"\")","v":""},{"$f":"IF(C879<>\"\",C879,\"\")","v":""},"wXX_XXXX_lnr ",1992,2001,null,null,"F_ATTF ",null,"Særlig kategori"]
["Tilgangsdato for attføring (uavhengig av gruppe) ",{"$f":"IF(B879<>\"\",B879,\"\")","v":""},{"$f":"IF(C879<>\"\",C879,\"\")","v":""},"TILGDATO ",1992,2001,null,null,"F_ATTF ",null,"Særlig kategori"]
["Avgangsdato for  perioden ",{"$f":"IF(B879<>\"\",B879,\"\")","v":""},{"$f":"IF(C879<>\"\",C879,\"\")","v":""},"AVGDATO ",1992,2001,null,null,"F_ATTF ",null,"Særlig kategori"]
["Kode for attføring (grupper og hendelser) ",{"$f":"IF(B879<>\"\",B879,\"\")","v":""},{"$f":"IF(C879<>\"\",C879,\"\")","v":""},"ATTFKODE ",1992,2001,null,null,"F_ATTF ",null,"Særlig kategori"]
["Registreringsdato for type attføring ",{"$f":"IF(B879<>\"\",B879,\"\")","v":""},{"$f":"IF(C879<>\"\",C879,\"\")","v":""},"REGDATO ",1992,2001,null,null,"F_ATTF ",null,"Særlig kategori"]
["Attføringsgruppens tilgangsdato ",{"$f":"IF(B879<>\"\",B879,\"\")","v":""},{"$f":"IF(C879<>\"\",C879,\"\")","v":""},"ATTFTILG ",1992,2001,null,null,"F_ATTF ",null,"Særlig kategori"]
["Attføringsgruppens avgangsdato ",{"$f":"IF(B879<>\"\",B879,\"\")","v":""},{"$f":"IF(C879<>\"\",C879,\"\")","v":""},"ATTFAVG ",1992,2001,null,null,"F_ATTF ",null,"Særlig kategori"]
["Antall barn det mottas barnetillegg for ",null,null,"ABARN ",1992,2001,null,null,"F_ATTF ",null,"Særlig kategori"]
["Endringsdato for antall barn",{"$f":"IF(INDIRECT(ADDRESS(ROW()-1,COLUMN()))<>\"\",INDIRECT(ADDRESS(ROW()-1,COLUMN())),\"\")","v":""},{"$f":"IF(INDIRECT(ADDRESS(ROW()-1,COLUMN()))<>\"\",INDIRECT(ADDRESS(ROW()-1,COLUMN())),\"\")","v":""},"ABARDATO",1992,2001,null,null,"F_ATTF ",null,"Særlig kategori"]
["Bortfallsgrunn ",null,null,"BFG ",1992,2001,null,null,"F_ATTF ",null,"Særlig kategori"]
["Dagsats, attføringspenger ",null,null,"DAGS ",1992,2001,null,null,"F_ATTF ",null,"Særlig kategori"]
["Endringsdato for dagsats (faktisk utbetaling)",{"$f":"IF(INDIRECT(ADDRESS(ROW()-1,COLUMN()))<>\"\",INDIRECT(ADDRESS(ROW()-1,COLUMN())),\"\")","v":""},{"$f":"IF(INDIRECT(ADDRESS(ROW()-1,COLUMN()))<>\"\",INDIRECT(ADDRESS(ROW()-1,COLUMN())),\"\")","v":""},"DAGSDATO",1992,2001,null,null,"F_ATTF ",null,"Særlig kategori"]
["Ektefelletillegg ",null,null,"EKTEF ",1992,2001,null,null,"F_ATTF ",null,"Særlig kategori"]
["Endringsdato for ektefelletillegg",{"$f":"IF(INDIRECT(ADDRESS(ROW()-1,COLUMN()))<>\"\",INDIRECT(ADDRESS(ROW()-1,COLUMN())),\"\")","v":""},{"$f":"IF(INDIRECT(ADDRESS(ROW()-1,COLUMN()))<>\"\",INDIRECT(ADDRESS(ROW()-1,COLUMN())),\"\")","v":""},"EKTFDATO",1992,2001,null,null,"F_ATTF ",null,"Særlig kategori"]
["Gyldig rehabiliterings-/attføringstilfelle ",null,null,"GYLDIG ",1992,2001,null,null,"F_ATTF ",null,"Særlig kategori"]
["Endringsdato for gyldig",{"$f":"IF(INDIRECT(ADDRESS(ROW()-1,COLUMN()))<>\"\",INDIRECT(ADDRESS(ROW()-1,COLUMN())),\"\")","v":""},{"$f":"IF(INDIRECT(ADDRESS(ROW()-1,COLUMN()))<>\"\",INDIRECT(ADDRESS(ROW()-1,COLUMN())),\"\")","v":""},"GYLDDATO",1992,2001,null,null,"F_ATTF ",null,"Særlig kategori"]
["Hjemmel for utbetaling av attføringspenger ",null,null,"SHJEME ",1992,2001,null,null,"F_ATTF ",null,"Særlig kategori"]
["Endringsdato for hjemmel",{"$f":"IF(INDIRECT(ADDRESS(ROW()-1,COLUMN()))<>\"\",INDIRECT(ADDRESS(ROW()-1,COLUMN())),\"\")","v":""},{"$f":"IF(INDIRECT(ADDRESS(ROW()-1,COLUMN()))<>\"\",INDIRECT(ADDRESS(ROW()-1,COLUMN())),\"\")","v":""},"SHJMDATO",1992,2001,null,null,"F_ATTF ",null,"Særlig kategori"]
["Unntak fra rehabiliteringsregler (gjelder kun for rehabiliteringsrecords) ",null,null,"U_REHAB ",1992,2001,null,null,"F_ATTF ",null,"Særlig kategori"]
["Endringsdato for under rehabilitering(gjelder kun for rehabiliteringsrecords)",{"$f":"IF(INDIRECT(ADDRESS(ROW()-1,COLUMN()))<>\"\",INDIRECT(ADDRESS(ROW()-1,COLUMN())),\"\")","v":""},{"$f":"IF(INDIRECT(ADDRESS(ROW()-1,COLUMN()))<>\"\",INDIRECT(ADDRESS(ROW()-1,COLUMN())),\"\")","v":""},"U_RHDATO",1992,2001,null,null,"F_ATTF ",null,"Særlig kategori"]
["Uføregrad i prosent ",null,null,"UFG ",1992,2001,null,null,"F_ATTF ",null,"Særlig kategori"]
["Endringsdato for uføregrad",{"$f":"IF(INDIRECT(ADDRESS(ROW()-1,COLUMN()))<>\"\",INDIRECT(ADDRESS(ROW()-1,COLUMN())),\"\")","v":""},{"$f":"IF(INDIRECT(ADDRESS(ROW()-1,COLUMN()))<>\"\",INDIRECT(ADDRESS(ROW()-1,COLUMN())),\"\")","v":""},"UFGDATO",1992,2001,null,null,"F_ATTF ",null,"Særlig kategori"]
["Miniregisterkontroll - fødselsnummer ",null,null,"MRK_FNR ",1992,2001,null,null,"F_ATTF ",null,"Særlig kategori"]
["Attftom",{"$f":"IF(B879<>\"\",B879,\"\")","v":""},{"$f":"IF(C879<>\"\",C879,\"\")","v":""},"ATTFTOM",1992,2001,null,null,"F_ATTF ",null,"Særlig kategori"]
[]
["*Skriv ønskede årganger i første ruten for å velge obligatoriske variabler"]
["Statsansatte \nTabell: Statsansatte (F_STATS)",null,null,null,1992,2003]
["Løpenummer (avidentifisert fødselsnummer)",{"$f":"IF(B906<>\"\",B906,\"\")","v":""},{"$f":"IF(C906<>\"\",C906,\"\")","v":""},"wXX_XXXX_lnr ",1992,2003,null,null,"F_STATS"]
["Kode for statsansatte (hendelser)",null,null,"STATKODE",1992,2003,null,null,"F_STATS"]
["Tilgangsdato for statsansatte ",{"$f":"IF(B906<>\"\",B906,\"\")","v":""},{"$f":"IF(C906<>\"\",C906,\"\")","v":""},"TILGDATO ",1992,2003,null,null,"F_STATS"]
["Avgangsdato for statsansatte ",{"$f":"IF(B906<>\"\",B906,\"\")","v":""},{"$f":"IF(C906<>\"\",C906,\"\")","v":""},"AVGDATO ",1992,2003,null,null,"F_STATS"]
["Registreringsdato for statsansatte ",{"$f":"IF(B906<>\"\",B906,\"\")","v":""},{"$f":"IF(C906<>\"\",C906,\"\")","v":""},"REGDATO ",1992,2003,null,null,"F_STATS"]
["Register opplysningen kommer fra ",null,null,"GRUPPE ",1992,2003,null,null,"F_STATS"]
["Endringsdato for gruppe",{"$f":"IF(INDIRECT(ADDRESS(ROW()-1,COLUMN()))<>\"\",INDIRECT(ADDRESS(ROW()-1,COLUMN())),\"\")","v":""},{"$f":"IF(INDIRECT(ADDRESS(ROW()-1,COLUMN()))<>\"\",INDIRECT(ADDRESS(ROW()-1,COLUMN())),\"\")","v":""},"GRPDATO",1992,2003,null,null,"F_STATS"]
["Miniregisterkontroll - fødselsnummer ",null,null,"MRK_FNR ",1992,2003,null,null,"F_STATS"]
["Til og med dato ",{"$f":"IF(B906<>\"\",B906,\"\")","v":""},{"$f":"IF(C906<>\"\",C906,\"\")","v":""},"TOMDATO ",1992,2003,null,null,"F_STATS"]
[]
["*Skriv ønskede årganger i første ruten for å velge obligatoriske variabler"]
["SUPPLERENDE STØNAD\nTabell: Supplerende stønad, forløpstabell (F_SU)",null,null,null,2006,2022,null,null,null,null,"Inngripende / sensitiv (hele tabellen)","Ikke alle datovariable er nevnt i variabelomfanger, men inkluderes i uttrekket."]
["Løpenummer (avidentifisert fødselsnummer)",{"$f":"IF(B918<>\"\",B918,\"\")","v":""},{"$f":"IF(C918<>\"\",C918,\"\")","v":""},"wXX_XXXX_lnr ",2006,2022,null,null,"F_SU","microdata.no","Inngripende / sensitiv"]
["Kode for supplerende stønad ",{"$f":"IF(B918<>\"\",B918,\"\")","v":""},{"$f":"IF(C918<>\"\",C918,\"\")","v":""},"KODE ",2006,2022,null,null,"F_SU",null,"Inngripende / sensitiv"]
["Registreringsdato ",{"$f":"IF(B918<>\"\",B918,\"\")","v":""},{"$f":"IF(C918<>\"\",C918,\"\")","v":""},"REGDATO ",2006,2022,null,null,"F_SU",null,"Inngripende / sensitiv"]
["Tilgangsdato ",{"$f":"IF(B918<>\"\",B918,\"\")","v":""},{"$f":"IF(C918<>\"\",C918,\"\")","v":""},"TILGDATO ",2006,2022,null,null,"F_SU","microdata.no","Inngripende / sensitiv"]
["Avgangsdato ",null,null,"AVGDATO ",2006,2022,null,null,"F_SU","microdata.no","Inngripende / sensitiv"]
["Ant. barn u/18 som det skal  beregnes barnetillegg for ",null,null,"BTANT ",2006,2022,null,null,"F_SU",null,"Inngripende / sensitiv"]
["Datering av BTANT",null,null,"BTANTDATO",2006,2022,null,null,"F_SU",null,"Inngripende / sensitiv"]
["Virkningstidspunkt for løpende barnetillegg ",null,null,"BTVTFOM ",2006,2022,null,null,"F_SU",null,"Inngripende / sensitiv"]
["Datering av BTVTFOM",null,null,"BTVTFOMDATO",2006,2022,null,null,"F_SU",null,"Inngripende / sensitiv"]
["TKs opphørsdato for ytelsen ",null,null,"DATO_OPPHOR ",2006,2022,null,null,"F_SU",null,"Inngripende / sensitiv"]
["Datering av DATO_OPPHORDATO - Settes når DATO_OPPHORDATO endres.",null,null,"DATO_OPPHORDATO",2006,2022,null,null,"F_SU",null,"Inngripende / sensitiv"]
["Startdato for inneværende stønadsperiode ",null,null,"DATO_START ",2006,2022,null,null,"F_SU",null,"Inngripende / sensitiv"]
["Datering av DATO_STARTDATO - Settes når Startdato for stønadsperiode endres.",null,null,"DATO_STARTDATO",2006,2022,null,null,"F_SU",null,"Inngripende / sensitiv"]
["Fødselsnummerkontroll ",null,null,"MRK_FNR ",2006,2022,null,null,"F_SU",null,"Inngripende / sensitiv"]
["Til og med dato for tilfellet ",null,null,"TOMDATO ",2006,2022,null,null,"F_SU",null,"Inngripende / sensitiv"]
["Teknisk hjelpevariabel - sluttdato for endringsrekord",null,null,"REGTOM",2006,2022,null,null,"F_SU",null,"Inngripende / sensitiv"]
[]
["*Skriv ønskede årganger i første ruten for å velge obligatoriske variabler"]
["Tabell: Supplerende stønad, oppslagstabell",null,null,null,2006,2022,null,null,null,null,"Inngripende / sensitiv (hele tabellen)"]
["Løpenummer (avidentifisert fødselsnummer)",{"$f":"IF(B937<>\"\",B937,\"\")","v":""},{"$f":"IF(C937<>\"\",C937,\"\")","v":""},"wXX_XXXX_lnr ",2006,2022,null,null,"TAB_SU",null,"Inngripende / sensitiv"]
["Statistikkmåned ",{"$f":"IF(B937<>\"\",B937,\"\")","v":""},{"$f":"IF(C937<>\"\",C937,\"\")","v":""},"PERIODE ",2006,2022,null,null,"TAB_SU",null,"Inngripende / sensitiv"]
["Stønadsmottakers andre norske pensjoner ",null,null,"ANNENPENSJON ",2006,2022,null,null,"TAB_SU",null,"Inngripende / sensitiv"]
["Ektefelle/partner/sambos andre norske pensjoner ",null,null,"ANNENPENSJONEK ",2006,2022,null,null,"TAB_SU",null,"Inngripende / sensitiv"]
["Stønadsmottakers arbeidsinntekt ",null,null,"ARBINNT ",2006,2022,null,null,"TAB_SU",null,"Inngripende / sensitiv"]
["Ektefelle/partner/sambos arbeidsinntekt ",null,null,"ARBINNTEK ",2006,2022,null,null,"TAB_SU",null,"Inngripende / sensitiv"]
["Stønadsmottakers stønad fra folketrygden ",null,null,"FOLKETRYGD ",2006,2022,null,null,"TAB_SU",null,"Inngripende / sensitiv"]
["Ektefelle/partner/sambos stønad fra folketrygden ",null,null,"FOLKETRYGDEK ",2006,2022,null,null,"TAB_SU",null,"Inngripende / sensitiv"]
["Kronebeløp som månedssatsen skal reduseres med ",null,null,"FRADRAG ",2006,2022,null,null,"TAB_SU",null,"Inngripende / sensitiv"]
["Beregningsgrunnlag ",null,null,"GRUNNLAG ",2006,2022,null,null,"TAB_SU",null,"Inngripende / sensitiv"]
["Stønadsmottakers samlede inntekter ",null,null,"INNTIALT ",2006,2022,null,null,"TAB_SU",null,"Inngripende / sensitiv"]
["Ektefelle/partner/sambos samlede inntekter ",null,null,"INNTIALTEK ",2006,2022,null,null,"TAB_SU",null,"Inngripende / sensitiv"]
["Stønadsmottakers kapitalinntekter ",null,null,"KAPINNT ",2006,2022,null,null,"TAB_SU",null,"Inngripende / sensitiv"]
["Ektefelle/partner/sambos  kapitalinntekter ",null,null,"KAPINNTEK ",2006,2022,null,null,"TAB_SU",null,"Inngripende / sensitiv"]
["Bruttosatser for ytelsen ",null,null,"MNDSATS ",2006,2022,null,null,"TAB_SU",null,"Inngripende / sensitiv"]
["Hele beløpet pensj. mottar aktuell måned ",null,null,"SUMYTELSE ",2006,2022,null,null,"TAB_SU",null,"Inngripende / sensitiv"]
["Ektefelle/partner/samboer ",null,null,"FNREK ",2006,2022,null,null,"TAB_SU",null,"Inngripende / sensitiv"]
["Stønadsmottakers utenlandske pensjoner ",null,null,"UTLPENSJ ",2006,2022,null,null,"TAB_SU",null,"Inngripende / sensitiv"]
["Ektefelle/partner/sambos utenlandske pensjoner ",null,null,"UTLPENSJEK ",2006,2022,null,null,"TAB_SU",null,"Inngripende / sensitiv"]
["Årgang",{"$f":"IF(B937<>\"\",B937,\"\")","v":""},{"$f":"IF(C937<>\"\",C937,\"\")","v":""},"AARGANG",2006,2022,null,null,"TAB_SU",null,"Inngripende / sensitiv"]
["Merking av fødselsnummer ",null,null,"MRK_FNR ",2006,2022,null,null,"TAB_SU",null,"Inngripende / sensitiv"]
[]
["*Skriv ønskede årganger i første ruten for å velge obligatoriske variabler"]
["SYSSELSETTING\nTabell: Sysselsetting alle jobbforhold, forløpstabell (F_JOBBER)",null,null,null,2003,2014]
["Løpenummer (avidentifisert fødselsnummer)",{"$f":"IF(B961<>\"\",B961,\"\")","v":""},{"$f":"IF(C961<>\"\",C961,\"\")","v":""},"wXX_XXXX_lnr ",2003,2014,null,null,"F_JOBBER"]
["Hendelseskode for sysselsetting, alle jobber",{"$f":"IF(B961<>\"\",B961,\"\")","v":""},{"$f":"IF(C961<>\"\",C961,\"\")","v":""},"KODE ",2003,2014,null,null,"F_JOBBER"]
["Registreringsdato for alle jobber",{"$f":"IF(B961<>\"\",B961,\"\")","v":""},{"$f":"IF(C961<>\"\",C961,\"\")","v":""},"REGDATO ",2003,2014,null,null,"F_JOBBER"]
["Unikt rekkenummer for jobb",{"$f":"IF(B961<>\"\",B961,\"\")","v":""},{"$f":"IF(C961<>\"\",C961,\"\")","v":""},"wXX_XXXX_LOEPENR_JOBB ",2003,2014,null,null,"F_JOBBER"]
["Tilgangsdato for jobb",{"$f":"IF(B961<>\"\",B961,\"\")","v":""},{"$f":"IF(C961<>\"\",C961,\"\")","v":""},"TILGDATO ",2003,2014,null,null,"F_JOBBER"]
["Avgangsdato for jobb",{"$f":"IF(B961<>\"\",B961,\"\")","v":""},{"$f":"IF(C961<>\"\",C961,\"\")","v":""},"AVGDATO ",2003,2014,null,null,"F_JOBBER"]
["Rekkenummer for virksomhetens orgnr (A_ORGORD) ",{"$f":"IF(B961<>\"\",B961,\"\")","v":""},{"$f":"IF(C961<>\"\",C961,\"\")","v":""},"wXX_XXXX_A_ORGORD_LPNR ",2003,2014,null,null,"F_JOBBER"]
["Kode for maritime arbeidsforhold",null,null,"FART ",2003,2014,null,null,"F_JOBBER"]
["Endringsdato for kode for maritime arbeidstakarar",{"$f":"IF(INDIRECT(ADDRESS(ROW()-1,COLUMN()))<>\"\",INDIRECT(ADDRESS(ROW()-1,COLUMN())),\"\")","v":""},{"$f":"IF(INDIRECT(ADDRESS(ROW()-1,COLUMN()))<>\"\",INDIRECT(ADDRESS(ROW()-1,COLUMN())),\"\")","v":""},"FARTDATO",2003,2014,null,null,"F_JOBBER"]
["Prioritet av kontantlønn pr. år ",null,null,"K_LONN_PRIORITET ",2003,2014,null,null,"F_JOBBER"]
["Endringsdato for kontantløn pr. år",{"$f":"IF(INDIRECT(ADDRESS(ROW()-1,COLUMN()))<>\"\",INDIRECT(ADDRESS(ROW()-1,COLUMN())),\"\")","v":""},{"$f":"IF(INDIRECT(ADDRESS(ROW()-1,COLUMN()))<>\"\",INDIRECT(ADDRESS(ROW()-1,COLUMN())),\"\")","v":""},"K_LONN_PRIODATO",2003,2014,null,null,"F_JOBBER"]
["Antall perioder med ulik arbeidstid pr. år ",null,null,"ANT_REC ",2003,2014,null,null,"F_JOBBER"]
["Endringsdato for talet perioder med ulik arbeidstid pr. år ",{"$f":"IF(INDIRECT(ADDRESS(ROW()-1,COLUMN()))<>\"\",INDIRECT(ADDRESS(ROW()-1,COLUMN())),\"\")","v":""},{"$f":"IF(INDIRECT(ADDRESS(ROW()-1,COLUMN()))<>\"\",INDIRECT(ADDRESS(ROW()-1,COLUMN())),\"\")","v":""},"ANT_RECDATO",2003,2014,null,null,"F_JOBBER"]
["Beregnet antall dager pr. lønnforhold pr. år ",null,null,"B_DAGER ",2003,2014,null,null,"F_JOBBER"]
["Endringsdato for utrekna talet dagar pr. lønstilhøve pr. år",{"$f":"IF(INDIRECT(ADDRESS(ROW()-1,COLUMN()))<>\"\",INDIRECT(ADDRESS(ROW()-1,COLUMN())),\"\")","v":""},{"$f":"IF(INDIRECT(ADDRESS(ROW()-1,COLUMN()))<>\"\",INDIRECT(ADDRESS(ROW()-1,COLUMN())),\"\")","v":""},"B_DAGERDATO",2003,2014,null,null,"F_JOBBER"]
["Gjennomsnittlig arbeidstid pr. uke pr. år ",null,null,"GJSN_ARBTIM ",2003,2014,null,null,"F_JOBBER"]
["Gjennomsnittleg forlika arbeidstid pr. uke pr. år",{"$f":"IF(INDIRECT(ADDRESS(ROW()-1,COLUMN()))<>\"\",INDIRECT(ADDRESS(ROW()-1,COLUMN())),\"\")","v":""},{"$f":"IF(INDIRECT(ADDRESS(ROW()-1,COLUMN()))<>\"\",INDIRECT(ADDRESS(ROW()-1,COLUMN())),\"\")","v":""},"GJSN_ARBTIMDATO",2003,2014,null,null,"F_JOBBER"]
["Miniregisterkontroll fødselsnummer ",null,null,"MRK_FNR ",2003,2014,null,null,"F_JOBBER"]
["Teknisk hjelpevariabel - sluttdato for arbeidsforhold",{"$f":"IF(B961<>\"\",B961,\"\")","v":""},{"$f":"IF(C961<>\"\",C961,\"\")","v":""},"TOMDATO ",2003,2014,null,null,"F_JOBBER"]
["Teknisk hjelpevariabel - sluttdato for endringsrecord ",null,null,"REGTOM ",2003,2014,null,null,"F_JOBBER"]
[]
["*Skriv ønskede årganger i første ruten for å velge obligatoriske variabler"]
["Tabell: Sysselsetting alle jobbforhold, oppslagstabell (TAB_JOBBER)",null,null,null,2003,2014]
["Løpenummer (avidentifisert fødselsnummer)",{"$f":"IF(B984<>\"\",B984,\"\")","v":""},{"$f":"IF(C984<>\"\",C984,\"\")","v":""},"wXX_XXXX_lnr ",2003,2014,null,null,"TAB_JOBBER"]
["Unikt rekkenummer for jobb",{"$f":"IF(B984<>\"\",B984,\"\")","v":""},{"$f":"IF(C984<>\"\",C984,\"\")","v":""},"wXX_XXXX_LOEPENR_JOBB ",2003,2014,null,null,"TAB_JOBBER"]
["Årstall for arbeidsforholdsopplysing ",{"$f":"IF(B984<>\"\",B984,\"\")","v":""},{"$f":"IF(C984<>\"\",C984,\"\")","v":""},"AAR ",2003,2014,null,null,"TAB_JOBBER"]
["Rekkenummer for virksomhetens orgnr (A_ORGORD) ",{"$f":"IF(B984<>\"\",B984,\"\")","v":""},{"$f":"IF(C984<>\"\",C984,\"\")","v":""},"wXX_XXXX_A_ORGORD_LPNR ",2003,2014,null,null,"TAB_JOBBER"]
["Rekkenummer for foretakets orgnr (L_ORGORD) ",{"$f":"IF(B984<>\"\",B984,\"\")","v":""},{"$f":"IF(C984<>\"\",C984,\"\")","v":""},"wXX_XXXX_L_ORGORD_LPNR ",2003,2014,null,null,"TAB_JOBBER"]
["Rekkenummer for orgnr nivået over virksomhet (ORG_F) ",{"$f":"IF(B984<>\"\",B984,\"\")","v":""},{"$f":"IF(C984<>\"\",C984,\"\")","v":""},"wXX_XXXX_ORG_F_LPNR ",2003,2014,null,null,"TAB_JOBBER"]
["Foretakets institusjonelle sektor, til og med 2012",{"$f":"IF(B984<>\"\",B984,\"\")","v":""},{"$f":"IF(C984<>\"\",C984,\"\")","v":""},"P_SEKTOR ",2003,2014,"definisjon","kodeliste","TAB_JOBBER"]
["Foretakets institusjonelle sektor 2014, BoF, fra 2013",{"$f":"IF(B984<>\"\",B984,\"\")","v":""},{"$f":"IF(C984<>\"\",C984,\"\")","v":""},"SEKT_2014_BF ",2003,2014,"definisjon","kodeliste","TAB_JOBBER"]
["Foretakets institusjonelle undersektor 2014, BoF, fra 2013",{"$f":"IF(B984<>\"\",B984,\"\")","v":""},{"$f":"IF(C984<>\"\",C984,\"\")","v":""},"UNDERSEKT_2014_BF ",2003,2014,"definisjon","kodeliste","TAB_JOBBER"]
["Virksomhetens næringskode ",null,null,"NACE_NAR ",2003,2014,"definisjon","kodeliste","TAB_JOBBER",null,"Sjekk"]
["Foretakets organisasjonsform ",null,null,"TYPE_JUR ",2003,2014,"definisjon","kodeliste","TAB_JOBBER"]
["Type arbeidstager",null,null,"MAR_ARB ",2003,2014,null,null,"TAB_JOBBER"]
["Yrkeskode (STYRK) ",null,null,"YRK_KODE ",2003,2014,"definisjon","kodeliste","TAB_JOBBER",null,"Sjekk"]
["Arbeidsstedskommune fra virksomheten ",null,null,"ARB_KOMM ",2003,2014,"definisjon","kodeliste","TAB_JOBBER"]
["Årgang på miniregisteret som opplysingen stammer fra ",{"$f":"IF(B984<>\"\",B984,\"\")","v":""},{"$f":"IF(B984<>\"\",B984,\"\")","v":""},"AARGANG ",2003,2014,null,null,"TAB_JOBBER"]
[]
["*Skriv ønskede årganger i første ruten for å velge obligatoriske variabler"]
["Tabell: Sysselsetting viktigste arbeidsforhold (F_SYS)",null,null,null,1992,2003]
["Løpenummer (avidentifisert fødselsnummer)",{"$f":"IF(B1002<>\"\",B1002,\"\")","v":""},{"$f":"IF(C1002<>\"\",C1002,\"\")","v":""},"wXX_XXXX_lnr ",1992,2003,null,null,"F_SYS"]
["Kode for sysselsetting ",{"$f":"IF(B1002<>\"\",B1002,\"\")","v":""},{"$f":"IF(C1002<>\"\",C1002,\"\")","v":""},"SYSKODE ",1992,2003,null,null,"F_SYS"]
["Registreringsdato for type sysselsetting ",{"$f":"IF(B1002<>\"\",B1002,\"\")","v":""},{"$f":"IF(C1002<>\"\",C1002,\"\")","v":""},"REGDATO ",1992,2003,null,null,"F_SYS"]
["Tilgangsdato for sysselsetting (uavhengig av gruppe) ",{"$f":"IF(B1002<>\"\",B1002,\"\")","v":""},{"$f":"IF(C1002<>\"\",C1002,\"\")","v":""},"TILGDATO ",1992,2003,null,null,"F_SYS"]
["Avgangsdato for sysselsetting (uavhengig av gruppe) ",{"$f":"IF(B1002<>\"\",B1002,\"\")","v":""},{"$f":"IF(C1002<>\"\",C1002,\"\")","v":""},"AVGDATO ",1992,2003,null,null,"F_SYS"]
["Sysselsettingsgruppens tilgangsdato ",{"$f":"IF(B1002<>\"\",B1002,\"\")","v":""},{"$f":"IF(C1002<>\"\",C1002,\"\")","v":""},"SYSTILG ",1992,2003,null,null,"F_SYS"]
["Sysselsettingsgruppens avgangsdato ",{"$f":"IF(B1002<>\"\",B1002,\"\")","v":""},{"$f":"IF(C1002<>\"\",C1002,\"\")","v":""},"SYSAVG ",1992,2003,null,null,"F_SYS"]
["Referansenummer til arbeidsgivernummer ",null,null,"ANR_REF ",1992,2003,null,null,"F_SYS"]
["Endringsdato for ANR_REF",{"$f":"IF(INDIRECT(ADDRESS(ROW()-1,COLUMN()))<>\"\",INDIRECT(ADDRESS(ROW()-1,COLUMN())),\"\")","v":""},{"$f":"IF(INDIRECT(ADDRESS(ROW()-1,COLUMN()))<>\"\",INDIRECT(ADDRESS(ROW()-1,COLUMN())),\"\")","v":""},"ANR_DATO",1992,2003,null,null,"F_SYS"]
["Næringsgruppering - ISIC ",null,null,"NARING ",1992,2003,null,null,"F_SYS"]
["Endringsdato for NARING",{"$f":"IF(INDIRECT(ADDRESS(ROW()-1,COLUMN()))<>\"\",INDIRECT(ADDRESS(ROW()-1,COLUMN())),\"\")","v":""},{"$f":"IF(INDIRECT(ADDRESS(ROW()-1,COLUMN()))<>\"\",INDIRECT(ADDRESS(ROW()-1,COLUMN())),\"\")","v":""},"NAR_DATO",1992,2003,null,null,"F_SYS"]
["Forventet arbeidstid i timer ",null,null,"FORV_ARB ",1992,2003,"definisjon",null,"F_SYS"]
["Endringsdato for FORV_ARB",{"$f":"IF(INDIRECT(ADDRESS(ROW()-1,COLUMN()))<>\"\",INDIRECT(ADDRESS(ROW()-1,COLUMN())),\"\")","v":""},{"$f":"IF(INDIRECT(ADDRESS(ROW()-1,COLUMN()))<>\"\",INDIRECT(ADDRESS(ROW()-1,COLUMN())),\"\")","v":""},"FVA_DATO",1992,2003,null,null,"F_SYS"]
["Arbeidsstedskommune ",null,null,"ARB_KOMM ",1992,2003,"definisjon","kodeliste","F_SYS"]
["Endringsdato for ARB_KOMM",{"$f":"IF(INDIRECT(ADDRESS(ROW()-1,COLUMN()))<>\"\",INDIRECT(ADDRESS(ROW()-1,COLUMN())),\"\")","v":""},{"$f":"IF(INDIRECT(ADDRESS(ROW()-1,COLUMN()))<>\"\",INDIRECT(ADDRESS(ROW()-1,COLUMN())),\"\")","v":""},"AKO_DATO",1992,2003,null,null,"F_SYS"]
["Om arbeidsforhold med lengst forventet arbeidstid er viktigst ",null,null,"MAXT ",1992,2003,null,null,"F_SYS"]
["Endringsdato for MAXT",{"$f":"IF(INDIRECT(ADDRESS(ROW()-1,COLUMN()))<>\"\",INDIRECT(ADDRESS(ROW()-1,COLUMN())),\"\")","v":""},{"$f":"IF(INDIRECT(ADDRESS(ROW()-1,COLUMN()))<>\"\",INDIRECT(ADDRESS(ROW()-1,COLUMN())),\"\")","v":""},"MXT_DATO",1992,2003,null,null,"F_SYS"]
["Kode for koblingstype og kilde ",null,null,"KTYPE ",1992,2003,null,null,"F_SYS"]
["Endringsdato for KTYPE",{"$f":"IF(INDIRECT(ADDRESS(ROW()-1,COLUMN()))<>\"\",INDIRECT(ADDRESS(ROW()-1,COLUMN())),\"\")","v":""},{"$f":"IF(INDIRECT(ADDRESS(ROW()-1,COLUMN()))<>\"\",INDIRECT(ADDRESS(ROW()-1,COLUMN())),\"\")","v":""},"KTY_DATO",1992,2003,null,null,"F_SYS"]
["Merking av fødselsnummer ",null,null,"MRK_FNR ",1992,2003,null,null,"F_SYS"]
["Løpenummer for arbeidsgivernummer",null,null,"ARBG_REF ",1992,2003,null,null,"F_SYS"]
["Endringsdato for ARBG_REF",{"$f":"IF(INDIRECT(ADDRESS(ROW()-1,COLUMN()))<>\"\",INDIRECT(ADDRESS(ROW()-1,COLUMN())),\"\")","v":""},{"$f":"IF(INDIRECT(ADDRESS(ROW()-1,COLUMN()))<>\"\",INDIRECT(ADDRESS(ROW()-1,COLUMN())),\"\")","v":""},"ARBGDATO",1992,2003,null,null,"F_SYS"]
["Løpenummer for juridisk organisasjonsnummer ",null,null,"wXX_XXXX_A_O_REF ",1992,2003,null,null,"F_SYS"]
["Endringsdato for A_O_REF",{"$f":"IF(INDIRECT(ADDRESS(ROW()-1,COLUMN()))<>\"\",INDIRECT(ADDRESS(ROW()-1,COLUMN())),\"\")","v":""},{"$f":"IF(INDIRECT(ADDRESS(ROW()-1,COLUMN()))<>\"\",INDIRECT(ADDRESS(ROW()-1,COLUMN())),\"\")","v":""},"A_O_DATO",1992,2003,null,null,"F_SYS"]
["Næringsgruppering - NACE ",null,null,"NACE_NAR ",1992,2003,"definisjon","kodeliste","F_SYS"]
["Endringsdato for NACE_NAR",{"$f":"IF(INDIRECT(ADDRESS(ROW()-1,COLUMN()))<>\"\",INDIRECT(ADDRESS(ROW()-1,COLUMN())),\"\")","v":""},{"$f":"IF(INDIRECT(ADDRESS(ROW()-1,COLUMN()))<>\"\",INDIRECT(ADDRESS(ROW()-1,COLUMN())),\"\")","v":""},"NACEDATO",1992,2003,null,null,"F_SYS"]
["Løpenummer for ordinært organisasjonsnummer ",null,null,"wXX_XXXX_ORGN_REF ",1992,2003,null,null,"F_SYS"]
["Endringsdato for ORGN_REF",{"$f":"IF(INDIRECT(ADDRESS(ROW()-1,COLUMN()))<>\"\",INDIRECT(ADDRESS(ROW()-1,COLUMN())),\"\")","v":""},{"$f":"IF(INDIRECT(ADDRESS(ROW()-1,COLUMN()))<>\"\",INDIRECT(ADDRESS(ROW()-1,COLUMN())),\"\")","v":""},"ORGNDATO",1992,2003,null,null,"F_SYS"]
["Hjelpevariabel ",{"$f":"IF(B1002<>\"\",B1002,\"\")","v":""},{"$f":"IF(C1002<>\"\",C1002,\"\")","v":""},"TOMDATO ",1992,2003,null,null,"F_SYS"]
["Hjelpevariabel ",{"$f":"IF(B1002<>\"\",B1002,\"\")","v":""},{"$f":"IF(C1002<>\"\",C1002,\"\")","v":""},"SYSTOM ",1992,2003,null,null,"F_SYS"]
[]
["*Skriv ønskede årganger i første ruten for å velge obligatoriske variabler"]
["TIDSBEGRENSET UFØRESTØNAD\nTabell: Tidsbegrenset uførestønad, forløpstabell (F_TU)",null,null,null,2004,2010,null,null,null,null,"Særlig kategori (hele tabellen)"]
["Løpenummer (avidentifisert fødselsnummer)",{"$f":"IF(B1035<>\"\",B1035,\"\")","v":""},{"$f":"IF(C1035<>\"\",C1035,\"\")","v":""},"wXX_XXXX_lnr ",2004,2010,null,null,"F_TU","microdata.no","Særlig kategori"]
["Tilgangsdato ",{"$f":"IF(B1035<>\"\",B1035,\"\")","v":""},{"$f":"IF(C1035<>\"\",C1035,\"\")","v":""},"TILGDATO ",2004,2010,null,null,"F_TU","microdata.no","Særlig kategori"]
["Avgangsdato ",{"$f":"IF(B1035<>\"\",B1035,\"\")","v":""},{"$f":"IF(C1035<>\"\",C1035,\"\")","v":""},"AVGDATO ",2004,2010,null,null,"F_TU","microdata.no","Særlig kategori"]
["Kode ",{"$f":"IF(B1035<>\"\",B1035,\"\")","v":""},{"$f":"IF(C1035<>\"\",C1035,\"\")","v":""},"KODE ",2004,2010,null,null,"F_TU",null,"Særlig kategori"]
["Registreringsdato ",{"$f":"IF(B1035<>\"\",B1035,\"\")","v":""},{"$f":"IF(C1035<>\"\",C1035,\"\")","v":""},"REGDATO ",2004,2010,null,null,"F_TU",null,"Særlig kategori"]
["Uføretidspunkt ",null,null,"UFORETP ",2004,2010,null,null,"F_TU",null,"Særlig kategori"]
["Datering av uføretidspunkt",{"$f":"IF(INDIRECT(ADDRESS(ROW()-1,COLUMN()))<>\"\",INDIRECT(ADDRESS(ROW()-1,COLUMN())),\"\")","v":""},{"$f":"IF(INDIRECT(ADDRESS(ROW()-1,COLUMN()))<>\"\",INDIRECT(ADDRESS(ROW()-1,COLUMN())),\"\")","v":""},"UFORETP_DATO",2004,2010,null,null,"F_TU",null,"Særlig kategori"]
["Dato for når EØS pensjon innvilges ",null,null,"EOS_FOM ",2004,2010,null,null,"F_TU",null,"Særlig kategori"]
["Datererer EOS_FOM ",{"$f":"IF(INDIRECT(ADDRESS(ROW()-1,COLUMN()))<>\"\",INDIRECT(ADDRESS(ROW()-1,COLUMN())),\"\")","v":""},{"$f":"IF(INDIRECT(ADDRESS(ROW()-1,COLUMN()))<>\"\",INDIRECT(ADDRESS(ROW()-1,COLUMN())),\"\")","v":""},"EOS_FOM_DATO",2004,2010,null,null,"F_TU",null,"Særlig kategori"]
["Uføregrad i stønadsperioden ",null,null,"UFG ",2004,2010,null,null,"F_TU","microdata.no","Særlig kategori"]
["Datering av uføregraden",{"$f":"IF(INDIRECT(ADDRESS(ROW()-1,COLUMN()))<>\"\",INDIRECT(ADDRESS(ROW()-1,COLUMN())),\"\")","v":""},{"$f":"IF(INDIRECT(ADDRESS(ROW()-1,COLUMN()))<>\"\",INDIRECT(ADDRESS(ROW()-1,COLUMN())),\"\")","v":""},"UFG_DATO",2004,2010,null,null,"F_TU",null,"Særlig kategori"]
["Ung ufør ",null,null,"UNGUFOR ",2004,2010,null,null,"F_TU",null,"Særlig kategori"]
["Datering av Ung ufør",{"$f":"IF(INDIRECT(ADDRESS(ROW()-1,COLUMN()))<>\"\",INDIRECT(ADDRESS(ROW()-1,COLUMN())),\"\")","v":""},{"$f":"IF(INDIRECT(ADDRESS(ROW()-1,COLUMN()))<>\"\",INDIRECT(ADDRESS(ROW()-1,COLUMN())),\"\")","v":""},"UFGUFOR_DATO",2004,2010,null,null,"F_TU",null,"Særlig kategori"]
["Mottakere av delpensjon ",null,null,"EOS_M ",2004,2010,null,null,"F_TU",null,"Særlig kategori"]
["Datering av EOS_M",{"$f":"IF(INDIRECT(ADDRESS(ROW()-1,COLUMN()))<>\"\",INDIRECT(ADDRESS(ROW()-1,COLUMN())),\"\")","v":""},{"$f":"IF(INDIRECT(ADDRESS(ROW()-1,COLUMN()))<>\"\",INDIRECT(ADDRESS(ROW()-1,COLUMN())),\"\")","v":""},"EOS_M_DATO",2004,2010,null,null,"F_TU",null,"Særlig kategori"]
["Dagsats ",null,null,"DAGSATS ",2004,2010,null,null,"F_TU",null,"Særlig kategori"]
["Datering av Dagsats\"",{"$f":"IF(INDIRECT(ADDRESS(ROW()-1,COLUMN()))<>\"\",INDIRECT(ADDRESS(ROW()-1,COLUMN())),\"\")","v":""},{"$f":"IF(INDIRECT(ADDRESS(ROW()-1,COLUMN()))<>\"\",INDIRECT(ADDRESS(ROW()-1,COLUMN())),\"\")","v":""},"DAGSATS_DATO",2004,2010,null,null,"F_TU",null,"Særlig kategori"]
["Start fom ",null,null,"TUSFOM ",2004,2010,null,null,"F_TU",null,"Særlig kategori"]
["Vedtak tom ",null,null,"TUTOM ",2004,2010,null,null,"F_TU",null,"Særlig kategori"]
["Merking av FNR ",null,null,"MRK_FNR ",2004,2010,null,null,"F_TU",null,"Særlig kategori"]
["Til og med DATO = Avgangsdato utfylt på alle records ",{"$f":"IF(B1035<>\"\",B1035,\"\")","v":""},{"$f":"IF(C1035<>\"\",C1035,\"\")","v":""},"TOMDATO ",2004,2010,null,null,"F_TU",null,"Særlig kategori"]
[]
["*Skriv ønskede årganger i første ruten for å velge obligatoriske variabler"]
["ØKONOMISK SOSIALHJELP\nTabell: Mottak av økonomisk sosialhjelp, forløpstabell (F_SHJ)",null,null,null,1992,2022,null,null,null,null,"Inngripende / sensitiv (hele tabellen)"]
["Løpenummer (avidentifisert fødselsnummer)",{"$f":"IF(B1059<>\"\",B1059,\"\")","v":""},{"$f":"IF(C1059<>\"\",C1059,\"\")","v":""},"wXX_XXXX_lnr ",1992,2022,null,null,"F_SHJ","microdata.no","Inngripende / sensitiv"]
["Sosialhjelpskode ",{"$f":"IF(B1059<>\"\",B1059,\"\")","v":""},{"$f":"IF(C1059<>\"\",C1059,\"\")","v":""},"SHJKODE ",1992,2022,null,null,"F_SHJ",null,"Inngripende / sensitiv"]
["Registreringsdato for sosialhjelp ",{"$f":"IF(B1059<>\"\",B1059,\"\")","v":""},{"$f":"IF(C1059<>\"\",C1059,\"\")","v":""},"REGDATO ",1992,2022,null,null,"F_SHJ",null,"Inngripende / sensitiv"]
["Tilgangsdato for sosialhjelp ",{"$f":"IF(B1059<>\"\",B1059,\"\")","v":""},{"$f":"IF(C1059<>\"\",C1059,\"\")","v":""},"SHJ_TILG ",1992,2022,null,null,"F_SHJ","microdata.no","Inngripende / sensitiv"]
["Avgangsgsdato for sosialhjelp ",{"$f":"IF(B1059<>\"\",B1059,\"\")","v":""},{"$f":"IF(C1059<>\"\",C1059,\"\")","v":""},"SHJ_AVG ",1992,2022,null,null,"F_SHJ","microdata.no","Inngripende / sensitiv"]
["Merking av fødselsnummer ",null,null,"MRK_FNR ",1992,2022,null,null,"F_SHJ",null,"Inngripende / sensitiv"]
["Merking av imputering ",null,null,"MRK_IMP ",1992,2022,null,null,"F_SHJ",null,"Inngripende / sensitiv"]
["Hjelpevariabel ",{"$f":"IF(B1059<>\"\",B1059,\"\")","v":""},{"$f":"IF(C1059<>\"\",C1059,\"\")","v":""},"TOMDATO ",1992,2022,null,null,"F_SHJ",null,"Inngripende / sensitiv"]
[]
["*Skriv ønskede årganger i første ruten for å velge obligatoriske variabler"]
["Tabell: Mottak av økonomisk sosialhjelp, oppslagstabell",null,null,null,null,null,null,null,null,null,"Inngripende / sensitiv (hele tabellen)"]
["Løpenummer (avidentifisert fødselsnummer)",{"$f":"IF(B1070<>\"\",B1070,\"\")","v":""},{"$f":"IF(C1070<>\"\",C1070,\"\")","v":""},"wXX_XXXX_lnr ",1992,2022,null,null,"TAB_SHJ","microdata.no","Inngripende / sensitiv"]
["Oppgaveår for økonomisk sosialhjelp ",{"$f":"IF(B1070<>\"\",B1070,\"\")","v":""},{"$f":"IF(C1070<>\"\",C1070,\"\")","v":""},"SHJAAR ",1992,2022,null,null,"TAB_SHJ",null,"Inngripende / sensitiv"]
["Bidragsbeløp for økonomisk sosialhjelp ",null,null,"BIDB ",1992,2022,null,null,"TAB_SHJ","microdata.no","Inngripende / sensitiv"]
["Lånebeløp for økonomisk sosialhjelp ",null,null,"LAAN ",1992,2022,null,null,"TAB_SHJ","microdata.no","Inngripende / sensitiv"]
["Utbetalt sosialhjelp i året ",null,null,"TOTUTBET ",1992,2022,null,null,"TAB_SHJ",null,"Inngripende / sensitiv"]
["Antall kommuner klienten har fått økonomisk sosialhjelp ",null,null,"ANTKOM ",1992,2022,null,null,"TAB_SHJ","microdata.no","Inngripende / sensitiv"]
["Antall måneder med utbetalt stønad ",null,null,"MNDUTBET ",1992,2022,null,null,"TAB_SHJ","microdata.no","Inngripende / sensitiv"]
["Merking av fødselsnummer ",null,null,"MRK_FNR ",1992,2022,null,null,"TAB_SHJ",null,"Inngripende / sensitiv"]
["Merking av  imputering ",null,null,"MRK_IMP ",1992,2022,null,null,"TAB_SHJ",null,"Inngripende / sensitiv"]
[]
["*Skriv ønskede årganger i første ruten for å velge obligatoriske variabler"]
["Tabell: Mottakere av økonomisk sosialhjelp. År og beløp ",null,null,null,null,null,null,null,null,null,"Inngripende / sensitiv (hele tabellen)"]
["Løpenummer (avidentifisert fødselsnummer)",{"$f":"IF(B1082<>\"\",B1082,\"\")","v":""},{"$f":"IF(C1082<>\"\",C1082,\"\")","v":""},"wXX_XXXX_lnr ",1986,1991,null,null,"TAB_SHJ_1986_1992",null,"Inngripende / sensitiv"]
["Oppgaveår for økonomisk sosialhjelp ",{"$f":"IF(B1082<>\"\",B1082,\"\")","v":""},{"$f":"IF(C1082<>\"\",C1082,\"\")","v":""},"SHJAAR ",1986,1991,null,null,"TAB_SHJ_1986_1993",null,"Inngripende / sensitiv"]
["Bidragsbeløp for økonomisk sosialhjelp årssum ",null,null,"BIDB ",1986,1991,null,null,"TAB_SHJ_1986_1994",null,"Inngripende / sensitiv"]
["Økonomisk sosialhjelp lån/garanti årssum ",null,null,"LAAN ",1986,1991,null,null,"TAB_SHJ_1986_1995",null,"Inngripende / sensitiv"]
["Totalt bidrag og lån i kalenderåret ",null,null,"TOTUTBET ",1986,1991,null,null,"TAB_SHJ_1986_1996",null,"Inngripende / sensitiv"]
["Antall kommuner mottaker fikk stønad fra ",null,null,"ANTKOM ",1986,1991,null,null,"TAB_SHJ_1986_1997",null,"Inngripende / sensitiv"]
["Antall måneder med utbetalt stønad ",null,null,"MNDUTBET ",1986,1991,null,null,"TAB_SHJ_1986_1998",null,"Inngripende / sensitiv"]
["Fødselsnummerkontroll ",null,null,"MRK_FNR ",1986,1991,null,null,"TAB_SHJ_1986_1999",null,"Inngripende / sensitiv"]
["Merking av imputering ",null,null,"MRK_IMP ",1986,1991,null,null,"TAB_SHJ_1986_2000",null,"Inngripende / sensitiv"]
["Registreringsåret ",{"$f":"IF(B1082<>\"\",B1082,\"\")","v":""},{"$f":"IF(C1082<>\"\",C1082,\"\")","v":""},"AAR ",1986,1991,null,null,"TAB_SHJ_1986_2001",null,"Inngripende / sensitiv"]
["Kommunenummer ",null,null,"KOMMUNE ",1986,1991,null,null,"TAB_SHJ_1986_2001",null,"Inngripende / sensitiv"]
[]
[{"$f":"'Variabelliste - informasjon'!A39","v":"Sist oppdatert 10. mai 2024"},null,null,"Statistisk sentralbyrå"]